{"text_format":"1","workbook":"xlsx","n_sheets":8,"sheets":["シート構成","表紙","様式1 総括表","様式2 経費集計表","様式3 収支管理簿","様式4 現金出納帳","更新履歴","リスト"],"not_rendered":{"charts":0,"images":0,"macros":1,"external_links":0,"defined_names":47,"comments":0,"pivot_tables":0},"unopened":[],"bounds":{"document_bytes":16777216,"sheet_cells":100000,"rows_first":2000,"rows_last":500,"rows_between":2000,"halvings":0,"cell_chars":16384,"cell_head_chars":4096},"cells_cut":0,"cells_raw":0,"read":"whole","date_system":"1900"}

{"sheet":"シート構成","index":0,"n_rows":12,"n_cols":6,"rows_kept":12,"cut":false,"hidden":false,"merged":[]}
["2021年度通常枠 実行団体向け 経費精算報告書"]
[]
["経費精算報告書のうち、様式を定めるものを本資料でご案内します。"]
["指定口座の通帳の写しや支払証拠書類の写しは、基本的には様式を定めませんが精算の手引きに則り提出が必要です。"]
[]
["シート",null,"説明","報告時期"]
[null,null,null,"月次等","年度末","事業完了"]
["表紙",null,"事業完了時の精算において実行団体から資金分配団体に対して精算結果を報告するための書類。","-","-","●"]
["様式1","総括表","事業完了時の精算において精算金額（残額）を計算するための書類。計算に要する目的区分別の実績額は、様式3 収支管理簿、様式4 現金出納帳に基づき自動計算される。年度末の精算報告では精算金額を計算しないが、目的区分別の実績額の確認に使用する。","-","●","●"]
["様式2","経費集計表","目的区分別および会計科目別の予算消化状況を確認し、科目間流用の規定に抵触しないか確認するための書類。目的区分別および会計科目別の実績額は、様式3 収支管理簿、様式4 現金出納帳に基づき自動計算される。会計科目別に資金計画値（予算）と実績額が表示されるため、日頃の予実管理に活用することも可能。","-","●","●"]
["様式3","収支管理簿","指定口座における入出金明細の記録簿。当該様式に記載した支出金額は、様式1 総括表および様式2 経費集計表に反映される。","●","●","●"]
["様式4","現金出納帳","指定口座から現金支出をした場合に使用する記録簿。当該様式に記載した支出金額は、様式1 総括表および様式2 経費集計表に反映される。","●","●","●"]

{"sheet":"表紙","index":1,"n_rows":31,"n_cols":8,"rows_kept":31,"cut":false,"hidden":false,"merged":[[1,5,1,7],[19,2,19,6],[18,2,18,6],[17,2,17,6],[16,2,16,6],[10,0,10,7],[12,0,12,7]]}
[]
[null,null,null,null,null,"提出年月日"]
["［　資　金　分　配　団　体　名　］"]
[]
[]
[null,null,null,null,"（実行団体名）"]
[null,null,null,null,"（代表者役職名）"]
[null,null,null,null,"（氏名）　　　　　　　　　　　　",null,null,"印"]
[]
[]
["経費精算報告書"]
[]
["［　資　金　分　配　団　体　名　］　と　［　　実　　行　　団　　体　　名　　］との間で締結した資金提供契約書に基づき、精算金額を下記の通りご報告いたします。\n直接事業費、管理的経費、評価関連経費の各経費の実績額等の内訳については、添付書類の通りとなります。"]
[]
[null,null,null,null,"記"]
[]
[null,"資金提供契約日"]
[null,"事業名"]
[null,"助成金受領額",{"$f":"IF('様式1 総括表'!D5=0,\"0円\",'様式1 総括表'!D5)","v":"0円"}]
[null,"精算金額",{"$f":"IF('様式1 総括表'!F5=0,\"0円\",'様式1 総括表'!F5)","v":"0円"}]
[]
[]
["添付書類："]
["（１）精算様式１ ",null,null,"総括表"]
["（２）精算様式２　",null,null,"経費集計表"]
["（３）精算様式３　",null,null,"収支管理簿"]
["（４）精算様式４　",null,null,"現金出納帳"]
["（５）精算添付書類１　",null,null,"指定口座の通帳の写し"]
["（６）精算添付書類２",null,null,"支払証拠書類の写し"]
[]
[null,null,null,null,null,null,null,"以　上"]

{"sheet":"様式1 総括表","index":2,"n_rows":22,"n_cols":7,"rows_kept":22,"cut":false,"hidden":false,"merged":[[7,6,8,6],[9,0,13,0],[9,1,13,1],[14,0,17,0],[14,1,15,1]]}
["精算様式１. 総括表"]
[]
["集計"]
[null,null,null,"①助成金受領額","②確定助成額","①-②残額"]
["事業完了時の精算\n（2021年度から2024年度累計）",null,null,null,{"$f":"G18","v":0},{"$f":"D5-E5","v":0}]
[]
["総事業費内訳"]
[null,null,null,"事業費",null,"評価関連経費","合計"]
[null,null,null,"直接事業費","管理的経費"]
["年度末の\n精算報告","実績額",{"$f":"リスト!C2","v":2021},{"$f":"SUMIFS('様式3 収支管理簿'!$C:$C,'様式3 収支管理簿'!$G:$G,リスト!$A$2,'様式3 収支管理簿'!$A:$A,リスト!$C$2)+SUMIFS('様式4 現金出納帳'!$C:$C,'様式4 現金出納帳'!$G:$G,リスト!$A$2,'様式4 現金出納帳'!$A:$A,リスト!$C$2)","v":0},{"$f":"SUMIFS('様式3 収支管理簿'!$C:$C,'様式3 収支管理簿'!$G:$G,リスト!$A$3,'様式3 収支管理簿'!$A:$A,リスト!$C$2)+SUMIFS('様式4 現金出納帳'!$C:$C,'様式4 現金出納帳'!$G:$G,リスト!$A$3,'様式4 現金出納帳'!$A:$A,リスト!$C$2)","v":0},{"$f":"SUMIFS('様式3 収支管理簿'!$C:$C,'様式3 収支管理簿'!$G:$G,リスト!$A$4,'様式3 収支管理簿'!$A:$A,リスト!$C$2)+SUMIFS('様式4 現金出納帳'!$C:$C,'様式4 現金出納帳'!$G:$G,リスト!$A$4,'様式4 現金出納帳'!$A:$A,リスト!$C$2)","v":0},{"$f":"SUM(D10:F10)","v":0}]
[null,null,{"$f":"リスト!C3","v":2022},{"$f":"SUMIFS('様式3 収支管理簿'!$C:$C,'様式3 収支管理簿'!$G:$G,リスト!$A$2,'様式3 収支管理簿'!$A:$A,リスト!$C$3)+SUMIFS('様式4 現金出納帳'!$C:$C,'様式4 現金出納帳'!$G:$G,リスト!$A$2,'様式4 現金出納帳'!$A:$A,リスト!$C$3)","v":0},{"$f":"SUMIFS('様式3 収支管理簿'!$C:$C,'様式3 収支管理簿'!$G:$G,リスト!$A$3,'様式3 収支管理簿'!$A:$A,リスト!$C$3)+SUMIFS('様式4 現金出納帳'!$C:$C,'様式4 現金出納帳'!$G:$G,リスト!$A$3,'様式4 現金出納帳'!$A:$A,リスト!$C$3)","v":0},{"$f":"SUMIFS('様式3 収支管理簿'!$C:$C,'様式3 収支管理簿'!$G:$G,リスト!$A$4,'様式3 収支管理簿'!$A:$A,リスト!$C$3)+SUMIFS('様式4 現金出納帳'!$C:$C,'様式4 現金出納帳'!$G:$G,リスト!$A$4,'様式4 現金出納帳'!$A:$A,リスト!$C$3)","v":0},0]
[null,null,{"$f":"リスト!C4","v":2023},{"$f":"SUMIFS('様式3 収支管理簿'!$C:$C,'様式3 収支管理簿'!$G:$G,リスト!$A$2,'様式3 収支管理簿'!$A:$A,リスト!$C$4)+SUMIFS('様式4 現金出納帳'!$C:$C,'様式4 現金出納帳'!$G:$G,リスト!$A$2,'様式4 現金出納帳'!$A:$A,リスト!$C$4)","v":0},{"$f":"SUMIFS('様式3 収支管理簿'!$C:$C,'様式3 収支管理簿'!$G:$G,リスト!$A$3,'様式3 収支管理簿'!$A:$A,リスト!$C$4)+SUMIFS('様式4 現金出納帳'!$C:$C,'様式4 現金出納帳'!$G:$G,リスト!$A$3,'様式4 現金出納帳'!$A:$A,リスト!$C$4)","v":0},{"$f":"SUMIFS('様式3 収支管理簿'!$C:$C,'様式3 収支管理簿'!$G:$G,リスト!$A$4,'様式3 収支管理簿'!$A:$A,リスト!$C$4)+SUMIFS('様式4 現金出納帳'!$C:$C,'様式4 現金出納帳'!$G:$G,リスト!$A$4,'様式4 現金出納帳'!$A:$A,リスト!$C$4)","v":0},0]
[null,null,{"$f":"リスト!C5","v":2024},{"$f":"SUMIFS('様式3 収支管理簿'!$C:$C,'様式3 収支管理簿'!$G:$G,リスト!$A$2,'様式3 収支管理簿'!$A:$A,リスト!$C$5)+SUMIFS('様式4 現金出納帳'!$C:$C,'様式4 現金出納帳'!$G:$G,リスト!$A$2,'様式4 現金出納帳'!$A:$A,リスト!$C$5)","v":0},{"$f":"SUMIFS('様式3 収支管理簿'!$C:$C,'様式3 収支管理簿'!$G:$G,リスト!$A$3,'様式3 収支管理簿'!$A:$A,リスト!$C$5)+SUMIFS('様式4 現金出納帳'!$C:$C,'様式4 現金出納帳'!$G:$G,リスト!$A$3,'様式4 現金出納帳'!$A:$A,リスト!$C$5)","v":0},{"$f":"SUMIFS('様式3 収支管理簿'!$C:$C,'様式3 収支管理簿'!$G:$G,リスト!$A$4,'様式3 収支管理簿'!$A:$A,リスト!$C$5)+SUMIFS('様式4 現金出納帳'!$C:$C,'様式4 現金出納帳'!$G:$G,リスト!$A$4,'様式4 現金出納帳'!$A:$A,リスト!$C$5)","v":0},0]
[null,null,"小計 (A)",{"$f":"SUM(D10:D13)","v":0},{"$f":"SUM(E10:E13)","v":0},0,0]
["事業完了時の精算","資金計画","助成金 (B)",null,null,null,0]
[null,null,"自己資金 (C)",null,null,"-",0]
[null,"執行率","(D=A/(B+C))",{"$f":"IFERROR(IF(D14/(D15+D16)>=1,1,D14/(D15+D16)),\"\")","v":""},{"$f":"IFERROR(IF(E14/(E15+E16)>=1,1,E14/(E15+E16)),\"\")","v":""},"-","-"]
[null,"確定助成額","(E=B×D)",{"$f":"IFERROR(ROUND(D15*D17,0),\"\")","v":""},{"$f":"IFERROR(ROUND(E15*E17,0),\"\")","v":""},{"$f":"IF(F14>F15,F15,F14)","v":0},{"$f":"SUM(D18:F18)","v":0}]
[]
[]
["【チェック欄】","経費集計表との整合","資金計画",{"$f":"D15+D16-'様式2 経費集計表'!$C$26","v":0},{"$f":"E15+E16-'様式2 経費集計表'!$C$47","v":0},{"$f":"F15-'様式2 経費集計表'!$C$68","v":0},"※ゼロであればOK（ゼロではない場合、経費集計表の会計科目・資金計画値に誤りがある可能性あり）"]
[null,null,"実績額",{"$f":"D14-'様式2 経費集計表'!D26","v":0},{"$f":"E14-'様式2 経費集計表'!D47","v":0},{"$f":"F14-'様式2 経費集計表'!D68","v":0},"※ゼロであればOK（ゼロではない場合、経費集計表の会計科目に誤りがある可能性あり）"]

{"sheet":"様式2 経費集計表","index":3,"n_rows":68,"n_cols":10,"rows_kept":68,"cut":false,"hidden":false,"merged":[[3,2,4,2],[3,8,4,8],[3,9,4,9]]}
["精算様式2. 経費集計表"]
[]
[null,null,null,null,null,null,null,null,null,"＊会計科目が多い場合、他の行をコピーして行を増やしてお使いください。"]
["目的区分","会計科目","資金計画値","実績額",null,null,null,null,"消化率","科目間流用の理由等"]
[null,null,null,null,{"$f":"リスト!C2","v":2021},{"$f":"リスト!C3","v":2022},{"$f":"リスト!C4","v":2023},{"$f":"テーブル1_2446[[#This Row],[年度]]","v":2024}]
[{"$f":"リスト!A2","v":"直接事業費"},null,null,{"$f":"SUM(E6:H6)","v":0},{"$f":"SUMIFS('様式3 収支管理簿'!$C:$C,'様式3 収支管理簿'!$G:$G,'様式2 経費集計表'!$A$6,'様式3 収支管理簿'!$H:$H,'様式2 経費集計表'!$B6,'様式3 収支管理簿'!$A:$A,リスト!$C$2)+SUMIFS('様式4 現金出納帳'!$C:$C,'様式4 現金出納帳'!$G:$G,'様式2 経費集計表'!$A$6,'様式4 現金出納帳'!$H:$H,'様式2 経費集計表'!$B6,'様式4 現金出納帳'!$A:$A,リスト!$C$2)","v":0},{"$f":"SUMIFS('様式3 収支管理簿'!$C:$C,'様式3 収支管理簿'!$G:$G,'様式2 経費集計表'!$A$6,'様式3 収支管理簿'!$H:$H,'様式2 経費集計表'!$B6,'様式3 収支管理簿'!$A:$A,リスト!$C$3)+SUMIFS('様式4 現金出納帳'!$C:$C,'様式4 現金出納帳'!$G:$G,'様式2 経費集計表'!$A$6,'様式4 現金出納帳'!$H:$H,'様式2 経費集計表'!$B6,'様式4 現金出納帳'!$A:$A,リスト!$C$3)","v":0},{"$f":"SUMIFS('様式3 収支管理簿'!$C:$C,'様式3 収支管理簿'!$G:$G,'様式2 経費集計表'!$A$6,'様式3 収支管理簿'!$H:$H,'様式2 経費集計表'!$B6,'様式3 収支管理簿'!$A:$A,リスト!$C$4)+SUMIFS('様式4 現金出納帳'!$C:$C,'様式4 現金出納帳'!$G:$G,'様式2 経費集計表'!$A$6,'様式4 現金出納帳'!$H:$H,'様式2 経費集計表'!$B6,'様式4 現金出納帳'!$A:$A,リスト!$C$4)","v":0},{"$f":"SUMIFS('様式3 収支管理簿'!$C:$C,'様式3 収支管理簿'!$G:$G,'様式2 経費集計表'!$A$6,'様式3 収支管理簿'!$H:$H,'様式2 経費集計表'!$B6,'様式3 収支管理簿'!$A:$A,リスト!$C$5)+SUMIFS('様式4 現金出納帳'!$C:$C,'様式4 現金出納帳'!$G:$G,'様式2 経費集計表'!$A$6,'様式4 現金出納帳'!$H:$H,'様式2 経費集計表'!$B6,'様式4 現金出納帳'!$A:$A,リスト!$C$5)","v":0},{"$f":"IF(B6=\"\",\"\",D6/C6)","v":""}]
[null,null,null,0,{"$f":"SUMIFS('様式3 収支管理簿'!$C:$C,'様式3 収支管理簿'!$G:$G,'様式2 経費集計表'!$A$6,'様式3 収支管理簿'!$H:$H,'様式2 経費集計表'!$B7,'様式3 収支管理簿'!$A:$A,リスト!$C$2)+SUMIFS('様式4 現金出納帳'!$C:$C,'様式4 現金出納帳'!$G:$G,'様式2 経費集計表'!$A$6,'様式4 現金出納帳'!$H:$H,'様式2 経費集計表'!$B7,'様式4 現金出納帳'!$A:$A,リスト!$C$2)","v":0},{"$f":"SUMIFS('様式3 収支管理簿'!$C:$C,'様式3 収支管理簿'!$G:$G,'様式2 経費集計表'!$A$6,'様式3 収支管理簿'!$H:$H,'様式2 経費集計表'!$B7,'様式3 収支管理簿'!$A:$A,リスト!$C$3)+SUMIFS('様式4 現金出納帳'!$C:$C,'様式4 現金出納帳'!$G:$G,'様式2 経費集計表'!$A$6,'様式4 現金出納帳'!$H:$H,'様式2 経費集計表'!$B7,'様式4 現金出納帳'!$A:$A,リスト!$C$3)","v":0},{"$f":"SUMIFS('様式3 収支管理簿'!$C:$C,'様式3 収支管理簿'!$G:$G,'様式2 経費集計表'!$A$6,'様式3 収支管理簿'!$H:$H,'様式2 経費集計表'!$B7,'様式3 収支管理簿'!$A:$A,リスト!$C$4)+SUMIFS('様式4 現金出納帳'!$C:$C,'様式4 現金出納帳'!$G:$G,'様式2 経費集計表'!$A$6,'様式4 現金出納帳'!$H:$H,'様式2 経費集計表'!$B7,'様式4 現金出納帳'!$A:$A,リスト!$C$4)","v":0},{"$f":"SUMIFS('様式3 収支管理簿'!$C:$C,'様式3 収支管理簿'!$G:$G,'様式2 経費集計表'!$A$6,'様式3 収支管理簿'!$H:$H,'様式2 経費集計表'!$B7,'様式3 収支管理簿'!$A:$A,リスト!$C$5)+SUMIFS('様式4 現金出納帳'!$C:$C,'様式4 現金出納帳'!$G:$G,'様式2 経費集計表'!$A$6,'様式4 現金出納帳'!$H:$H,'様式2 経費集計表'!$B7,'様式4 現金出納帳'!$A:$A,リスト!$C$5)","v":0},{"$f":"IF(B7=\"\",\"\",D7/C7)","v":""}]
[null,null,null,0,{"$f":"SUMIFS('様式3 収支管理簿'!$C:$C,'様式3 収支管理簿'!$G:$G,'様式2 経費集計表'!$A$6,'様式3 収支管理簿'!$H:$H,'様式2 経費集計表'!$B8,'様式3 収支管理簿'!$A:$A,リスト!$C$2)+SUMIFS('様式4 現金出納帳'!$C:$C,'様式4 現金出納帳'!$G:$G,'様式2 経費集計表'!$A$6,'様式4 現金出納帳'!$H:$H,'様式2 経費集計表'!$B8,'様式4 現金出納帳'!$A:$A,リスト!$C$2)","v":0},{"$f":"SUMIFS('様式3 収支管理簿'!$C:$C,'様式3 収支管理簿'!$G:$G,'様式2 経費集計表'!$A$6,'様式3 収支管理簿'!$H:$H,'様式2 経費集計表'!$B8,'様式3 収支管理簿'!$A:$A,リスト!$C$3)+SUMIFS('様式4 現金出納帳'!$C:$C,'様式4 現金出納帳'!$G:$G,'様式2 経費集計表'!$A$6,'様式4 現金出納帳'!$H:$H,'様式2 経費集計表'!$B8,'様式4 現金出納帳'!$A:$A,リスト!$C$3)","v":0},{"$f":"SUMIFS('様式3 収支管理簿'!$C:$C,'様式3 収支管理簿'!$G:$G,'様式2 経費集計表'!$A$6,'様式3 収支管理簿'!$H:$H,'様式2 経費集計表'!$B8,'様式3 収支管理簿'!$A:$A,リスト!$C$4)+SUMIFS('様式4 現金出納帳'!$C:$C,'様式4 現金出納帳'!$G:$G,'様式2 経費集計表'!$A$6,'様式4 現金出納帳'!$H:$H,'様式2 経費集計表'!$B8,'様式4 現金出納帳'!$A:$A,リスト!$C$4)","v":0},{"$f":"SUMIFS('様式3 収支管理簿'!$C:$C,'様式3 収支管理簿'!$G:$G,'様式2 経費集計表'!$A$6,'様式3 収支管理簿'!$H:$H,'様式2 経費集計表'!$B8,'様式3 収支管理簿'!$A:$A,リスト!$C$5)+SUMIFS('様式4 現金出納帳'!$C:$C,'様式4 現金出納帳'!$G:$G,'様式2 経費集計表'!$A$6,'様式4 現金出納帳'!$H:$H,'様式2 経費集計表'!$B8,'様式4 現金出納帳'!$A:$A,リスト!$C$5)","v":0},""]
[null,null,null,0,{"$f":"SUMIFS('様式3 収支管理簿'!$C:$C,'様式3 収支管理簿'!$G:$G,'様式2 経費集計表'!$A$6,'様式3 収支管理簿'!$H:$H,'様式2 経費集計表'!$B9,'様式3 収支管理簿'!$A:$A,リスト!$C$2)+SUMIFS('様式4 現金出納帳'!$C:$C,'様式4 現金出納帳'!$G:$G,'様式2 経費集計表'!$A$6,'様式4 現金出納帳'!$H:$H,'様式2 経費集計表'!$B9,'様式4 現金出納帳'!$A:$A,リスト!$C$2)","v":0},{"$f":"SUMIFS('様式3 収支管理簿'!$C:$C,'様式3 収支管理簿'!$G:$G,'様式2 経費集計表'!$A$6,'様式3 収支管理簿'!$H:$H,'様式2 経費集計表'!$B9,'様式3 収支管理簿'!$A:$A,リスト!$C$3)+SUMIFS('様式4 現金出納帳'!$C:$C,'様式4 現金出納帳'!$G:$G,'様式2 経費集計表'!$A$6,'様式4 現金出納帳'!$H:$H,'様式2 経費集計表'!$B9,'様式4 現金出納帳'!$A:$A,リスト!$C$3)","v":0},{"$f":"SUMIFS('様式3 収支管理簿'!$C:$C,'様式3 収支管理簿'!$G:$G,'様式2 経費集計表'!$A$6,'様式3 収支管理簿'!$H:$H,'様式2 経費集計表'!$B9,'様式3 収支管理簿'!$A:$A,リスト!$C$4)+SUMIFS('様式4 現金出納帳'!$C:$C,'様式4 現金出納帳'!$G:$G,'様式2 経費集計表'!$A$6,'様式4 現金出納帳'!$H:$H,'様式2 経費集計表'!$B9,'様式4 現金出納帳'!$A:$A,リスト!$C$4)","v":0},{"$f":"SUMIFS('様式3 収支管理簿'!$C:$C,'様式3 収支管理簿'!$G:$G,'様式2 経費集計表'!$A$6,'様式3 収支管理簿'!$H:$H,'様式2 経費集計表'!$B9,'様式3 収支管理簿'!$A:$A,リスト!$C$5)+SUMIFS('様式4 現金出納帳'!$C:$C,'様式4 現金出納帳'!$G:$G,'様式2 経費集計表'!$A$6,'様式4 現金出納帳'!$H:$H,'様式2 経費集計表'!$B9,'様式4 現金出納帳'!$A:$A,リスト!$C$5)","v":0},""]
[null,null,null,0,{"$f":"SUMIFS('様式3 収支管理簿'!$C:$C,'様式3 収支管理簿'!$G:$G,'様式2 経費集計表'!$A$6,'様式3 収支管理簿'!$H:$H,'様式2 経費集計表'!$B10,'様式3 収支管理簿'!$A:$A,リスト!$C$2)+SUMIFS('様式4 現金出納帳'!$C:$C,'様式4 現金出納帳'!$G:$G,'様式2 経費集計表'!$A$6,'様式4 現金出納帳'!$H:$H,'様式2 経費集計表'!$B10,'様式4 現金出納帳'!$A:$A,リスト!$C$2)","v":0},{"$f":"SUMIFS('様式3 収支管理簿'!$C:$C,'様式3 収支管理簿'!$G:$G,'様式2 経費集計表'!$A$6,'様式3 収支管理簿'!$H:$H,'様式2 経費集計表'!$B10,'様式3 収支管理簿'!$A:$A,リスト!$C$3)+SUMIFS('様式4 現金出納帳'!$C:$C,'様式4 現金出納帳'!$G:$G,'様式2 経費集計表'!$A$6,'様式4 現金出納帳'!$H:$H,'様式2 経費集計表'!$B10,'様式4 現金出納帳'!$A:$A,リスト!$C$3)","v":0},{"$f":"SUMIFS('様式3 収支管理簿'!$C:$C,'様式3 収支管理簿'!$G:$G,'様式2 経費集計表'!$A$6,'様式3 収支管理簿'!$H:$H,'様式2 経費集計表'!$B10,'様式3 収支管理簿'!$A:$A,リスト!$C$4)+SUMIFS('様式4 現金出納帳'!$C:$C,'様式4 現金出納帳'!$G:$G,'様式2 経費集計表'!$A$6,'様式4 現金出納帳'!$H:$H,'様式2 経費集計表'!$B10,'様式4 現金出納帳'!$A:$A,リスト!$C$4)","v":0},{"$f":"SUMIFS('様式3 収支管理簿'!$C:$C,'様式3 収支管理簿'!$G:$G,'様式2 経費集計表'!$A$6,'様式3 収支管理簿'!$H:$H,'様式2 経費集計表'!$B10,'様式3 収支管理簿'!$A:$A,リスト!$C$5)+SUMIFS('様式4 現金出納帳'!$C:$C,'様式4 現金出納帳'!$G:$G,'様式2 経費集計表'!$A$6,'様式4 現金出納帳'!$H:$H,'様式2 経費集計表'!$B10,'様式4 現金出納帳'!$A:$A,リスト!$C$5)","v":0},""]
[null,null,null,0,{"$f":"SUMIFS('様式3 収支管理簿'!$C:$C,'様式3 収支管理簿'!$G:$G,'様式2 経費集計表'!$A$6,'様式3 収支管理簿'!$H:$H,'様式2 経費集計表'!$B11,'様式3 収支管理簿'!$A:$A,リスト!$C$2)+SUMIFS('様式4 現金出納帳'!$C:$C,'様式4 現金出納帳'!$G:$G,'様式2 経費集計表'!$A$6,'様式4 現金出納帳'!$H:$H,'様式2 経費集計表'!$B11,'様式4 現金出納帳'!$A:$A,リスト!$C$2)","v":0},{"$f":"SUMIFS('様式3 収支管理簿'!$C:$C,'様式3 収支管理簿'!$G:$G,'様式2 経費集計表'!$A$6,'様式3 収支管理簿'!$H:$H,'様式2 経費集計表'!$B11,'様式3 収支管理簿'!$A:$A,リスト!$C$3)+SUMIFS('様式4 現金出納帳'!$C:$C,'様式4 現金出納帳'!$G:$G,'様式2 経費集計表'!$A$6,'様式4 現金出納帳'!$H:$H,'様式2 経費集計表'!$B11,'様式4 現金出納帳'!$A:$A,リスト!$C$3)","v":0},{"$f":"SUMIFS('様式3 収支管理簿'!$C:$C,'様式3 収支管理簿'!$G:$G,'様式2 経費集計表'!$A$6,'様式3 収支管理簿'!$H:$H,'様式2 経費集計表'!$B11,'様式3 収支管理簿'!$A:$A,リスト!$C$4)+SUMIFS('様式4 現金出納帳'!$C:$C,'様式4 現金出納帳'!$G:$G,'様式2 経費集計表'!$A$6,'様式4 現金出納帳'!$H:$H,'様式2 経費集計表'!$B11,'様式4 現金出納帳'!$A:$A,リスト!$C$4)","v":0},{"$f":"SUMIFS('様式3 収支管理簿'!$C:$C,'様式3 収支管理簿'!$G:$G,'様式2 経費集計表'!$A$6,'様式3 収支管理簿'!$H:$H,'様式2 経費集計表'!$B11,'様式3 収支管理簿'!$A:$A,リスト!$C$5)+SUMIFS('様式4 現金出納帳'!$C:$C,'様式4 現金出納帳'!$G:$G,'様式2 経費集計表'!$A$6,'様式4 現金出納帳'!$H:$H,'様式2 経費集計表'!$B11,'様式4 現金出納帳'!$A:$A,リスト!$C$5)","v":0},""]
[null,null,null,{"$f":"SUM(E12:H12)","v":0},{"$f":"SUMIFS('様式3 収支管理簿'!$C:$C,'様式3 収支管理簿'!$G:$G,'様式2 経費集計表'!$A$6,'様式3 収支管理簿'!$H:$H,'様式2 経費集計表'!$B12,'様式3 収支管理簿'!$A:$A,リスト!$C$2)+SUMIFS('様式4 現金出納帳'!$C:$C,'様式4 現金出納帳'!$G:$G,'様式2 経費集計表'!$A$6,'様式4 現金出納帳'!$H:$H,'様式2 経費集計表'!$B12,'様式4 現金出納帳'!$A:$A,リスト!$C$2)","v":0},{"$f":"SUMIFS('様式3 収支管理簿'!$C:$C,'様式3 収支管理簿'!$G:$G,'様式2 経費集計表'!$A$6,'様式3 収支管理簿'!$H:$H,'様式2 経費集計表'!$B12,'様式3 収支管理簿'!$A:$A,リスト!$C$3)+SUMIFS('様式4 現金出納帳'!$C:$C,'様式4 現金出納帳'!$G:$G,'様式2 経費集計表'!$A$6,'様式4 現金出納帳'!$H:$H,'様式2 経費集計表'!$B12,'様式4 現金出納帳'!$A:$A,リスト!$C$3)","v":0},{"$f":"SUMIFS('様式3 収支管理簿'!$C:$C,'様式3 収支管理簿'!$G:$G,'様式2 経費集計表'!$A$6,'様式3 収支管理簿'!$H:$H,'様式2 経費集計表'!$B12,'様式3 収支管理簿'!$A:$A,リスト!$C$4)+SUMIFS('様式4 現金出納帳'!$C:$C,'様式4 現金出納帳'!$G:$G,'様式2 経費集計表'!$A$6,'様式4 現金出納帳'!$H:$H,'様式2 経費集計表'!$B12,'様式4 現金出納帳'!$A:$A,リスト!$C$4)","v":0},null,""]
[null,null,null,0,{"$f":"SUMIFS('様式3 収支管理簿'!$C:$C,'様式3 収支管理簿'!$G:$G,'様式2 経費集計表'!$A$6,'様式3 収支管理簿'!$H:$H,'様式2 経費集計表'!$B13,'様式3 収支管理簿'!$A:$A,リスト!$C$2)+SUMIFS('様式4 現金出納帳'!$C:$C,'様式4 現金出納帳'!$G:$G,'様式2 経費集計表'!$A$6,'様式4 現金出納帳'!$H:$H,'様式2 経費集計表'!$B13,'様式4 現金出納帳'!$A:$A,リスト!$C$2)","v":0},{"$f":"SUMIFS('様式3 収支管理簿'!$C:$C,'様式3 収支管理簿'!$G:$G,'様式2 経費集計表'!$A$6,'様式3 収支管理簿'!$H:$H,'様式2 経費集計表'!$B13,'様式3 収支管理簿'!$A:$A,リスト!$C$3)+SUMIFS('様式4 現金出納帳'!$C:$C,'様式4 現金出納帳'!$G:$G,'様式2 経費集計表'!$A$6,'様式4 現金出納帳'!$H:$H,'様式2 経費集計表'!$B13,'様式4 現金出納帳'!$A:$A,リスト!$C$3)","v":0},{"$f":"SUMIFS('様式3 収支管理簿'!$C:$C,'様式3 収支管理簿'!$G:$G,'様式2 経費集計表'!$A$6,'様式3 収支管理簿'!$H:$H,'様式2 経費集計表'!$B13,'様式3 収支管理簿'!$A:$A,リスト!$C$4)+SUMIFS('様式4 現金出納帳'!$C:$C,'様式4 現金出納帳'!$G:$G,'様式2 経費集計表'!$A$6,'様式4 現金出納帳'!$H:$H,'様式2 経費集計表'!$B13,'様式4 現金出納帳'!$A:$A,リスト!$C$4)","v":0},{"$f":"SUMIFS('様式3 収支管理簿'!$C:$C,'様式3 収支管理簿'!$G:$G,'様式2 経費集計表'!$A$6,'様式3 収支管理簿'!$H:$H,'様式2 経費集計表'!$B13,'様式3 収支管理簿'!$A:$A,リスト!$C$5)+SUMIFS('様式4 現金出納帳'!$C:$C,'様式4 現金出納帳'!$G:$G,'様式2 経費集計表'!$A$6,'様式4 現金出納帳'!$H:$H,'様式2 経費集計表'!$B13,'様式4 現金出納帳'!$A:$A,リスト!$C$5)","v":0},""]
[null,null,null,0,{"$f":"SUMIFS('様式3 収支管理簿'!$C:$C,'様式3 収支管理簿'!$G:$G,'様式2 経費集計表'!$A$6,'様式3 収支管理簿'!$H:$H,'様式2 経費集計表'!$B14,'様式3 収支管理簿'!$A:$A,リスト!$C$2)+SUMIFS('様式4 現金出納帳'!$C:$C,'様式4 現金出納帳'!$G:$G,'様式2 経費集計表'!$A$6,'様式4 現金出納帳'!$H:$H,'様式2 経費集計表'!$B14,'様式4 現金出納帳'!$A:$A,リスト!$C$2)","v":0},{"$f":"SUMIFS('様式3 収支管理簿'!$C:$C,'様式3 収支管理簿'!$G:$G,'様式2 経費集計表'!$A$6,'様式3 収支管理簿'!$H:$H,'様式2 経費集計表'!$B14,'様式3 収支管理簿'!$A:$A,リスト!$C$3)+SUMIFS('様式4 現金出納帳'!$C:$C,'様式4 現金出納帳'!$G:$G,'様式2 経費集計表'!$A$6,'様式4 現金出納帳'!$H:$H,'様式2 経費集計表'!$B14,'様式4 現金出納帳'!$A:$A,リスト!$C$3)","v":0},{"$f":"SUMIFS('様式3 収支管理簿'!$C:$C,'様式3 収支管理簿'!$G:$G,'様式2 経費集計表'!$A$6,'様式3 収支管理簿'!$H:$H,'様式2 経費集計表'!$B14,'様式3 収支管理簿'!$A:$A,リスト!$C$4)+SUMIFS('様式4 現金出納帳'!$C:$C,'様式4 現金出納帳'!$G:$G,'様式2 経費集計表'!$A$6,'様式4 現金出納帳'!$H:$H,'様式2 経費集計表'!$B14,'様式4 現金出納帳'!$A:$A,リスト!$C$4)","v":0},{"$f":"SUMIFS('様式3 収支管理簿'!$C:$C,'様式3 収支管理簿'!$G:$G,'様式2 経費集計表'!$A$6,'様式3 収支管理簿'!$H:$H,'様式2 経費集計表'!$B14,'様式3 収支管理簿'!$A:$A,リスト!$C$5)+SUMIFS('様式4 現金出納帳'!$C:$C,'様式4 現金出納帳'!$G:$G,'様式2 経費集計表'!$A$6,'様式4 現金出納帳'!$H:$H,'様式2 経費集計表'!$B14,'様式4 現金出納帳'!$A:$A,リスト!$C$5)","v":0},""]
[null,null,null,0,{"$f":"SUMIFS('様式3 収支管理簿'!$C:$C,'様式3 収支管理簿'!$G:$G,'様式2 経費集計表'!$A$6,'様式3 収支管理簿'!$H:$H,'様式2 経費集計表'!$B15,'様式3 収支管理簿'!$A:$A,リスト!$C$2)+SUMIFS('様式4 現金出納帳'!$C:$C,'様式4 現金出納帳'!$G:$G,'様式2 経費集計表'!$A$6,'様式4 現金出納帳'!$H:$H,'様式2 経費集計表'!$B15,'様式4 現金出納帳'!$A:$A,リスト!$C$2)","v":0},{"$f":"SUMIFS('様式3 収支管理簿'!$C:$C,'様式3 収支管理簿'!$G:$G,'様式2 経費集計表'!$A$6,'様式3 収支管理簿'!$H:$H,'様式2 経費集計表'!$B15,'様式3 収支管理簿'!$A:$A,リスト!$C$3)+SUMIFS('様式4 現金出納帳'!$C:$C,'様式4 現金出納帳'!$G:$G,'様式2 経費集計表'!$A$6,'様式4 現金出納帳'!$H:$H,'様式2 経費集計表'!$B15,'様式4 現金出納帳'!$A:$A,リスト!$C$3)","v":0},{"$f":"SUMIFS('様式3 収支管理簿'!$C:$C,'様式3 収支管理簿'!$G:$G,'様式2 経費集計表'!$A$6,'様式3 収支管理簿'!$H:$H,'様式2 経費集計表'!$B15,'様式3 収支管理簿'!$A:$A,リスト!$C$4)+SUMIFS('様式4 現金出納帳'!$C:$C,'様式4 現金出納帳'!$G:$G,'様式2 経費集計表'!$A$6,'様式4 現金出納帳'!$H:$H,'様式2 経費集計表'!$B15,'様式4 現金出納帳'!$A:$A,リスト!$C$4)","v":0},{"$f":"SUMIFS('様式3 収支管理簿'!$C:$C,'様式3 収支管理簿'!$G:$G,'様式2 経費集計表'!$A$6,'様式3 収支管理簿'!$H:$H,'様式2 経費集計表'!$B15,'様式3 収支管理簿'!$A:$A,リスト!$C$5)+SUMIFS('様式4 現金出納帳'!$C:$C,'様式4 現金出納帳'!$G:$G,'様式2 経費集計表'!$A$6,'様式4 現金出納帳'!$H:$H,'様式2 経費集計表'!$B15,'様式4 現金出納帳'!$A:$A,リスト!$C$5)","v":0},""]
[null,null,null,0,{"$f":"SUMIFS('様式3 収支管理簿'!$C:$C,'様式3 収支管理簿'!$G:$G,'様式2 経費集計表'!$A$6,'様式3 収支管理簿'!$H:$H,'様式2 経費集計表'!$B16,'様式3 収支管理簿'!$A:$A,リスト!$C$2)+SUMIFS('様式4 現金出納帳'!$C:$C,'様式4 現金出納帳'!$G:$G,'様式2 経費集計表'!$A$6,'様式4 現金出納帳'!$H:$H,'様式2 経費集計表'!$B16,'様式4 現金出納帳'!$A:$A,リスト!$C$2)","v":0},{"$f":"SUMIFS('様式3 収支管理簿'!$C:$C,'様式3 収支管理簿'!$G:$G,'様式2 経費集計表'!$A$6,'様式3 収支管理簿'!$H:$H,'様式2 経費集計表'!$B16,'様式3 収支管理簿'!$A:$A,リスト!$C$3)+SUMIFS('様式4 現金出納帳'!$C:$C,'様式4 現金出納帳'!$G:$G,'様式2 経費集計表'!$A$6,'様式4 現金出納帳'!$H:$H,'様式2 経費集計表'!$B16,'様式4 現金出納帳'!$A:$A,リスト!$C$3)","v":0},{"$f":"SUMIFS('様式3 収支管理簿'!$C:$C,'様式3 収支管理簿'!$G:$G,'様式2 経費集計表'!$A$6,'様式3 収支管理簿'!$H:$H,'様式2 経費集計表'!$B16,'様式3 収支管理簿'!$A:$A,リスト!$C$4)+SUMIFS('様式4 現金出納帳'!$C:$C,'様式4 現金出納帳'!$G:$G,'様式2 経費集計表'!$A$6,'様式4 現金出納帳'!$H:$H,'様式2 経費集計表'!$B16,'様式4 現金出納帳'!$A:$A,リスト!$C$4)","v":0},{"$f":"SUMIFS('様式3 収支管理簿'!$C:$C,'様式3 収支管理簿'!$G:$G,'様式2 経費集計表'!$A$6,'様式3 収支管理簿'!$H:$H,'様式2 経費集計表'!$B16,'様式3 収支管理簿'!$A:$A,リスト!$C$5)+SUMIFS('様式4 現金出納帳'!$C:$C,'様式4 現金出納帳'!$G:$G,'様式2 経費集計表'!$A$6,'様式4 現金出納帳'!$H:$H,'様式2 経費集計表'!$B16,'様式4 現金出納帳'!$A:$A,リスト!$C$5)","v":0},""]
[null,null,null,0,{"$f":"SUMIFS('様式3 収支管理簿'!$C:$C,'様式3 収支管理簿'!$G:$G,'様式2 経費集計表'!$A$6,'様式3 収支管理簿'!$H:$H,'様式2 経費集計表'!$B17,'様式3 収支管理簿'!$A:$A,リスト!$C$2)+SUMIFS('様式4 現金出納帳'!$C:$C,'様式4 現金出納帳'!$G:$G,'様式2 経費集計表'!$A$6,'様式4 現金出納帳'!$H:$H,'様式2 経費集計表'!$B17,'様式4 現金出納帳'!$A:$A,リスト!$C$2)","v":0},{"$f":"SUMIFS('様式3 収支管理簿'!$C:$C,'様式3 収支管理簿'!$G:$G,'様式2 経費集計表'!$A$6,'様式3 収支管理簿'!$H:$H,'様式2 経費集計表'!$B17,'様式3 収支管理簿'!$A:$A,リスト!$C$3)+SUMIFS('様式4 現金出納帳'!$C:$C,'様式4 現金出納帳'!$G:$G,'様式2 経費集計表'!$A$6,'様式4 現金出納帳'!$H:$H,'様式2 経費集計表'!$B17,'様式4 現金出納帳'!$A:$A,リスト!$C$3)","v":0},{"$f":"SUMIFS('様式3 収支管理簿'!$C:$C,'様式3 収支管理簿'!$G:$G,'様式2 経費集計表'!$A$6,'様式3 収支管理簿'!$H:$H,'様式2 経費集計表'!$B17,'様式3 収支管理簿'!$A:$A,リスト!$C$4)+SUMIFS('様式4 現金出納帳'!$C:$C,'様式4 現金出納帳'!$G:$G,'様式2 経費集計表'!$A$6,'様式4 現金出納帳'!$H:$H,'様式2 経費集計表'!$B17,'様式4 現金出納帳'!$A:$A,リスト!$C$4)","v":0},{"$f":"SUMIFS('様式3 収支管理簿'!$C:$C,'様式3 収支管理簿'!$G:$G,'様式2 経費集計表'!$A$6,'様式3 収支管理簿'!$H:$H,'様式2 経費集計表'!$B17,'様式3 収支管理簿'!$A:$A,リスト!$C$5)+SUMIFS('様式4 現金出納帳'!$C:$C,'様式4 現金出納帳'!$G:$G,'様式2 経費集計表'!$A$6,'様式4 現金出納帳'!$H:$H,'様式2 経費集計表'!$B17,'様式4 現金出納帳'!$A:$A,リスト!$C$5)","v":0},""]
[null,null,null,0,{"$f":"SUMIFS('様式3 収支管理簿'!$C:$C,'様式3 収支管理簿'!$G:$G,'様式2 経費集計表'!$A$6,'様式3 収支管理簿'!$H:$H,'様式2 経費集計表'!$B18,'様式3 収支管理簿'!$A:$A,リスト!$C$2)+SUMIFS('様式4 現金出納帳'!$C:$C,'様式4 現金出納帳'!$G:$G,'様式2 経費集計表'!$A$6,'様式4 現金出納帳'!$H:$H,'様式2 経費集計表'!$B18,'様式4 現金出納帳'!$A:$A,リスト!$C$2)","v":0},{"$f":"SUMIFS('様式3 収支管理簿'!$C:$C,'様式3 収支管理簿'!$G:$G,'様式2 経費集計表'!$A$6,'様式3 収支管理簿'!$H:$H,'様式2 経費集計表'!$B18,'様式3 収支管理簿'!$A:$A,リスト!$C$3)+SUMIFS('様式4 現金出納帳'!$C:$C,'様式4 現金出納帳'!$G:$G,'様式2 経費集計表'!$A$6,'様式4 現金出納帳'!$H:$H,'様式2 経費集計表'!$B18,'様式4 現金出納帳'!$A:$A,リスト!$C$3)","v":0},{"$f":"SUMIFS('様式3 収支管理簿'!$C:$C,'様式3 収支管理簿'!$G:$G,'様式2 経費集計表'!$A$6,'様式3 収支管理簿'!$H:$H,'様式2 経費集計表'!$B18,'様式3 収支管理簿'!$A:$A,リスト!$C$4)+SUMIFS('様式4 現金出納帳'!$C:$C,'様式4 現金出納帳'!$G:$G,'様式2 経費集計表'!$A$6,'様式4 現金出納帳'!$H:$H,'様式2 経費集計表'!$B18,'様式4 現金出納帳'!$A:$A,リスト!$C$4)","v":0},{"$f":"SUMIFS('様式3 収支管理簿'!$C:$C,'様式3 収支管理簿'!$G:$G,'様式2 経費集計表'!$A$6,'様式3 収支管理簿'!$H:$H,'様式2 経費集計表'!$B18,'様式3 収支管理簿'!$A:$A,リスト!$C$5)+SUMIFS('様式4 現金出納帳'!$C:$C,'様式4 現金出納帳'!$G:$G,'様式2 経費集計表'!$A$6,'様式4 現金出納帳'!$H:$H,'様式2 経費集計表'!$B18,'様式4 現金出納帳'!$A:$A,リスト!$C$5)","v":0},""]
[null,null,null,0,{"$f":"SUMIFS('様式3 収支管理簿'!$C:$C,'様式3 収支管理簿'!$G:$G,'様式2 経費集計表'!$A$6,'様式3 収支管理簿'!$H:$H,'様式2 経費集計表'!$B19,'様式3 収支管理簿'!$A:$A,リスト!$C$2)+SUMIFS('様式4 現金出納帳'!$C:$C,'様式4 現金出納帳'!$G:$G,'様式2 経費集計表'!$A$6,'様式4 現金出納帳'!$H:$H,'様式2 経費集計表'!$B19,'様式4 現金出納帳'!$A:$A,リスト!$C$2)","v":0},{"$f":"SUMIFS('様式3 収支管理簿'!$C:$C,'様式3 収支管理簿'!$G:$G,'様式2 経費集計表'!$A$6,'様式3 収支管理簿'!$H:$H,'様式2 経費集計表'!$B19,'様式3 収支管理簿'!$A:$A,リスト!$C$3)+SUMIFS('様式4 現金出納帳'!$C:$C,'様式4 現金出納帳'!$G:$G,'様式2 経費集計表'!$A$6,'様式4 現金出納帳'!$H:$H,'様式2 経費集計表'!$B19,'様式4 現金出納帳'!$A:$A,リスト!$C$3)","v":0},{"$f":"SUMIFS('様式3 収支管理簿'!$C:$C,'様式3 収支管理簿'!$G:$G,'様式2 経費集計表'!$A$6,'様式3 収支管理簿'!$H:$H,'様式2 経費集計表'!$B19,'様式3 収支管理簿'!$A:$A,リスト!$C$4)+SUMIFS('様式4 現金出納帳'!$C:$C,'様式4 現金出納帳'!$G:$G,'様式2 経費集計表'!$A$6,'様式4 現金出納帳'!$H:$H,'様式2 経費集計表'!$B19,'様式4 現金出納帳'!$A:$A,リスト!$C$4)","v":0},{"$f":"SUMIFS('様式3 収支管理簿'!$C:$C,'様式3 収支管理簿'!$G:$G,'様式2 経費集計表'!$A$6,'様式3 収支管理簿'!$H:$H,'様式2 経費集計表'!$B19,'様式3 収支管理簿'!$A:$A,リスト!$C$5)+SUMIFS('様式4 現金出納帳'!$C:$C,'様式4 現金出納帳'!$G:$G,'様式2 経費集計表'!$A$6,'様式4 現金出納帳'!$H:$H,'様式2 経費集計表'!$B19,'様式4 現金出納帳'!$A:$A,リスト!$C$5)","v":0},""]
[null,null,null,0,{"$f":"SUMIFS('様式3 収支管理簿'!$C:$C,'様式3 収支管理簿'!$G:$G,'様式2 経費集計表'!$A$6,'様式3 収支管理簿'!$H:$H,'様式2 経費集計表'!$B20,'様式3 収支管理簿'!$A:$A,リスト!$C$2)+SUMIFS('様式4 現金出納帳'!$C:$C,'様式4 現金出納帳'!$G:$G,'様式2 経費集計表'!$A$6,'様式4 現金出納帳'!$H:$H,'様式2 経費集計表'!$B20,'様式4 現金出納帳'!$A:$A,リスト!$C$2)","v":0},{"$f":"SUMIFS('様式3 収支管理簿'!$C:$C,'様式3 収支管理簿'!$G:$G,'様式2 経費集計表'!$A$6,'様式3 収支管理簿'!$H:$H,'様式2 経費集計表'!$B20,'様式3 収支管理簿'!$A:$A,リスト!$C$3)+SUMIFS('様式4 現金出納帳'!$C:$C,'様式4 現金出納帳'!$G:$G,'様式2 経費集計表'!$A$6,'様式4 現金出納帳'!$H:$H,'様式2 経費集計表'!$B20,'様式4 現金出納帳'!$A:$A,リスト!$C$3)","v":0},{"$f":"SUMIFS('様式3 収支管理簿'!$C:$C,'様式3 収支管理簿'!$G:$G,'様式2 経費集計表'!$A$6,'様式3 収支管理簿'!$H:$H,'様式2 経費集計表'!$B20,'様式3 収支管理簿'!$A:$A,リスト!$C$4)+SUMIFS('様式4 現金出納帳'!$C:$C,'様式4 現金出納帳'!$G:$G,'様式2 経費集計表'!$A$6,'様式4 現金出納帳'!$H:$H,'様式2 経費集計表'!$B20,'様式4 現金出納帳'!$A:$A,リスト!$C$4)","v":0},{"$f":"SUMIFS('様式3 収支管理簿'!$C:$C,'様式3 収支管理簿'!$G:$G,'様式2 経費集計表'!$A$6,'様式3 収支管理簿'!$H:$H,'様式2 経費集計表'!$B20,'様式3 収支管理簿'!$A:$A,リスト!$C$5)+SUMIFS('様式4 現金出納帳'!$C:$C,'様式4 現金出納帳'!$G:$G,'様式2 経費集計表'!$A$6,'様式4 現金出納帳'!$H:$H,'様式2 経費集計表'!$B20,'様式4 現金出納帳'!$A:$A,リスト!$C$5)","v":0},""]
[null,null,null,0,{"$f":"SUMIFS('様式3 収支管理簿'!$C:$C,'様式3 収支管理簿'!$G:$G,'様式2 経費集計表'!$A$6,'様式3 収支管理簿'!$H:$H,'様式2 経費集計表'!$B21,'様式3 収支管理簿'!$A:$A,リスト!$C$2)+SUMIFS('様式4 現金出納帳'!$C:$C,'様式4 現金出納帳'!$G:$G,'様式2 経費集計表'!$A$6,'様式4 現金出納帳'!$H:$H,'様式2 経費集計表'!$B21,'様式4 現金出納帳'!$A:$A,リスト!$C$2)","v":0},{"$f":"SUMIFS('様式3 収支管理簿'!$C:$C,'様式3 収支管理簿'!$G:$G,'様式2 経費集計表'!$A$6,'様式3 収支管理簿'!$H:$H,'様式2 経費集計表'!$B21,'様式3 収支管理簿'!$A:$A,リスト!$C$3)+SUMIFS('様式4 現金出納帳'!$C:$C,'様式4 現金出納帳'!$G:$G,'様式2 経費集計表'!$A$6,'様式4 現金出納帳'!$H:$H,'様式2 経費集計表'!$B21,'様式4 現金出納帳'!$A:$A,リスト!$C$3)","v":0},{"$f":"SUMIFS('様式3 収支管理簿'!$C:$C,'様式3 収支管理簿'!$G:$G,'様式2 経費集計表'!$A$6,'様式3 収支管理簿'!$H:$H,'様式2 経費集計表'!$B21,'様式3 収支管理簿'!$A:$A,リスト!$C$4)+SUMIFS('様式4 現金出納帳'!$C:$C,'様式4 現金出納帳'!$G:$G,'様式2 経費集計表'!$A$6,'様式4 現金出納帳'!$H:$H,'様式2 経費集計表'!$B21,'様式4 現金出納帳'!$A:$A,リスト!$C$4)","v":0},{"$f":"SUMIFS('様式3 収支管理簿'!$C:$C,'様式3 収支管理簿'!$G:$G,'様式2 経費集計表'!$A$6,'様式3 収支管理簿'!$H:$H,'様式2 経費集計表'!$B21,'様式3 収支管理簿'!$A:$A,リスト!$C$5)+SUMIFS('様式4 現金出納帳'!$C:$C,'様式4 現金出納帳'!$G:$G,'様式2 経費集計表'!$A$6,'様式4 現金出納帳'!$H:$H,'様式2 経費集計表'!$B21,'様式4 現金出納帳'!$A:$A,リスト!$C$5)","v":0},""]
[null,null,null,0,{"$f":"SUMIFS('様式3 収支管理簿'!$C:$C,'様式3 収支管理簿'!$G:$G,'様式2 経費集計表'!$A$6,'様式3 収支管理簿'!$H:$H,'様式2 経費集計表'!$B22,'様式3 収支管理簿'!$A:$A,リスト!$C$2)+SUMIFS('様式4 現金出納帳'!$C:$C,'様式4 現金出納帳'!$G:$G,'様式2 経費集計表'!$A$6,'様式4 現金出納帳'!$H:$H,'様式2 経費集計表'!$B22,'様式4 現金出納帳'!$A:$A,リスト!$C$2)","v":0},{"$f":"SUMIFS('様式3 収支管理簿'!$C:$C,'様式3 収支管理簿'!$G:$G,'様式2 経費集計表'!$A$6,'様式3 収支管理簿'!$H:$H,'様式2 経費集計表'!$B22,'様式3 収支管理簿'!$A:$A,リスト!$C$3)+SUMIFS('様式4 現金出納帳'!$C:$C,'様式4 現金出納帳'!$G:$G,'様式2 経費集計表'!$A$6,'様式4 現金出納帳'!$H:$H,'様式2 経費集計表'!$B22,'様式4 現金出納帳'!$A:$A,リスト!$C$3)","v":0},{"$f":"SUMIFS('様式3 収支管理簿'!$C:$C,'様式3 収支管理簿'!$G:$G,'様式2 経費集計表'!$A$6,'様式3 収支管理簿'!$H:$H,'様式2 経費集計表'!$B22,'様式3 収支管理簿'!$A:$A,リスト!$C$4)+SUMIFS('様式4 現金出納帳'!$C:$C,'様式4 現金出納帳'!$G:$G,'様式2 経費集計表'!$A$6,'様式4 現金出納帳'!$H:$H,'様式2 経費集計表'!$B22,'様式4 現金出納帳'!$A:$A,リスト!$C$4)","v":0},{"$f":"SUMIFS('様式3 収支管理簿'!$C:$C,'様式3 収支管理簿'!$G:$G,'様式2 経費集計表'!$A$6,'様式3 収支管理簿'!$H:$H,'様式2 経費集計表'!$B22,'様式3 収支管理簿'!$A:$A,リスト!$C$5)+SUMIFS('様式4 現金出納帳'!$C:$C,'様式4 現金出納帳'!$G:$G,'様式2 経費集計表'!$A$6,'様式4 現金出納帳'!$H:$H,'様式2 経費集計表'!$B22,'様式4 現金出納帳'!$A:$A,リスト!$C$5)","v":0},""]
[null,null,null,0,{"$f":"SUMIFS('様式3 収支管理簿'!$C:$C,'様式3 収支管理簿'!$G:$G,'様式2 経費集計表'!$A$6,'様式3 収支管理簿'!$H:$H,'様式2 経費集計表'!$B23,'様式3 収支管理簿'!$A:$A,リスト!$C$2)+SUMIFS('様式4 現金出納帳'!$C:$C,'様式4 現金出納帳'!$G:$G,'様式2 経費集計表'!$A$6,'様式4 現金出納帳'!$H:$H,'様式2 経費集計表'!$B23,'様式4 現金出納帳'!$A:$A,リスト!$C$2)","v":0},{"$f":"SUMIFS('様式3 収支管理簿'!$C:$C,'様式3 収支管理簿'!$G:$G,'様式2 経費集計表'!$A$6,'様式3 収支管理簿'!$H:$H,'様式2 経費集計表'!$B23,'様式3 収支管理簿'!$A:$A,リスト!$C$3)+SUMIFS('様式4 現金出納帳'!$C:$C,'様式4 現金出納帳'!$G:$G,'様式2 経費集計表'!$A$6,'様式4 現金出納帳'!$H:$H,'様式2 経費集計表'!$B23,'様式4 現金出納帳'!$A:$A,リスト!$C$3)","v":0},{"$f":"SUMIFS('様式3 収支管理簿'!$C:$C,'様式3 収支管理簿'!$G:$G,'様式2 経費集計表'!$A$6,'様式3 収支管理簿'!$H:$H,'様式2 経費集計表'!$B23,'様式3 収支管理簿'!$A:$A,リスト!$C$4)+SUMIFS('様式4 現金出納帳'!$C:$C,'様式4 現金出納帳'!$G:$G,'様式2 経費集計表'!$A$6,'様式4 現金出納帳'!$H:$H,'様式2 経費集計表'!$B23,'様式4 現金出納帳'!$A:$A,リスト!$C$4)","v":0},{"$f":"SUMIFS('様式3 収支管理簿'!$C:$C,'様式3 収支管理簿'!$G:$G,'様式2 経費集計表'!$A$6,'様式3 収支管理簿'!$H:$H,'様式2 経費集計表'!$B23,'様式3 収支管理簿'!$A:$A,リスト!$C$5)+SUMIFS('様式4 現金出納帳'!$C:$C,'様式4 現金出納帳'!$G:$G,'様式2 経費集計表'!$A$6,'様式4 現金出納帳'!$H:$H,'様式2 経費集計表'!$B23,'様式4 現金出納帳'!$A:$A,リスト!$C$5)","v":0},""]
[null,null,null,0,{"$f":"SUMIFS('様式3 収支管理簿'!$C:$C,'様式3 収支管理簿'!$G:$G,'様式2 経費集計表'!$A$6,'様式3 収支管理簿'!$H:$H,'様式2 経費集計表'!$B24,'様式3 収支管理簿'!$A:$A,リスト!$C$2)+SUMIFS('様式4 現金出納帳'!$C:$C,'様式4 現金出納帳'!$G:$G,'様式2 経費集計表'!$A$6,'様式4 現金出納帳'!$H:$H,'様式2 経費集計表'!$B24,'様式4 現金出納帳'!$A:$A,リスト!$C$2)","v":0},{"$f":"SUMIFS('様式3 収支管理簿'!$C:$C,'様式3 収支管理簿'!$G:$G,'様式2 経費集計表'!$A$6,'様式3 収支管理簿'!$H:$H,'様式2 経費集計表'!$B24,'様式3 収支管理簿'!$A:$A,リスト!$C$3)+SUMIFS('様式4 現金出納帳'!$C:$C,'様式4 現金出納帳'!$G:$G,'様式2 経費集計表'!$A$6,'様式4 現金出納帳'!$H:$H,'様式2 経費集計表'!$B24,'様式4 現金出納帳'!$A:$A,リスト!$C$3)","v":0},{"$f":"SUMIFS('様式3 収支管理簿'!$C:$C,'様式3 収支管理簿'!$G:$G,'様式2 経費集計表'!$A$6,'様式3 収支管理簿'!$H:$H,'様式2 経費集計表'!$B24,'様式3 収支管理簿'!$A:$A,リスト!$C$4)+SUMIFS('様式4 現金出納帳'!$C:$C,'様式4 現金出納帳'!$G:$G,'様式2 経費集計表'!$A$6,'様式4 現金出納帳'!$H:$H,'様式2 経費集計表'!$B24,'様式4 現金出納帳'!$A:$A,リスト!$C$4)","v":0},{"$f":"SUMIFS('様式3 収支管理簿'!$C:$C,'様式3 収支管理簿'!$G:$G,'様式2 経費集計表'!$A$6,'様式3 収支管理簿'!$H:$H,'様式2 経費集計表'!$B24,'様式3 収支管理簿'!$A:$A,リスト!$C$5)+SUMIFS('様式4 現金出納帳'!$C:$C,'様式4 現金出納帳'!$G:$G,'様式2 経費集計表'!$A$6,'様式4 現金出納帳'!$H:$H,'様式2 経費集計表'!$B24,'様式4 現金出納帳'!$A:$A,リスト!$C$5)","v":0},""]
[null,null,null,0,{"$f":"SUMIFS('様式3 収支管理簿'!$C:$C,'様式3 収支管理簿'!$G:$G,'様式2 経費集計表'!$A$6,'様式3 収支管理簿'!$H:$H,'様式2 経費集計表'!$B25,'様式3 収支管理簿'!$A:$A,リスト!$C$2)+SUMIFS('様式4 現金出納帳'!$C:$C,'様式4 現金出納帳'!$G:$G,'様式2 経費集計表'!$A$6,'様式4 現金出納帳'!$H:$H,'様式2 経費集計表'!$B25,'様式4 現金出納帳'!$A:$A,リスト!$C$2)","v":0},{"$f":"SUMIFS('様式3 収支管理簿'!$C:$C,'様式3 収支管理簿'!$G:$G,'様式2 経費集計表'!$A$6,'様式3 収支管理簿'!$H:$H,'様式2 経費集計表'!$B25,'様式3 収支管理簿'!$A:$A,リスト!$C$3)+SUMIFS('様式4 現金出納帳'!$C:$C,'様式4 現金出納帳'!$G:$G,'様式2 経費集計表'!$A$6,'様式4 現金出納帳'!$H:$H,'様式2 経費集計表'!$B25,'様式4 現金出納帳'!$A:$A,リスト!$C$3)","v":0},{"$f":"SUMIFS('様式3 収支管理簿'!$C:$C,'様式3 収支管理簿'!$G:$G,'様式2 経費集計表'!$A$6,'様式3 収支管理簿'!$H:$H,'様式2 経費集計表'!$B25,'様式3 収支管理簿'!$A:$A,リスト!$C$4)+SUMIFS('様式4 現金出納帳'!$C:$C,'様式4 現金出納帳'!$G:$G,'様式2 経費集計表'!$A$6,'様式4 現金出納帳'!$H:$H,'様式2 経費集計表'!$B25,'様式4 現金出納帳'!$A:$A,リスト!$C$4)","v":0},{"$f":"SUMIFS('様式3 収支管理簿'!$C:$C,'様式3 収支管理簿'!$G:$G,'様式2 経費集計表'!$A$6,'様式3 収支管理簿'!$H:$H,'様式2 経費集計表'!$B25,'様式3 収支管理簿'!$A:$A,リスト!$C$5)+SUMIFS('様式4 現金出納帳'!$C:$C,'様式4 現金出納帳'!$G:$G,'様式2 経費集計表'!$A$6,'様式4 現金出納帳'!$H:$H,'様式2 経費集計表'!$B25,'様式4 現金出納帳'!$A:$A,リスト!$C$5)","v":0},""]
["小計",null,{"$f":"SUM(C6:C25)","v":0},{"$f":"SUM(D6:D25)","v":0},{"$f":"SUM(E6:E25)","v":0},{"$f":"SUM(F6:F25)","v":0},{"$f":"SUM(G6:G25)","v":0},0,""]
[{"$f":"リスト!A3","v":"管理的経費"},null,null,{"$f":"SUM(E27:H27)","v":0},{"$f":"SUMIFS('様式3 収支管理簿'!$C:$C,'様式3 収支管理簿'!$G:$G,'様式2 経費集計表'!$A$27,'様式3 収支管理簿'!$H:$H,'様式2 経費集計表'!$B27,'様式3 収支管理簿'!$A:$A,リスト!$C$2)+SUMIFS('様式4 現金出納帳'!$C:$C,'様式4 現金出納帳'!$G:$G,'様式2 経費集計表'!$A$27,'様式4 現金出納帳'!$H:$H,'様式2 経費集計表'!$B27,'様式4 現金出納帳'!$A:$A,リスト!$C$2)","v":0},{"$f":"SUMIFS('様式3 収支管理簿'!$C:$C,'様式3 収支管理簿'!$G:$G,'様式2 経費集計表'!$A$27,'様式3 収支管理簿'!$H:$H,'様式2 経費集計表'!$B27,'様式3 収支管理簿'!$A:$A,リスト!$C$3)+SUMIFS('様式4 現金出納帳'!$C:$C,'様式4 現金出納帳'!$G:$G,'様式2 経費集計表'!$A$27,'様式4 現金出納帳'!$H:$H,'様式2 経費集計表'!$B27,'様式4 現金出納帳'!$A:$A,リスト!$C$3)","v":0},{"$f":"SUMIFS('様式3 収支管理簿'!$C:$C,'様式3 収支管理簿'!$G:$G,'様式2 経費集計表'!$A$27,'様式3 収支管理簿'!$H:$H,'様式2 経費集計表'!$B27,'様式3 収支管理簿'!$A:$A,リスト!$C$4)+SUMIFS('様式4 現金出納帳'!$C:$C,'様式4 現金出納帳'!$G:$G,'様式2 経費集計表'!$A$27,'様式4 現金出納帳'!$H:$H,'様式2 経費集計表'!$B27,'様式4 現金出納帳'!$A:$A,リスト!$C$4)","v":0},{"$f":"SUMIFS('様式3 収支管理簿'!$C:$C,'様式3 収支管理簿'!$G:$G,'様式2 経費集計表'!$A$27,'様式3 収支管理簿'!$H:$H,'様式2 経費集計表'!$B27,'様式3 収支管理簿'!$A:$A,リスト!$C$5)+SUMIFS('様式4 現金出納帳'!$C:$C,'様式4 現金出納帳'!$G:$G,'様式2 経費集計表'!$A$27,'様式4 現金出納帳'!$H:$H,'様式2 経費集計表'!$B27,'様式4 現金出納帳'!$A:$A,リスト!$C$5)","v":0},""]
[null,null,null,0,{"$f":"SUMIFS('様式3 収支管理簿'!$C:$C,'様式3 収支管理簿'!$G:$G,'様式2 経費集計表'!$A$27,'様式3 収支管理簿'!$H:$H,'様式2 経費集計表'!$B28,'様式3 収支管理簿'!$A:$A,リスト!$C$2)+SUMIFS('様式4 現金出納帳'!$C:$C,'様式4 現金出納帳'!$G:$G,'様式2 経費集計表'!$A$27,'様式4 現金出納帳'!$H:$H,'様式2 経費集計表'!$B28,'様式4 現金出納帳'!$A:$A,リスト!$C$2)","v":0},{"$f":"SUMIFS('様式3 収支管理簿'!$C:$C,'様式3 収支管理簿'!$G:$G,'様式2 経費集計表'!$A$27,'様式3 収支管理簿'!$H:$H,'様式2 経費集計表'!$B28,'様式3 収支管理簿'!$A:$A,リスト!$C$3)+SUMIFS('様式4 現金出納帳'!$C:$C,'様式4 現金出納帳'!$G:$G,'様式2 経費集計表'!$A$27,'様式4 現金出納帳'!$H:$H,'様式2 経費集計表'!$B28,'様式4 現金出納帳'!$A:$A,リスト!$C$3)","v":0},{"$f":"SUMIFS('様式3 収支管理簿'!$C:$C,'様式3 収支管理簿'!$G:$G,'様式2 経費集計表'!$A$27,'様式3 収支管理簿'!$H:$H,'様式2 経費集計表'!$B28,'様式3 収支管理簿'!$A:$A,リスト!$C$4)+SUMIFS('様式4 現金出納帳'!$C:$C,'様式4 現金出納帳'!$G:$G,'様式2 経費集計表'!$A$27,'様式4 現金出納帳'!$H:$H,'様式2 経費集計表'!$B28,'様式4 現金出納帳'!$A:$A,リスト!$C$4)","v":0},{"$f":"SUMIFS('様式3 収支管理簿'!$C:$C,'様式3 収支管理簿'!$G:$G,'様式2 経費集計表'!$A$27,'様式3 収支管理簿'!$H:$H,'様式2 経費集計表'!$B28,'様式3 収支管理簿'!$A:$A,リスト!$C$5)+SUMIFS('様式4 現金出納帳'!$C:$C,'様式4 現金出納帳'!$G:$G,'様式2 経費集計表'!$A$27,'様式4 現金出納帳'!$H:$H,'様式2 経費集計表'!$B28,'様式4 現金出納帳'!$A:$A,リスト!$C$5)","v":0},""]
[null,null,null,0,{"$f":"SUMIFS('様式3 収支管理簿'!$C:$C,'様式3 収支管理簿'!$G:$G,'様式2 経費集計表'!$A$27,'様式3 収支管理簿'!$H:$H,'様式2 経費集計表'!$B29,'様式3 収支管理簿'!$A:$A,リスト!$C$2)+SUMIFS('様式4 現金出納帳'!$C:$C,'様式4 現金出納帳'!$G:$G,'様式2 経費集計表'!$A$27,'様式4 現金出納帳'!$H:$H,'様式2 経費集計表'!$B29,'様式4 現金出納帳'!$A:$A,リスト!$C$2)","v":0},{"$f":"SUMIFS('様式3 収支管理簿'!$C:$C,'様式3 収支管理簿'!$G:$G,'様式2 経費集計表'!$A$27,'様式3 収支管理簿'!$H:$H,'様式2 経費集計表'!$B29,'様式3 収支管理簿'!$A:$A,リスト!$C$3)+SUMIFS('様式4 現金出納帳'!$C:$C,'様式4 現金出納帳'!$G:$G,'様式2 経費集計表'!$A$27,'様式4 現金出納帳'!$H:$H,'様式2 経費集計表'!$B29,'様式4 現金出納帳'!$A:$A,リスト!$C$3)","v":0},{"$f":"SUMIFS('様式3 収支管理簿'!$C:$C,'様式3 収支管理簿'!$G:$G,'様式2 経費集計表'!$A$27,'様式3 収支管理簿'!$H:$H,'様式2 経費集計表'!$B29,'様式3 収支管理簿'!$A:$A,リスト!$C$4)+SUMIFS('様式4 現金出納帳'!$C:$C,'様式4 現金出納帳'!$G:$G,'様式2 経費集計表'!$A$27,'様式4 現金出納帳'!$H:$H,'様式2 経費集計表'!$B29,'様式4 現金出納帳'!$A:$A,リスト!$C$4)","v":0},{"$f":"SUMIFS('様式3 収支管理簿'!$C:$C,'様式3 収支管理簿'!$G:$G,'様式2 経費集計表'!$A$27,'様式3 収支管理簿'!$H:$H,'様式2 経費集計表'!$B29,'様式3 収支管理簿'!$A:$A,リスト!$C$5)+SUMIFS('様式4 現金出納帳'!$C:$C,'様式4 現金出納帳'!$G:$G,'様式2 経費集計表'!$A$27,'様式4 現金出納帳'!$H:$H,'様式2 経費集計表'!$B29,'様式4 現金出納帳'!$A:$A,リスト!$C$5)","v":0},""]
[null,null,null,0,{"$f":"SUMIFS('様式3 収支管理簿'!$C:$C,'様式3 収支管理簿'!$G:$G,'様式2 経費集計表'!$A$27,'様式3 収支管理簿'!$H:$H,'様式2 経費集計表'!$B30,'様式3 収支管理簿'!$A:$A,リスト!$C$2)+SUMIFS('様式4 現金出納帳'!$C:$C,'様式4 現金出納帳'!$G:$G,'様式2 経費集計表'!$A$27,'様式4 現金出納帳'!$H:$H,'様式2 経費集計表'!$B30,'様式4 現金出納帳'!$A:$A,リスト!$C$2)","v":0},{"$f":"SUMIFS('様式3 収支管理簿'!$C:$C,'様式3 収支管理簿'!$G:$G,'様式2 経費集計表'!$A$27,'様式3 収支管理簿'!$H:$H,'様式2 経費集計表'!$B30,'様式3 収支管理簿'!$A:$A,リスト!$C$3)+SUMIFS('様式4 現金出納帳'!$C:$C,'様式4 現金出納帳'!$G:$G,'様式2 経費集計表'!$A$27,'様式4 現金出納帳'!$H:$H,'様式2 経費集計表'!$B30,'様式4 現金出納帳'!$A:$A,リスト!$C$3)","v":0},{"$f":"SUMIFS('様式3 収支管理簿'!$C:$C,'様式3 収支管理簿'!$G:$G,'様式2 経費集計表'!$A$27,'様式3 収支管理簿'!$H:$H,'様式2 経費集計表'!$B30,'様式3 収支管理簿'!$A:$A,リスト!$C$4)+SUMIFS('様式4 現金出納帳'!$C:$C,'様式4 現金出納帳'!$G:$G,'様式2 経費集計表'!$A$27,'様式4 現金出納帳'!$H:$H,'様式2 経費集計表'!$B30,'様式4 現金出納帳'!$A:$A,リスト!$C$4)","v":0},{"$f":"SUMIFS('様式3 収支管理簿'!$C:$C,'様式3 収支管理簿'!$G:$G,'様式2 経費集計表'!$A$27,'様式3 収支管理簿'!$H:$H,'様式2 経費集計表'!$B30,'様式3 収支管理簿'!$A:$A,リスト!$C$5)+SUMIFS('様式4 現金出納帳'!$C:$C,'様式4 現金出納帳'!$G:$G,'様式2 経費集計表'!$A$27,'様式4 現金出納帳'!$H:$H,'様式2 経費集計表'!$B30,'様式4 現金出納帳'!$A:$A,リスト!$C$5)","v":0},""]
[null,null,null,0,{"$f":"SUMIFS('様式3 収支管理簿'!$C:$C,'様式3 収支管理簿'!$G:$G,'様式2 経費集計表'!$A$27,'様式3 収支管理簿'!$H:$H,'様式2 経費集計表'!$B31,'様式3 収支管理簿'!$A:$A,リスト!$C$2)+SUMIFS('様式4 現金出納帳'!$C:$C,'様式4 現金出納帳'!$G:$G,'様式2 経費集計表'!$A$27,'様式4 現金出納帳'!$H:$H,'様式2 経費集計表'!$B31,'様式4 現金出納帳'!$A:$A,リスト!$C$2)","v":0},{"$f":"SUMIFS('様式3 収支管理簿'!$C:$C,'様式3 収支管理簿'!$G:$G,'様式2 経費集計表'!$A$27,'様式3 収支管理簿'!$H:$H,'様式2 経費集計表'!$B31,'様式3 収支管理簿'!$A:$A,リスト!$C$3)+SUMIFS('様式4 現金出納帳'!$C:$C,'様式4 現金出納帳'!$G:$G,'様式2 経費集計表'!$A$27,'様式4 現金出納帳'!$H:$H,'様式2 経費集計表'!$B31,'様式4 現金出納帳'!$A:$A,リスト!$C$3)","v":0},{"$f":"SUMIFS('様式3 収支管理簿'!$C:$C,'様式3 収支管理簿'!$G:$G,'様式2 経費集計表'!$A$27,'様式3 収支管理簿'!$H:$H,'様式2 経費集計表'!$B31,'様式3 収支管理簿'!$A:$A,リスト!$C$4)+SUMIFS('様式4 現金出納帳'!$C:$C,'様式4 現金出納帳'!$G:$G,'様式2 経費集計表'!$A$27,'様式4 現金出納帳'!$H:$H,'様式2 経費集計表'!$B31,'様式4 現金出納帳'!$A:$A,リスト!$C$4)","v":0},{"$f":"SUMIFS('様式3 収支管理簿'!$C:$C,'様式3 収支管理簿'!$G:$G,'様式2 経費集計表'!$A$27,'様式3 収支管理簿'!$H:$H,'様式2 経費集計表'!$B31,'様式3 収支管理簿'!$A:$A,リスト!$C$5)+SUMIFS('様式4 現金出納帳'!$C:$C,'様式4 現金出納帳'!$G:$G,'様式2 経費集計表'!$A$27,'様式4 現金出納帳'!$H:$H,'様式2 経費集計表'!$B31,'様式4 現金出納帳'!$A:$A,リスト!$C$5)","v":0},""]
[null,null,null,0,{"$f":"SUMIFS('様式3 収支管理簿'!$C:$C,'様式3 収支管理簿'!$G:$G,'様式2 経費集計表'!$A$27,'様式3 収支管理簿'!$H:$H,'様式2 経費集計表'!$B32,'様式3 収支管理簿'!$A:$A,リスト!$C$2)+SUMIFS('様式4 現金出納帳'!$C:$C,'様式4 現金出納帳'!$G:$G,'様式2 経費集計表'!$A$27,'様式4 現金出納帳'!$H:$H,'様式2 経費集計表'!$B32,'様式4 現金出納帳'!$A:$A,リスト!$C$2)","v":0},{"$f":"SUMIFS('様式3 収支管理簿'!$C:$C,'様式3 収支管理簿'!$G:$G,'様式2 経費集計表'!$A$27,'様式3 収支管理簿'!$H:$H,'様式2 経費集計表'!$B32,'様式3 収支管理簿'!$A:$A,リスト!$C$3)+SUMIFS('様式4 現金出納帳'!$C:$C,'様式4 現金出納帳'!$G:$G,'様式2 経費集計表'!$A$27,'様式4 現金出納帳'!$H:$H,'様式2 経費集計表'!$B32,'様式4 現金出納帳'!$A:$A,リスト!$C$3)","v":0},{"$f":"SUMIFS('様式3 収支管理簿'!$C:$C,'様式3 収支管理簿'!$G:$G,'様式2 経費集計表'!$A$27,'様式3 収支管理簿'!$H:$H,'様式2 経費集計表'!$B32,'様式3 収支管理簿'!$A:$A,リスト!$C$4)+SUMIFS('様式4 現金出納帳'!$C:$C,'様式4 現金出納帳'!$G:$G,'様式2 経費集計表'!$A$27,'様式4 現金出納帳'!$H:$H,'様式2 経費集計表'!$B32,'様式4 現金出納帳'!$A:$A,リスト!$C$4)","v":0},{"$f":"SUMIFS('様式3 収支管理簿'!$C:$C,'様式3 収支管理簿'!$G:$G,'様式2 経費集計表'!$A$27,'様式3 収支管理簿'!$H:$H,'様式2 経費集計表'!$B32,'様式3 収支管理簿'!$A:$A,リスト!$C$5)+SUMIFS('様式4 現金出納帳'!$C:$C,'様式4 現金出納帳'!$G:$G,'様式2 経費集計表'!$A$27,'様式4 現金出納帳'!$H:$H,'様式2 経費集計表'!$B32,'様式4 現金出納帳'!$A:$A,リスト!$C$5)","v":0},""]
[null,null,null,{"$f":"SUM(E33:H33)","v":0},{"$f":"SUMIFS('様式3 収支管理簿'!$C:$C,'様式3 収支管理簿'!$G:$G,'様式2 経費集計表'!$A$27,'様式3 収支管理簿'!$H:$H,'様式2 経費集計表'!$B33,'様式3 収支管理簿'!$A:$A,リスト!$C$2)+SUMIFS('様式4 現金出納帳'!$C:$C,'様式4 現金出納帳'!$G:$G,'様式2 経費集計表'!$A$27,'様式4 現金出納帳'!$H:$H,'様式2 経費集計表'!$B33,'様式4 現金出納帳'!$A:$A,リスト!$C$2)","v":0},{"$f":"SUMIFS('様式3 収支管理簿'!$C:$C,'様式3 収支管理簿'!$G:$G,'様式2 経費集計表'!$A$27,'様式3 収支管理簿'!$H:$H,'様式2 経費集計表'!$B33,'様式3 収支管理簿'!$A:$A,リスト!$C$3)+SUMIFS('様式4 現金出納帳'!$C:$C,'様式4 現金出納帳'!$G:$G,'様式2 経費集計表'!$A$27,'様式4 現金出納帳'!$H:$H,'様式2 経費集計表'!$B33,'様式4 現金出納帳'!$A:$A,リスト!$C$3)","v":0},{"$f":"SUMIFS('様式3 収支管理簿'!$C:$C,'様式3 収支管理簿'!$G:$G,'様式2 経費集計表'!$A$27,'様式3 収支管理簿'!$H:$H,'様式2 経費集計表'!$B33,'様式3 収支管理簿'!$A:$A,リスト!$C$4)+SUMIFS('様式4 現金出納帳'!$C:$C,'様式4 現金出納帳'!$G:$G,'様式2 経費集計表'!$A$27,'様式4 現金出納帳'!$H:$H,'様式2 経費集計表'!$B33,'様式4 現金出納帳'!$A:$A,リスト!$C$4)","v":0},{"$f":"SUMIFS('様式3 収支管理簿'!$C:$C,'様式3 収支管理簿'!$G:$G,'様式2 経費集計表'!$A$27,'様式3 収支管理簿'!$H:$H,'様式2 経費集計表'!$B33,'様式3 収支管理簿'!$A:$A,リスト!$C$5)+SUMIFS('様式4 現金出納帳'!$C:$C,'様式4 現金出納帳'!$G:$G,'様式2 経費集計表'!$A$27,'様式4 現金出納帳'!$H:$H,'様式2 経費集計表'!$B33,'様式4 現金出納帳'!$A:$A,リスト!$C$5)","v":0},""]
[null,null,null,0,{"$f":"SUMIFS('様式3 収支管理簿'!$C:$C,'様式3 収支管理簿'!$G:$G,'様式2 経費集計表'!$A$27,'様式3 収支管理簿'!$H:$H,'様式2 経費集計表'!$B34,'様式3 収支管理簿'!$A:$A,リスト!$C$2)+SUMIFS('様式4 現金出納帳'!$C:$C,'様式4 現金出納帳'!$G:$G,'様式2 経費集計表'!$A$27,'様式4 現金出納帳'!$H:$H,'様式2 経費集計表'!$B34,'様式4 現金出納帳'!$A:$A,リスト!$C$2)","v":0},{"$f":"SUMIFS('様式3 収支管理簿'!$C:$C,'様式3 収支管理簿'!$G:$G,'様式2 経費集計表'!$A$27,'様式3 収支管理簿'!$H:$H,'様式2 経費集計表'!$B34,'様式3 収支管理簿'!$A:$A,リスト!$C$3)+SUMIFS('様式4 現金出納帳'!$C:$C,'様式4 現金出納帳'!$G:$G,'様式2 経費集計表'!$A$27,'様式4 現金出納帳'!$H:$H,'様式2 経費集計表'!$B34,'様式4 現金出納帳'!$A:$A,リスト!$C$3)","v":0},{"$f":"SUMIFS('様式3 収支管理簿'!$C:$C,'様式3 収支管理簿'!$G:$G,'様式2 経費集計表'!$A$27,'様式3 収支管理簿'!$H:$H,'様式2 経費集計表'!$B34,'様式3 収支管理簿'!$A:$A,リスト!$C$4)+SUMIFS('様式4 現金出納帳'!$C:$C,'様式4 現金出納帳'!$G:$G,'様式2 経費集計表'!$A$27,'様式4 現金出納帳'!$H:$H,'様式2 経費集計表'!$B34,'様式4 現金出納帳'!$A:$A,リスト!$C$4)","v":0},{"$f":"SUMIFS('様式3 収支管理簿'!$C:$C,'様式3 収支管理簿'!$G:$G,'様式2 経費集計表'!$A$27,'様式3 収支管理簿'!$H:$H,'様式2 経費集計表'!$B34,'様式3 収支管理簿'!$A:$A,リスト!$C$5)+SUMIFS('様式4 現金出納帳'!$C:$C,'様式4 現金出納帳'!$G:$G,'様式2 経費集計表'!$A$27,'様式4 現金出納帳'!$H:$H,'様式2 経費集計表'!$B34,'様式4 現金出納帳'!$A:$A,リスト!$C$5)","v":0},""]
[null,null,null,0,{"$f":"SUMIFS('様式3 収支管理簿'!$C:$C,'様式3 収支管理簿'!$G:$G,'様式2 経費集計表'!$A$27,'様式3 収支管理簿'!$H:$H,'様式2 経費集計表'!$B35,'様式3 収支管理簿'!$A:$A,リスト!$C$2)+SUMIFS('様式4 現金出納帳'!$C:$C,'様式4 現金出納帳'!$G:$G,'様式2 経費集計表'!$A$27,'様式4 現金出納帳'!$H:$H,'様式2 経費集計表'!$B35,'様式4 現金出納帳'!$A:$A,リスト!$C$2)","v":0},{"$f":"SUMIFS('様式3 収支管理簿'!$C:$C,'様式3 収支管理簿'!$G:$G,'様式2 経費集計表'!$A$27,'様式3 収支管理簿'!$H:$H,'様式2 経費集計表'!$B35,'様式3 収支管理簿'!$A:$A,リスト!$C$3)+SUMIFS('様式4 現金出納帳'!$C:$C,'様式4 現金出納帳'!$G:$G,'様式2 経費集計表'!$A$27,'様式4 現金出納帳'!$H:$H,'様式2 経費集計表'!$B35,'様式4 現金出納帳'!$A:$A,リスト!$C$3)","v":0},{"$f":"SUMIFS('様式3 収支管理簿'!$C:$C,'様式3 収支管理簿'!$G:$G,'様式2 経費集計表'!$A$27,'様式3 収支管理簿'!$H:$H,'様式2 経費集計表'!$B35,'様式3 収支管理簿'!$A:$A,リスト!$C$4)+SUMIFS('様式4 現金出納帳'!$C:$C,'様式4 現金出納帳'!$G:$G,'様式2 経費集計表'!$A$27,'様式4 現金出納帳'!$H:$H,'様式2 経費集計表'!$B35,'様式4 現金出納帳'!$A:$A,リスト!$C$4)","v":0},{"$f":"SUMIFS('様式3 収支管理簿'!$C:$C,'様式3 収支管理簿'!$G:$G,'様式2 経費集計表'!$A$27,'様式3 収支管理簿'!$H:$H,'様式2 経費集計表'!$B35,'様式3 収支管理簿'!$A:$A,リスト!$C$5)+SUMIFS('様式4 現金出納帳'!$C:$C,'様式4 現金出納帳'!$G:$G,'様式2 経費集計表'!$A$27,'様式4 現金出納帳'!$H:$H,'様式2 経費集計表'!$B35,'様式4 現金出納帳'!$A:$A,リスト!$C$5)","v":0},""]
[null,null,null,0,{"$f":"SUMIFS('様式3 収支管理簿'!$C:$C,'様式3 収支管理簿'!$G:$G,'様式2 経費集計表'!$A$27,'様式3 収支管理簿'!$H:$H,'様式2 経費集計表'!$B36,'様式3 収支管理簿'!$A:$A,リスト!$C$2)+SUMIFS('様式4 現金出納帳'!$C:$C,'様式4 現金出納帳'!$G:$G,'様式2 経費集計表'!$A$27,'様式4 現金出納帳'!$H:$H,'様式2 経費集計表'!$B36,'様式4 現金出納帳'!$A:$A,リスト!$C$2)","v":0},{"$f":"SUMIFS('様式3 収支管理簿'!$C:$C,'様式3 収支管理簿'!$G:$G,'様式2 経費集計表'!$A$27,'様式3 収支管理簿'!$H:$H,'様式2 経費集計表'!$B36,'様式3 収支管理簿'!$A:$A,リスト!$C$3)+SUMIFS('様式4 現金出納帳'!$C:$C,'様式4 現金出納帳'!$G:$G,'様式2 経費集計表'!$A$27,'様式4 現金出納帳'!$H:$H,'様式2 経費集計表'!$B36,'様式4 現金出納帳'!$A:$A,リスト!$C$3)","v":0},{"$f":"SUMIFS('様式3 収支管理簿'!$C:$C,'様式3 収支管理簿'!$G:$G,'様式2 経費集計表'!$A$27,'様式3 収支管理簿'!$H:$H,'様式2 経費集計表'!$B36,'様式3 収支管理簿'!$A:$A,リスト!$C$4)+SUMIFS('様式4 現金出納帳'!$C:$C,'様式4 現金出納帳'!$G:$G,'様式2 経費集計表'!$A$27,'様式4 現金出納帳'!$H:$H,'様式2 経費集計表'!$B36,'様式4 現金出納帳'!$A:$A,リスト!$C$4)","v":0},{"$f":"SUMIFS('様式3 収支管理簿'!$C:$C,'様式3 収支管理簿'!$G:$G,'様式2 経費集計表'!$A$27,'様式3 収支管理簿'!$H:$H,'様式2 経費集計表'!$B36,'様式3 収支管理簿'!$A:$A,リスト!$C$5)+SUMIFS('様式4 現金出納帳'!$C:$C,'様式4 現金出納帳'!$G:$G,'様式2 経費集計表'!$A$27,'様式4 現金出納帳'!$H:$H,'様式2 経費集計表'!$B36,'様式4 現金出納帳'!$A:$A,リスト!$C$5)","v":0},""]
[null,null,null,0,{"$f":"SUMIFS('様式3 収支管理簿'!$C:$C,'様式3 収支管理簿'!$G:$G,'様式2 経費集計表'!$A$27,'様式3 収支管理簿'!$H:$H,'様式2 経費集計表'!$B37,'様式3 収支管理簿'!$A:$A,リスト!$C$2)+SUMIFS('様式4 現金出納帳'!$C:$C,'様式4 現金出納帳'!$G:$G,'様式2 経費集計表'!$A$27,'様式4 現金出納帳'!$H:$H,'様式2 経費集計表'!$B37,'様式4 現金出納帳'!$A:$A,リスト!$C$2)","v":0},{"$f":"SUMIFS('様式3 収支管理簿'!$C:$C,'様式3 収支管理簿'!$G:$G,'様式2 経費集計表'!$A$27,'様式3 収支管理簿'!$H:$H,'様式2 経費集計表'!$B37,'様式3 収支管理簿'!$A:$A,リスト!$C$3)+SUMIFS('様式4 現金出納帳'!$C:$C,'様式4 現金出納帳'!$G:$G,'様式2 経費集計表'!$A$27,'様式4 現金出納帳'!$H:$H,'様式2 経費集計表'!$B37,'様式4 現金出納帳'!$A:$A,リスト!$C$3)","v":0},{"$f":"SUMIFS('様式3 収支管理簿'!$C:$C,'様式3 収支管理簿'!$G:$G,'様式2 経費集計表'!$A$27,'様式3 収支管理簿'!$H:$H,'様式2 経費集計表'!$B37,'様式3 収支管理簿'!$A:$A,リスト!$C$4)+SUMIFS('様式4 現金出納帳'!$C:$C,'様式4 現金出納帳'!$G:$G,'様式2 経費集計表'!$A$27,'様式4 現金出納帳'!$H:$H,'様式2 経費集計表'!$B37,'様式4 現金出納帳'!$A:$A,リスト!$C$4)","v":0},{"$f":"SUMIFS('様式3 収支管理簿'!$C:$C,'様式3 収支管理簿'!$G:$G,'様式2 経費集計表'!$A$27,'様式3 収支管理簿'!$H:$H,'様式2 経費集計表'!$B37,'様式3 収支管理簿'!$A:$A,リスト!$C$5)+SUMIFS('様式4 現金出納帳'!$C:$C,'様式4 現金出納帳'!$G:$G,'様式2 経費集計表'!$A$27,'様式4 現金出納帳'!$H:$H,'様式2 経費集計表'!$B37,'様式4 現金出納帳'!$A:$A,リスト!$C$5)","v":0},""]
[null,null,null,0,{"$f":"SUMIFS('様式3 収支管理簿'!$C:$C,'様式3 収支管理簿'!$G:$G,'様式2 経費集計表'!$A$27,'様式3 収支管理簿'!$H:$H,'様式2 経費集計表'!$B38,'様式3 収支管理簿'!$A:$A,リスト!$C$2)+SUMIFS('様式4 現金出納帳'!$C:$C,'様式4 現金出納帳'!$G:$G,'様式2 経費集計表'!$A$27,'様式4 現金出納帳'!$H:$H,'様式2 経費集計表'!$B38,'様式4 現金出納帳'!$A:$A,リスト!$C$2)","v":0},{"$f":"SUMIFS('様式3 収支管理簿'!$C:$C,'様式3 収支管理簿'!$G:$G,'様式2 経費集計表'!$A$27,'様式3 収支管理簿'!$H:$H,'様式2 経費集計表'!$B38,'様式3 収支管理簿'!$A:$A,リスト!$C$3)+SUMIFS('様式4 現金出納帳'!$C:$C,'様式4 現金出納帳'!$G:$G,'様式2 経費集計表'!$A$27,'様式4 現金出納帳'!$H:$H,'様式2 経費集計表'!$B38,'様式4 現金出納帳'!$A:$A,リスト!$C$3)","v":0},{"$f":"SUMIFS('様式3 収支管理簿'!$C:$C,'様式3 収支管理簿'!$G:$G,'様式2 経費集計表'!$A$27,'様式3 収支管理簿'!$H:$H,'様式2 経費集計表'!$B38,'様式3 収支管理簿'!$A:$A,リスト!$C$4)+SUMIFS('様式4 現金出納帳'!$C:$C,'様式4 現金出納帳'!$G:$G,'様式2 経費集計表'!$A$27,'様式4 現金出納帳'!$H:$H,'様式2 経費集計表'!$B38,'様式4 現金出納帳'!$A:$A,リスト!$C$4)","v":0},{"$f":"SUMIFS('様式3 収支管理簿'!$C:$C,'様式3 収支管理簿'!$G:$G,'様式2 経費集計表'!$A$27,'様式3 収支管理簿'!$H:$H,'様式2 経費集計表'!$B38,'様式3 収支管理簿'!$A:$A,リスト!$C$5)+SUMIFS('様式4 現金出納帳'!$C:$C,'様式4 現金出納帳'!$G:$G,'様式2 経費集計表'!$A$27,'様式4 現金出納帳'!$H:$H,'様式2 経費集計表'!$B38,'様式4 現金出納帳'!$A:$A,リスト!$C$5)","v":0},""]
[null,null,null,0,{"$f":"SUMIFS('様式3 収支管理簿'!$C:$C,'様式3 収支管理簿'!$G:$G,'様式2 経費集計表'!$A$27,'様式3 収支管理簿'!$H:$H,'様式2 経費集計表'!$B39,'様式3 収支管理簿'!$A:$A,リスト!$C$2)+SUMIFS('様式4 現金出納帳'!$C:$C,'様式4 現金出納帳'!$G:$G,'様式2 経費集計表'!$A$27,'様式4 現金出納帳'!$H:$H,'様式2 経費集計表'!$B39,'様式4 現金出納帳'!$A:$A,リスト!$C$2)","v":0},{"$f":"SUMIFS('様式3 収支管理簿'!$C:$C,'様式3 収支管理簿'!$G:$G,'様式2 経費集計表'!$A$27,'様式3 収支管理簿'!$H:$H,'様式2 経費集計表'!$B39,'様式3 収支管理簿'!$A:$A,リスト!$C$3)+SUMIFS('様式4 現金出納帳'!$C:$C,'様式4 現金出納帳'!$G:$G,'様式2 経費集計表'!$A$27,'様式4 現金出納帳'!$H:$H,'様式2 経費集計表'!$B39,'様式4 現金出納帳'!$A:$A,リスト!$C$3)","v":0},{"$f":"SUMIFS('様式3 収支管理簿'!$C:$C,'様式3 収支管理簿'!$G:$G,'様式2 経費集計表'!$A$27,'様式3 収支管理簿'!$H:$H,'様式2 経費集計表'!$B39,'様式3 収支管理簿'!$A:$A,リスト!$C$4)+SUMIFS('様式4 現金出納帳'!$C:$C,'様式4 現金出納帳'!$G:$G,'様式2 経費集計表'!$A$27,'様式4 現金出納帳'!$H:$H,'様式2 経費集計表'!$B39,'様式4 現金出納帳'!$A:$A,リスト!$C$4)","v":0},{"$f":"SUMIFS('様式3 収支管理簿'!$C:$C,'様式3 収支管理簿'!$G:$G,'様式2 経費集計表'!$A$27,'様式3 収支管理簿'!$H:$H,'様式2 経費集計表'!$B39,'様式3 収支管理簿'!$A:$A,リスト!$C$5)+SUMIFS('様式4 現金出納帳'!$C:$C,'様式4 現金出納帳'!$G:$G,'様式2 経費集計表'!$A$27,'様式4 現金出納帳'!$H:$H,'様式2 経費集計表'!$B39,'様式4 現金出納帳'!$A:$A,リスト!$C$5)","v":0},""]
[null,null,null,0,{"$f":"SUMIFS('様式3 収支管理簿'!$C:$C,'様式3 収支管理簿'!$G:$G,'様式2 経費集計表'!$A$27,'様式3 収支管理簿'!$H:$H,'様式2 経費集計表'!$B40,'様式3 収支管理簿'!$A:$A,リスト!$C$2)+SUMIFS('様式4 現金出納帳'!$C:$C,'様式4 現金出納帳'!$G:$G,'様式2 経費集計表'!$A$27,'様式4 現金出納帳'!$H:$H,'様式2 経費集計表'!$B40,'様式4 現金出納帳'!$A:$A,リスト!$C$2)","v":0},{"$f":"SUMIFS('様式3 収支管理簿'!$C:$C,'様式3 収支管理簿'!$G:$G,'様式2 経費集計表'!$A$27,'様式3 収支管理簿'!$H:$H,'様式2 経費集計表'!$B40,'様式3 収支管理簿'!$A:$A,リスト!$C$3)+SUMIFS('様式4 現金出納帳'!$C:$C,'様式4 現金出納帳'!$G:$G,'様式2 経費集計表'!$A$27,'様式4 現金出納帳'!$H:$H,'様式2 経費集計表'!$B40,'様式4 現金出納帳'!$A:$A,リスト!$C$3)","v":0},{"$f":"SUMIFS('様式3 収支管理簿'!$C:$C,'様式3 収支管理簿'!$G:$G,'様式2 経費集計表'!$A$27,'様式3 収支管理簿'!$H:$H,'様式2 経費集計表'!$B40,'様式3 収支管理簿'!$A:$A,リスト!$C$4)+SUMIFS('様式4 現金出納帳'!$C:$C,'様式4 現金出納帳'!$G:$G,'様式2 経費集計表'!$A$27,'様式4 現金出納帳'!$H:$H,'様式2 経費集計表'!$B40,'様式4 現金出納帳'!$A:$A,リスト!$C$4)","v":0},{"$f":"SUMIFS('様式3 収支管理簿'!$C:$C,'様式3 収支管理簿'!$G:$G,'様式2 経費集計表'!$A$27,'様式3 収支管理簿'!$H:$H,'様式2 経費集計表'!$B40,'様式3 収支管理簿'!$A:$A,リスト!$C$5)+SUMIFS('様式4 現金出納帳'!$C:$C,'様式4 現金出納帳'!$G:$G,'様式2 経費集計表'!$A$27,'様式4 現金出納帳'!$H:$H,'様式2 経費集計表'!$B40,'様式4 現金出納帳'!$A:$A,リスト!$C$5)","v":0},""]
[null,null,null,0,{"$f":"SUMIFS('様式3 収支管理簿'!$C:$C,'様式3 収支管理簿'!$G:$G,'様式2 経費集計表'!$A$27,'様式3 収支管理簿'!$H:$H,'様式2 経費集計表'!$B41,'様式3 収支管理簿'!$A:$A,リスト!$C$2)+SUMIFS('様式4 現金出納帳'!$C:$C,'様式4 現金出納帳'!$G:$G,'様式2 経費集計表'!$A$27,'様式4 現金出納帳'!$H:$H,'様式2 経費集計表'!$B41,'様式4 現金出納帳'!$A:$A,リスト!$C$2)","v":0},{"$f":"SUMIFS('様式3 収支管理簿'!$C:$C,'様式3 収支管理簿'!$G:$G,'様式2 経費集計表'!$A$27,'様式3 収支管理簿'!$H:$H,'様式2 経費集計表'!$B41,'様式3 収支管理簿'!$A:$A,リスト!$C$3)+SUMIFS('様式4 現金出納帳'!$C:$C,'様式4 現金出納帳'!$G:$G,'様式2 経費集計表'!$A$27,'様式4 現金出納帳'!$H:$H,'様式2 経費集計表'!$B41,'様式4 現金出納帳'!$A:$A,リスト!$C$3)","v":0},{"$f":"SUMIFS('様式3 収支管理簿'!$C:$C,'様式3 収支管理簿'!$G:$G,'様式2 経費集計表'!$A$27,'様式3 収支管理簿'!$H:$H,'様式2 経費集計表'!$B41,'様式3 収支管理簿'!$A:$A,リスト!$C$4)+SUMIFS('様式4 現金出納帳'!$C:$C,'様式4 現金出納帳'!$G:$G,'様式2 経費集計表'!$A$27,'様式4 現金出納帳'!$H:$H,'様式2 経費集計表'!$B41,'様式4 現金出納帳'!$A:$A,リスト!$C$4)","v":0},{"$f":"SUMIFS('様式3 収支管理簿'!$C:$C,'様式3 収支管理簿'!$G:$G,'様式2 経費集計表'!$A$27,'様式3 収支管理簿'!$H:$H,'様式2 経費集計表'!$B41,'様式3 収支管理簿'!$A:$A,リスト!$C$5)+SUMIFS('様式4 現金出納帳'!$C:$C,'様式4 現金出納帳'!$G:$G,'様式2 経費集計表'!$A$27,'様式4 現金出納帳'!$H:$H,'様式2 経費集計表'!$B41,'様式4 現金出納帳'!$A:$A,リスト!$C$5)","v":0},""]
[null,null,null,0,{"$f":"SUMIFS('様式3 収支管理簿'!$C:$C,'様式3 収支管理簿'!$G:$G,'様式2 経費集計表'!$A$27,'様式3 収支管理簿'!$H:$H,'様式2 経費集計表'!$B42,'様式3 収支管理簿'!$A:$A,リスト!$C$2)+SUMIFS('様式4 現金出納帳'!$C:$C,'様式4 現金出納帳'!$G:$G,'様式2 経費集計表'!$A$27,'様式4 現金出納帳'!$H:$H,'様式2 経費集計表'!$B42,'様式4 現金出納帳'!$A:$A,リスト!$C$2)","v":0},{"$f":"SUMIFS('様式3 収支管理簿'!$C:$C,'様式3 収支管理簿'!$G:$G,'様式2 経費集計表'!$A$27,'様式3 収支管理簿'!$H:$H,'様式2 経費集計表'!$B42,'様式3 収支管理簿'!$A:$A,リスト!$C$3)+SUMIFS('様式4 現金出納帳'!$C:$C,'様式4 現金出納帳'!$G:$G,'様式2 経費集計表'!$A$27,'様式4 現金出納帳'!$H:$H,'様式2 経費集計表'!$B42,'様式4 現金出納帳'!$A:$A,リスト!$C$3)","v":0},{"$f":"SUMIFS('様式3 収支管理簿'!$C:$C,'様式3 収支管理簿'!$G:$G,'様式2 経費集計表'!$A$27,'様式3 収支管理簿'!$H:$H,'様式2 経費集計表'!$B42,'様式3 収支管理簿'!$A:$A,リスト!$C$4)+SUMIFS('様式4 現金出納帳'!$C:$C,'様式4 現金出納帳'!$G:$G,'様式2 経費集計表'!$A$27,'様式4 現金出納帳'!$H:$H,'様式2 経費集計表'!$B42,'様式4 現金出納帳'!$A:$A,リスト!$C$4)","v":0},{"$f":"SUMIFS('様式3 収支管理簿'!$C:$C,'様式3 収支管理簿'!$G:$G,'様式2 経費集計表'!$A$27,'様式3 収支管理簿'!$H:$H,'様式2 経費集計表'!$B42,'様式3 収支管理簿'!$A:$A,リスト!$C$5)+SUMIFS('様式4 現金出納帳'!$C:$C,'様式4 現金出納帳'!$G:$G,'様式2 経費集計表'!$A$27,'様式4 現金出納帳'!$H:$H,'様式2 経費集計表'!$B42,'様式4 現金出納帳'!$A:$A,リスト!$C$5)","v":0},""]
[null,null,null,0,{"$f":"SUMIFS('様式3 収支管理簿'!$C:$C,'様式3 収支管理簿'!$G:$G,'様式2 経費集計表'!$A$27,'様式3 収支管理簿'!$H:$H,'様式2 経費集計表'!$B43,'様式3 収支管理簿'!$A:$A,リスト!$C$2)+SUMIFS('様式4 現金出納帳'!$C:$C,'様式4 現金出納帳'!$G:$G,'様式2 経費集計表'!$A$27,'様式4 現金出納帳'!$H:$H,'様式2 経費集計表'!$B43,'様式4 現金出納帳'!$A:$A,リスト!$C$2)","v":0},{"$f":"SUMIFS('様式3 収支管理簿'!$C:$C,'様式3 収支管理簿'!$G:$G,'様式2 経費集計表'!$A$27,'様式3 収支管理簿'!$H:$H,'様式2 経費集計表'!$B43,'様式3 収支管理簿'!$A:$A,リスト!$C$3)+SUMIFS('様式4 現金出納帳'!$C:$C,'様式4 現金出納帳'!$G:$G,'様式2 経費集計表'!$A$27,'様式4 現金出納帳'!$H:$H,'様式2 経費集計表'!$B43,'様式4 現金出納帳'!$A:$A,リスト!$C$3)","v":0},{"$f":"SUMIFS('様式3 収支管理簿'!$C:$C,'様式3 収支管理簿'!$G:$G,'様式2 経費集計表'!$A$27,'様式3 収支管理簿'!$H:$H,'様式2 経費集計表'!$B43,'様式3 収支管理簿'!$A:$A,リスト!$C$4)+SUMIFS('様式4 現金出納帳'!$C:$C,'様式4 現金出納帳'!$G:$G,'様式2 経費集計表'!$A$27,'様式4 現金出納帳'!$H:$H,'様式2 経費集計表'!$B43,'様式4 現金出納帳'!$A:$A,リスト!$C$4)","v":0},{"$f":"SUMIFS('様式3 収支管理簿'!$C:$C,'様式3 収支管理簿'!$G:$G,'様式2 経費集計表'!$A$27,'様式3 収支管理簿'!$H:$H,'様式2 経費集計表'!$B43,'様式3 収支管理簿'!$A:$A,リスト!$C$5)+SUMIFS('様式4 現金出納帳'!$C:$C,'様式4 現金出納帳'!$G:$G,'様式2 経費集計表'!$A$27,'様式4 現金出納帳'!$H:$H,'様式2 経費集計表'!$B43,'様式4 現金出納帳'!$A:$A,リスト!$C$5)","v":0},""]
[null,null,null,0,{"$f":"SUMIFS('様式3 収支管理簿'!$C:$C,'様式3 収支管理簿'!$G:$G,'様式2 経費集計表'!$A$27,'様式3 収支管理簿'!$H:$H,'様式2 経費集計表'!$B44,'様式3 収支管理簿'!$A:$A,リスト!$C$2)+SUMIFS('様式4 現金出納帳'!$C:$C,'様式4 現金出納帳'!$G:$G,'様式2 経費集計表'!$A$27,'様式4 現金出納帳'!$H:$H,'様式2 経費集計表'!$B44,'様式4 現金出納帳'!$A:$A,リスト!$C$2)","v":0},{"$f":"SUMIFS('様式3 収支管理簿'!$C:$C,'様式3 収支管理簿'!$G:$G,'様式2 経費集計表'!$A$27,'様式3 収支管理簿'!$H:$H,'様式2 経費集計表'!$B44,'様式3 収支管理簿'!$A:$A,リスト!$C$3)+SUMIFS('様式4 現金出納帳'!$C:$C,'様式4 現金出納帳'!$G:$G,'様式2 経費集計表'!$A$27,'様式4 現金出納帳'!$H:$H,'様式2 経費集計表'!$B44,'様式4 現金出納帳'!$A:$A,リスト!$C$3)","v":0},{"$f":"SUMIFS('様式3 収支管理簿'!$C:$C,'様式3 収支管理簿'!$G:$G,'様式2 経費集計表'!$A$27,'様式3 収支管理簿'!$H:$H,'様式2 経費集計表'!$B44,'様式3 収支管理簿'!$A:$A,リスト!$C$4)+SUMIFS('様式4 現金出納帳'!$C:$C,'様式4 現金出納帳'!$G:$G,'様式2 経費集計表'!$A$27,'様式4 現金出納帳'!$H:$H,'様式2 経費集計表'!$B44,'様式4 現金出納帳'!$A:$A,リスト!$C$4)","v":0},{"$f":"SUMIFS('様式3 収支管理簿'!$C:$C,'様式3 収支管理簿'!$G:$G,'様式2 経費集計表'!$A$27,'様式3 収支管理簿'!$H:$H,'様式2 経費集計表'!$B44,'様式3 収支管理簿'!$A:$A,リスト!$C$5)+SUMIFS('様式4 現金出納帳'!$C:$C,'様式4 現金出納帳'!$G:$G,'様式2 経費集計表'!$A$27,'様式4 現金出納帳'!$H:$H,'様式2 経費集計表'!$B44,'様式4 現金出納帳'!$A:$A,リスト!$C$5)","v":0},""]
[null,null,null,0,{"$f":"SUMIFS('様式3 収支管理簿'!$C:$C,'様式3 収支管理簿'!$G:$G,'様式2 経費集計表'!$A$27,'様式3 収支管理簿'!$H:$H,'様式2 経費集計表'!$B45,'様式3 収支管理簿'!$A:$A,リスト!$C$2)+SUMIFS('様式4 現金出納帳'!$C:$C,'様式4 現金出納帳'!$G:$G,'様式2 経費集計表'!$A$27,'様式4 現金出納帳'!$H:$H,'様式2 経費集計表'!$B45,'様式4 現金出納帳'!$A:$A,リスト!$C$2)","v":0},{"$f":"SUMIFS('様式3 収支管理簿'!$C:$C,'様式3 収支管理簿'!$G:$G,'様式2 経費集計表'!$A$27,'様式3 収支管理簿'!$H:$H,'様式2 経費集計表'!$B45,'様式3 収支管理簿'!$A:$A,リスト!$C$3)+SUMIFS('様式4 現金出納帳'!$C:$C,'様式4 現金出納帳'!$G:$G,'様式2 経費集計表'!$A$27,'様式4 現金出納帳'!$H:$H,'様式2 経費集計表'!$B45,'様式4 現金出納帳'!$A:$A,リスト!$C$3)","v":0},{"$f":"SUMIFS('様式3 収支管理簿'!$C:$C,'様式3 収支管理簿'!$G:$G,'様式2 経費集計表'!$A$27,'様式3 収支管理簿'!$H:$H,'様式2 経費集計表'!$B45,'様式3 収支管理簿'!$A:$A,リスト!$C$4)+SUMIFS('様式4 現金出納帳'!$C:$C,'様式4 現金出納帳'!$G:$G,'様式2 経費集計表'!$A$27,'様式4 現金出納帳'!$H:$H,'様式2 経費集計表'!$B45,'様式4 現金出納帳'!$A:$A,リスト!$C$4)","v":0},{"$f":"SUMIFS('様式3 収支管理簿'!$C:$C,'様式3 収支管理簿'!$G:$G,'様式2 経費集計表'!$A$27,'様式3 収支管理簿'!$H:$H,'様式2 経費集計表'!$B45,'様式3 収支管理簿'!$A:$A,リスト!$C$5)+SUMIFS('様式4 現金出納帳'!$C:$C,'様式4 現金出納帳'!$G:$G,'様式2 経費集計表'!$A$27,'様式4 現金出納帳'!$H:$H,'様式2 経費集計表'!$B45,'様式4 現金出納帳'!$A:$A,リスト!$C$5)","v":0},""]
[null,null,null,0,{"$f":"SUMIFS('様式3 収支管理簿'!$C:$C,'様式3 収支管理簿'!$G:$G,'様式2 経費集計表'!$A$27,'様式3 収支管理簿'!$H:$H,'様式2 経費集計表'!$B46,'様式3 収支管理簿'!$A:$A,リスト!$C$2)+SUMIFS('様式4 現金出納帳'!$C:$C,'様式4 現金出納帳'!$G:$G,'様式2 経費集計表'!$A$27,'様式4 現金出納帳'!$H:$H,'様式2 経費集計表'!$B46,'様式4 現金出納帳'!$A:$A,リスト!$C$2)","v":0},{"$f":"SUMIFS('様式3 収支管理簿'!$C:$C,'様式3 収支管理簿'!$G:$G,'様式2 経費集計表'!$A$27,'様式3 収支管理簿'!$H:$H,'様式2 経費集計表'!$B46,'様式3 収支管理簿'!$A:$A,リスト!$C$3)+SUMIFS('様式4 現金出納帳'!$C:$C,'様式4 現金出納帳'!$G:$G,'様式2 経費集計表'!$A$27,'様式4 現金出納帳'!$H:$H,'様式2 経費集計表'!$B46,'様式4 現金出納帳'!$A:$A,リスト!$C$3)","v":0},{"$f":"SUMIFS('様式3 収支管理簿'!$C:$C,'様式3 収支管理簿'!$G:$G,'様式2 経費集計表'!$A$27,'様式3 収支管理簿'!$H:$H,'様式2 経費集計表'!$B46,'様式3 収支管理簿'!$A:$A,リスト!$C$4)+SUMIFS('様式4 現金出納帳'!$C:$C,'様式4 現金出納帳'!$G:$G,'様式2 経費集計表'!$A$27,'様式4 現金出納帳'!$H:$H,'様式2 経費集計表'!$B46,'様式4 現金出納帳'!$A:$A,リスト!$C$4)","v":0},{"$f":"SUMIFS('様式3 収支管理簿'!$C:$C,'様式3 収支管理簿'!$G:$G,'様式2 経費集計表'!$A$27,'様式3 収支管理簿'!$H:$H,'様式2 経費集計表'!$B46,'様式3 収支管理簿'!$A:$A,リスト!$C$5)+SUMIFS('様式4 現金出納帳'!$C:$C,'様式4 現金出納帳'!$G:$G,'様式2 経費集計表'!$A$27,'様式4 現金出納帳'!$H:$H,'様式2 経費集計表'!$B46,'様式4 現金出納帳'!$A:$A,リスト!$C$5)","v":0},""]
["小計",null,{"$f":"SUM(C27:C46)","v":0},{"$f":"SUM(D27:D46)","v":0},{"$f":"SUM(E27:E46)","v":0},{"$f":"SUM(F27:F46)","v":0},{"$f":"SUM(G27:G46)","v":0},0,""]
[{"$f":"リスト!A4","v":"評価関連経費"},null,null,{"$f":"SUM(E48:H48)","v":0},{"$f":"SUMIFS('様式3 収支管理簿'!$C:$C,'様式3 収支管理簿'!$G:$G,'様式2 経費集計表'!$A$48,'様式3 収支管理簿'!$H:$H,'様式2 経費集計表'!$B48,'様式3 収支管理簿'!$A:$A,リスト!$C$2)+SUMIFS('様式4 現金出納帳'!$C:$C,'様式4 現金出納帳'!$G:$G,'様式2 経費集計表'!$A$48,'様式4 現金出納帳'!$H:$H,'様式2 経費集計表'!$B48,'様式4 現金出納帳'!$A:$A,リスト!$C$2)","v":0},{"$f":"SUMIFS('様式3 収支管理簿'!$C:$C,'様式3 収支管理簿'!$G:$G,'様式2 経費集計表'!$A$48,'様式3 収支管理簿'!$H:$H,'様式2 経費集計表'!$B48,'様式3 収支管理簿'!$A:$A,リスト!$C$3)+SUMIFS('様式4 現金出納帳'!$C:$C,'様式4 現金出納帳'!$G:$G,'様式2 経費集計表'!$A$48,'様式4 現金出納帳'!$H:$H,'様式2 経費集計表'!$B48,'様式4 現金出納帳'!$A:$A,リスト!$C$3)","v":0},{"$f":"SUMIFS('様式3 収支管理簿'!$C:$C,'様式3 収支管理簿'!$G:$G,'様式2 経費集計表'!$A$48,'様式3 収支管理簿'!$H:$H,'様式2 経費集計表'!$B48,'様式3 収支管理簿'!$A:$A,リスト!$C$4)+SUMIFS('様式4 現金出納帳'!$C:$C,'様式4 現金出納帳'!$G:$G,'様式2 経費集計表'!$A$48,'様式4 現金出納帳'!$H:$H,'様式2 経費集計表'!$B48,'様式4 現金出納帳'!$A:$A,リスト!$C$4)","v":0},{"$f":"SUMIFS('様式3 収支管理簿'!$C:$C,'様式3 収支管理簿'!$G:$G,'様式2 経費集計表'!$A$48,'様式3 収支管理簿'!$H:$H,'様式2 経費集計表'!$B48,'様式3 収支管理簿'!$A:$A,リスト!$C$5)+SUMIFS('様式4 現金出納帳'!$C:$C,'様式4 現金出納帳'!$G:$G,'様式2 経費集計表'!$A$48,'様式4 現金出納帳'!$H:$H,'様式2 経費集計表'!$B48,'様式4 現金出納帳'!$A:$A,リスト!$C$5)","v":0},""]
[null,null,null,0,{"$f":"SUMIFS('様式3 収支管理簿'!$C:$C,'様式3 収支管理簿'!$G:$G,'様式2 経費集計表'!$A$48,'様式3 収支管理簿'!$H:$H,'様式2 経費集計表'!$B49,'様式3 収支管理簿'!$A:$A,リスト!$C$2)+SUMIFS('様式4 現金出納帳'!$C:$C,'様式4 現金出納帳'!$G:$G,'様式2 経費集計表'!$A$48,'様式4 現金出納帳'!$H:$H,'様式2 経費集計表'!$B49,'様式4 現金出納帳'!$A:$A,リスト!$C$2)","v":0},{"$f":"SUMIFS('様式3 収支管理簿'!$C:$C,'様式3 収支管理簿'!$G:$G,'様式2 経費集計表'!$A$48,'様式3 収支管理簿'!$H:$H,'様式2 経費集計表'!$B49,'様式3 収支管理簿'!$A:$A,リスト!$C$3)+SUMIFS('様式4 現金出納帳'!$C:$C,'様式4 現金出納帳'!$G:$G,'様式2 経費集計表'!$A$48,'様式4 現金出納帳'!$H:$H,'様式2 経費集計表'!$B49,'様式4 現金出納帳'!$A:$A,リスト!$C$3)","v":0},{"$f":"SUMIFS('様式3 収支管理簿'!$C:$C,'様式3 収支管理簿'!$G:$G,'様式2 経費集計表'!$A$48,'様式3 収支管理簿'!$H:$H,'様式2 経費集計表'!$B49,'様式3 収支管理簿'!$A:$A,リスト!$C$4)+SUMIFS('様式4 現金出納帳'!$C:$C,'様式4 現金出納帳'!$G:$G,'様式2 経費集計表'!$A$48,'様式4 現金出納帳'!$H:$H,'様式2 経費集計表'!$B49,'様式4 現金出納帳'!$A:$A,リスト!$C$4)","v":0},{"$f":"SUMIFS('様式3 収支管理簿'!$C:$C,'様式3 収支管理簿'!$G:$G,'様式2 経費集計表'!$A$48,'様式3 収支管理簿'!$H:$H,'様式2 経費集計表'!$B49,'様式3 収支管理簿'!$A:$A,リスト!$C$5)+SUMIFS('様式4 現金出納帳'!$C:$C,'様式4 現金出納帳'!$G:$G,'様式2 経費集計表'!$A$48,'様式4 現金出納帳'!$H:$H,'様式2 経費集計表'!$B49,'様式4 現金出納帳'!$A:$A,リスト!$C$5)","v":0},""]
[null,null,null,0,{"$f":"SUMIFS('様式3 収支管理簿'!$C:$C,'様式3 収支管理簿'!$G:$G,'様式2 経費集計表'!$A$48,'様式3 収支管理簿'!$H:$H,'様式2 経費集計表'!$B50,'様式3 収支管理簿'!$A:$A,リスト!$C$2)+SUMIFS('様式4 現金出納帳'!$C:$C,'様式4 現金出納帳'!$G:$G,'様式2 経費集計表'!$A$48,'様式4 現金出納帳'!$H:$H,'様式2 経費集計表'!$B50,'様式4 現金出納帳'!$A:$A,リスト!$C$2)","v":0},{"$f":"SUMIFS('様式3 収支管理簿'!$C:$C,'様式3 収支管理簿'!$G:$G,'様式2 経費集計表'!$A$48,'様式3 収支管理簿'!$H:$H,'様式2 経費集計表'!$B50,'様式3 収支管理簿'!$A:$A,リスト!$C$3)+SUMIFS('様式4 現金出納帳'!$C:$C,'様式4 現金出納帳'!$G:$G,'様式2 経費集計表'!$A$48,'様式4 現金出納帳'!$H:$H,'様式2 経費集計表'!$B50,'様式4 現金出納帳'!$A:$A,リスト!$C$3)","v":0},{"$f":"SUMIFS('様式3 収支管理簿'!$C:$C,'様式3 収支管理簿'!$G:$G,'様式2 経費集計表'!$A$48,'様式3 収支管理簿'!$H:$H,'様式2 経費集計表'!$B50,'様式3 収支管理簿'!$A:$A,リスト!$C$4)+SUMIFS('様式4 現金出納帳'!$C:$C,'様式4 現金出納帳'!$G:$G,'様式2 経費集計表'!$A$48,'様式4 現金出納帳'!$H:$H,'様式2 経費集計表'!$B50,'様式4 現金出納帳'!$A:$A,リスト!$C$4)","v":0},{"$f":"SUMIFS('様式3 収支管理簿'!$C:$C,'様式3 収支管理簿'!$G:$G,'様式2 経費集計表'!$A$48,'様式3 収支管理簿'!$H:$H,'様式2 経費集計表'!$B50,'様式3 収支管理簿'!$A:$A,リスト!$C$5)+SUMIFS('様式4 現金出納帳'!$C:$C,'様式4 現金出納帳'!$G:$G,'様式2 経費集計表'!$A$48,'様式4 現金出納帳'!$H:$H,'様式2 経費集計表'!$B50,'様式4 現金出納帳'!$A:$A,リスト!$C$5)","v":0},""]
[null,null,null,0,{"$f":"SUMIFS('様式3 収支管理簿'!$C:$C,'様式3 収支管理簿'!$G:$G,'様式2 経費集計表'!$A$48,'様式3 収支管理簿'!$H:$H,'様式2 経費集計表'!$B51,'様式3 収支管理簿'!$A:$A,リスト!$C$2)+SUMIFS('様式4 現金出納帳'!$C:$C,'様式4 現金出納帳'!$G:$G,'様式2 経費集計表'!$A$48,'様式4 現金出納帳'!$H:$H,'様式2 経費集計表'!$B51,'様式4 現金出納帳'!$A:$A,リスト!$C$2)","v":0},{"$f":"SUMIFS('様式3 収支管理簿'!$C:$C,'様式3 収支管理簿'!$G:$G,'様式2 経費集計表'!$A$48,'様式3 収支管理簿'!$H:$H,'様式2 経費集計表'!$B51,'様式3 収支管理簿'!$A:$A,リスト!$C$3)+SUMIFS('様式4 現金出納帳'!$C:$C,'様式4 現金出納帳'!$G:$G,'様式2 経費集計表'!$A$48,'様式4 現金出納帳'!$H:$H,'様式2 経費集計表'!$B51,'様式4 現金出納帳'!$A:$A,リスト!$C$3)","v":0},{"$f":"SUMIFS('様式3 収支管理簿'!$C:$C,'様式3 収支管理簿'!$G:$G,'様式2 経費集計表'!$A$48,'様式3 収支管理簿'!$H:$H,'様式2 経費集計表'!$B51,'様式3 収支管理簿'!$A:$A,リスト!$C$4)+SUMIFS('様式4 現金出納帳'!$C:$C,'様式4 現金出納帳'!$G:$G,'様式2 経費集計表'!$A$48,'様式4 現金出納帳'!$H:$H,'様式2 経費集計表'!$B51,'様式4 現金出納帳'!$A:$A,リスト!$C$4)","v":0},{"$f":"SUMIFS('様式3 収支管理簿'!$C:$C,'様式3 収支管理簿'!$G:$G,'様式2 経費集計表'!$A$48,'様式3 収支管理簿'!$H:$H,'様式2 経費集計表'!$B51,'様式3 収支管理簿'!$A:$A,リスト!$C$5)+SUMIFS('様式4 現金出納帳'!$C:$C,'様式4 現金出納帳'!$G:$G,'様式2 経費集計表'!$A$48,'様式4 現金出納帳'!$H:$H,'様式2 経費集計表'!$B51,'様式4 現金出納帳'!$A:$A,リスト!$C$5)","v":0},""]
[null,null,null,0,{"$f":"SUMIFS('様式3 収支管理簿'!$C:$C,'様式3 収支管理簿'!$G:$G,'様式2 経費集計表'!$A$48,'様式3 収支管理簿'!$H:$H,'様式2 経費集計表'!$B52,'様式3 収支管理簿'!$A:$A,リスト!$C$2)+SUMIFS('様式4 現金出納帳'!$C:$C,'様式4 現金出納帳'!$G:$G,'様式2 経費集計表'!$A$48,'様式4 現金出納帳'!$H:$H,'様式2 経費集計表'!$B52,'様式4 現金出納帳'!$A:$A,リスト!$C$2)","v":0},{"$f":"SUMIFS('様式3 収支管理簿'!$C:$C,'様式3 収支管理簿'!$G:$G,'様式2 経費集計表'!$A$48,'様式3 収支管理簿'!$H:$H,'様式2 経費集計表'!$B52,'様式3 収支管理簿'!$A:$A,リスト!$C$3)+SUMIFS('様式4 現金出納帳'!$C:$C,'様式4 現金出納帳'!$G:$G,'様式2 経費集計表'!$A$48,'様式4 現金出納帳'!$H:$H,'様式2 経費集計表'!$B52,'様式4 現金出納帳'!$A:$A,リスト!$C$3)","v":0},{"$f":"SUMIFS('様式3 収支管理簿'!$C:$C,'様式3 収支管理簿'!$G:$G,'様式2 経費集計表'!$A$48,'様式3 収支管理簿'!$H:$H,'様式2 経費集計表'!$B52,'様式3 収支管理簿'!$A:$A,リスト!$C$4)+SUMIFS('様式4 現金出納帳'!$C:$C,'様式4 現金出納帳'!$G:$G,'様式2 経費集計表'!$A$48,'様式4 現金出納帳'!$H:$H,'様式2 経費集計表'!$B52,'様式4 現金出納帳'!$A:$A,リスト!$C$4)","v":0},{"$f":"SUMIFS('様式3 収支管理簿'!$C:$C,'様式3 収支管理簿'!$G:$G,'様式2 経費集計表'!$A$48,'様式3 収支管理簿'!$H:$H,'様式2 経費集計表'!$B52,'様式3 収支管理簿'!$A:$A,リスト!$C$5)+SUMIFS('様式4 現金出納帳'!$C:$C,'様式4 現金出納帳'!$G:$G,'様式2 経費集計表'!$A$48,'様式4 現金出納帳'!$H:$H,'様式2 経費集計表'!$B52,'様式4 現金出納帳'!$A:$A,リスト!$C$5)","v":0},""]
[null,null,null,0,{"$f":"SUMIFS('様式3 収支管理簿'!$C:$C,'様式3 収支管理簿'!$G:$G,'様式2 経費集計表'!$A$48,'様式3 収支管理簿'!$H:$H,'様式2 経費集計表'!$B53,'様式3 収支管理簿'!$A:$A,リスト!$C$2)+SUMIFS('様式4 現金出納帳'!$C:$C,'様式4 現金出納帳'!$G:$G,'様式2 経費集計表'!$A$48,'様式4 現金出納帳'!$H:$H,'様式2 経費集計表'!$B53,'様式4 現金出納帳'!$A:$A,リスト!$C$2)","v":0},{"$f":"SUMIFS('様式3 収支管理簿'!$C:$C,'様式3 収支管理簿'!$G:$G,'様式2 経費集計表'!$A$48,'様式3 収支管理簿'!$H:$H,'様式2 経費集計表'!$B53,'様式3 収支管理簿'!$A:$A,リスト!$C$3)+SUMIFS('様式4 現金出納帳'!$C:$C,'様式4 現金出納帳'!$G:$G,'様式2 経費集計表'!$A$48,'様式4 現金出納帳'!$H:$H,'様式2 経費集計表'!$B53,'様式4 現金出納帳'!$A:$A,リスト!$C$3)","v":0},{"$f":"SUMIFS('様式3 収支管理簿'!$C:$C,'様式3 収支管理簿'!$G:$G,'様式2 経費集計表'!$A$48,'様式3 収支管理簿'!$H:$H,'様式2 経費集計表'!$B53,'様式3 収支管理簿'!$A:$A,リスト!$C$4)+SUMIFS('様式4 現金出納帳'!$C:$C,'様式4 現金出納帳'!$G:$G,'様式2 経費集計表'!$A$48,'様式4 現金出納帳'!$H:$H,'様式2 経費集計表'!$B53,'様式4 現金出納帳'!$A:$A,リスト!$C$4)","v":0},{"$f":"SUMIFS('様式3 収支管理簿'!$C:$C,'様式3 収支管理簿'!$G:$G,'様式2 経費集計表'!$A$48,'様式3 収支管理簿'!$H:$H,'様式2 経費集計表'!$B53,'様式3 収支管理簿'!$A:$A,リスト!$C$5)+SUMIFS('様式4 現金出納帳'!$C:$C,'様式4 現金出納帳'!$G:$G,'様式2 経費集計表'!$A$48,'様式4 現金出納帳'!$H:$H,'様式2 経費集計表'!$B53,'様式4 現金出納帳'!$A:$A,リスト!$C$5)","v":0},""]
[null,null,null,{"$f":"SUM(E54:H54)","v":0},{"$f":"SUMIFS('様式3 収支管理簿'!$C:$C,'様式3 収支管理簿'!$G:$G,'様式2 経費集計表'!$A$48,'様式3 収支管理簿'!$H:$H,'様式2 経費集計表'!$B54,'様式3 収支管理簿'!$A:$A,リスト!$C$2)+SUMIFS('様式4 現金出納帳'!$C:$C,'様式4 現金出納帳'!$G:$G,'様式2 経費集計表'!$A$48,'様式4 現金出納帳'!$H:$H,'様式2 経費集計表'!$B54,'様式4 現金出納帳'!$A:$A,リスト!$C$2)","v":0},{"$f":"SUMIFS('様式3 収支管理簿'!$C:$C,'様式3 収支管理簿'!$G:$G,'様式2 経費集計表'!$A$48,'様式3 収支管理簿'!$H:$H,'様式2 経費集計表'!$B54,'様式3 収支管理簿'!$A:$A,リスト!$C$3)+SUMIFS('様式4 現金出納帳'!$C:$C,'様式4 現金出納帳'!$G:$G,'様式2 経費集計表'!$A$48,'様式4 現金出納帳'!$H:$H,'様式2 経費集計表'!$B54,'様式4 現金出納帳'!$A:$A,リスト!$C$3)","v":0},{"$f":"SUMIFS('様式3 収支管理簿'!$C:$C,'様式3 収支管理簿'!$G:$G,'様式2 経費集計表'!$A$48,'様式3 収支管理簿'!$H:$H,'様式2 経費集計表'!$B54,'様式3 収支管理簿'!$A:$A,リスト!$C$4)+SUMIFS('様式4 現金出納帳'!$C:$C,'様式4 現金出納帳'!$G:$G,'様式2 経費集計表'!$A$48,'様式4 現金出納帳'!$H:$H,'様式2 経費集計表'!$B54,'様式4 現金出納帳'!$A:$A,リスト!$C$4)","v":0},{"$f":"SUMIFS('様式3 収支管理簿'!$C:$C,'様式3 収支管理簿'!$G:$G,'様式2 経費集計表'!$A$48,'様式3 収支管理簿'!$H:$H,'様式2 経費集計表'!$B54,'様式3 収支管理簿'!$A:$A,リスト!$C$5)+SUMIFS('様式4 現金出納帳'!$C:$C,'様式4 現金出納帳'!$G:$G,'様式2 経費集計表'!$A$48,'様式4 現金出納帳'!$H:$H,'様式2 経費集計表'!$B54,'様式4 現金出納帳'!$A:$A,リスト!$C$5)","v":0},""]
[null,null,null,0,{"$f":"SUMIFS('様式3 収支管理簿'!$C:$C,'様式3 収支管理簿'!$G:$G,'様式2 経費集計表'!$A$48,'様式3 収支管理簿'!$H:$H,'様式2 経費集計表'!$B55,'様式3 収支管理簿'!$A:$A,リスト!$C$2)+SUMIFS('様式4 現金出納帳'!$C:$C,'様式4 現金出納帳'!$G:$G,'様式2 経費集計表'!$A$48,'様式4 現金出納帳'!$H:$H,'様式2 経費集計表'!$B55,'様式4 現金出納帳'!$A:$A,リスト!$C$2)","v":0},{"$f":"SUMIFS('様式3 収支管理簿'!$C:$C,'様式3 収支管理簿'!$G:$G,'様式2 経費集計表'!$A$48,'様式3 収支管理簿'!$H:$H,'様式2 経費集計表'!$B55,'様式3 収支管理簿'!$A:$A,リスト!$C$3)+SUMIFS('様式4 現金出納帳'!$C:$C,'様式4 現金出納帳'!$G:$G,'様式2 経費集計表'!$A$48,'様式4 現金出納帳'!$H:$H,'様式2 経費集計表'!$B55,'様式4 現金出納帳'!$A:$A,リスト!$C$3)","v":0},{"$f":"SUMIFS('様式3 収支管理簿'!$C:$C,'様式3 収支管理簿'!$G:$G,'様式2 経費集計表'!$A$48,'様式3 収支管理簿'!$H:$H,'様式2 経費集計表'!$B55,'様式3 収支管理簿'!$A:$A,リスト!$C$4)+SUMIFS('様式4 現金出納帳'!$C:$C,'様式4 現金出納帳'!$G:$G,'様式2 経費集計表'!$A$48,'様式4 現金出納帳'!$H:$H,'様式2 経費集計表'!$B55,'様式4 現金出納帳'!$A:$A,リスト!$C$4)","v":0},{"$f":"SUMIFS('様式3 収支管理簿'!$C:$C,'様式3 収支管理簿'!$G:$G,'様式2 経費集計表'!$A$48,'様式3 収支管理簿'!$H:$H,'様式2 経費集計表'!$B55,'様式3 収支管理簿'!$A:$A,リスト!$C$5)+SUMIFS('様式4 現金出納帳'!$C:$C,'様式4 現金出納帳'!$G:$G,'様式2 経費集計表'!$A$48,'様式4 現金出納帳'!$H:$H,'様式2 経費集計表'!$B55,'様式4 現金出納帳'!$A:$A,リスト!$C$5)","v":0},""]
[null,null,null,0,{"$f":"SUMIFS('様式3 収支管理簿'!$C:$C,'様式3 収支管理簿'!$G:$G,'様式2 経費集計表'!$A$48,'様式3 収支管理簿'!$H:$H,'様式2 経費集計表'!$B56,'様式3 収支管理簿'!$A:$A,リスト!$C$2)+SUMIFS('様式4 現金出納帳'!$C:$C,'様式4 現金出納帳'!$G:$G,'様式2 経費集計表'!$A$48,'様式4 現金出納帳'!$H:$H,'様式2 経費集計表'!$B56,'様式4 現金出納帳'!$A:$A,リスト!$C$2)","v":0},{"$f":"SUMIFS('様式3 収支管理簿'!$C:$C,'様式3 収支管理簿'!$G:$G,'様式2 経費集計表'!$A$48,'様式3 収支管理簿'!$H:$H,'様式2 経費集計表'!$B56,'様式3 収支管理簿'!$A:$A,リスト!$C$3)+SUMIFS('様式4 現金出納帳'!$C:$C,'様式4 現金出納帳'!$G:$G,'様式2 経費集計表'!$A$48,'様式4 現金出納帳'!$H:$H,'様式2 経費集計表'!$B56,'様式4 現金出納帳'!$A:$A,リスト!$C$3)","v":0},{"$f":"SUMIFS('様式3 収支管理簿'!$C:$C,'様式3 収支管理簿'!$G:$G,'様式2 経費集計表'!$A$48,'様式3 収支管理簿'!$H:$H,'様式2 経費集計表'!$B56,'様式3 収支管理簿'!$A:$A,リスト!$C$4)+SUMIFS('様式4 現金出納帳'!$C:$C,'様式4 現金出納帳'!$G:$G,'様式2 経費集計表'!$A$48,'様式4 現金出納帳'!$H:$H,'様式2 経費集計表'!$B56,'様式4 現金出納帳'!$A:$A,リスト!$C$4)","v":0},{"$f":"SUMIFS('様式3 収支管理簿'!$C:$C,'様式3 収支管理簿'!$G:$G,'様式2 経費集計表'!$A$48,'様式3 収支管理簿'!$H:$H,'様式2 経費集計表'!$B56,'様式3 収支管理簿'!$A:$A,リスト!$C$5)+SUMIFS('様式4 現金出納帳'!$C:$C,'様式4 現金出納帳'!$G:$G,'様式2 経費集計表'!$A$48,'様式4 現金出納帳'!$H:$H,'様式2 経費集計表'!$B56,'様式4 現金出納帳'!$A:$A,リスト!$C$5)","v":0},""]
[null,null,null,0,{"$f":"SUMIFS('様式3 収支管理簿'!$C:$C,'様式3 収支管理簿'!$G:$G,'様式2 経費集計表'!$A$48,'様式3 収支管理簿'!$H:$H,'様式2 経費集計表'!$B57,'様式3 収支管理簿'!$A:$A,リスト!$C$2)+SUMIFS('様式4 現金出納帳'!$C:$C,'様式4 現金出納帳'!$G:$G,'様式2 経費集計表'!$A$48,'様式4 現金出納帳'!$H:$H,'様式2 経費集計表'!$B57,'様式4 現金出納帳'!$A:$A,リスト!$C$2)","v":0},{"$f":"SUMIFS('様式3 収支管理簿'!$C:$C,'様式3 収支管理簿'!$G:$G,'様式2 経費集計表'!$A$48,'様式3 収支管理簿'!$H:$H,'様式2 経費集計表'!$B57,'様式3 収支管理簿'!$A:$A,リスト!$C$3)+SUMIFS('様式4 現金出納帳'!$C:$C,'様式4 現金出納帳'!$G:$G,'様式2 経費集計表'!$A$48,'様式4 現金出納帳'!$H:$H,'様式2 経費集計表'!$B57,'様式4 現金出納帳'!$A:$A,リスト!$C$3)","v":0},{"$f":"SUMIFS('様式3 収支管理簿'!$C:$C,'様式3 収支管理簿'!$G:$G,'様式2 経費集計表'!$A$48,'様式3 収支管理簿'!$H:$H,'様式2 経費集計表'!$B57,'様式3 収支管理簿'!$A:$A,リスト!$C$4)+SUMIFS('様式4 現金出納帳'!$C:$C,'様式4 現金出納帳'!$G:$G,'様式2 経費集計表'!$A$48,'様式4 現金出納帳'!$H:$H,'様式2 経費集計表'!$B57,'様式4 現金出納帳'!$A:$A,リスト!$C$4)","v":0},{"$f":"SUMIFS('様式3 収支管理簿'!$C:$C,'様式3 収支管理簿'!$G:$G,'様式2 経費集計表'!$A$48,'様式3 収支管理簿'!$H:$H,'様式2 経費集計表'!$B57,'様式3 収支管理簿'!$A:$A,リスト!$C$5)+SUMIFS('様式4 現金出納帳'!$C:$C,'様式4 現金出納帳'!$G:$G,'様式2 経費集計表'!$A$48,'様式4 現金出納帳'!$H:$H,'様式2 経費集計表'!$B57,'様式4 現金出納帳'!$A:$A,リスト!$C$5)","v":0},""]
[null,null,null,0,{"$f":"SUMIFS('様式3 収支管理簿'!$C:$C,'様式3 収支管理簿'!$G:$G,'様式2 経費集計表'!$A$48,'様式3 収支管理簿'!$H:$H,'様式2 経費集計表'!$B58,'様式3 収支管理簿'!$A:$A,リスト!$C$2)+SUMIFS('様式4 現金出納帳'!$C:$C,'様式4 現金出納帳'!$G:$G,'様式2 経費集計表'!$A$48,'様式4 現金出納帳'!$H:$H,'様式2 経費集計表'!$B58,'様式4 現金出納帳'!$A:$A,リスト!$C$2)","v":0},{"$f":"SUMIFS('様式3 収支管理簿'!$C:$C,'様式3 収支管理簿'!$G:$G,'様式2 経費集計表'!$A$48,'様式3 収支管理簿'!$H:$H,'様式2 経費集計表'!$B58,'様式3 収支管理簿'!$A:$A,リスト!$C$3)+SUMIFS('様式4 現金出納帳'!$C:$C,'様式4 現金出納帳'!$G:$G,'様式2 経費集計表'!$A$48,'様式4 現金出納帳'!$H:$H,'様式2 経費集計表'!$B58,'様式4 現金出納帳'!$A:$A,リスト!$C$3)","v":0},{"$f":"SUMIFS('様式3 収支管理簿'!$C:$C,'様式3 収支管理簿'!$G:$G,'様式2 経費集計表'!$A$48,'様式3 収支管理簿'!$H:$H,'様式2 経費集計表'!$B58,'様式3 収支管理簿'!$A:$A,リスト!$C$4)+SUMIFS('様式4 現金出納帳'!$C:$C,'様式4 現金出納帳'!$G:$G,'様式2 経費集計表'!$A$48,'様式4 現金出納帳'!$H:$H,'様式2 経費集計表'!$B58,'様式4 現金出納帳'!$A:$A,リスト!$C$4)","v":0},{"$f":"SUMIFS('様式3 収支管理簿'!$C:$C,'様式3 収支管理簿'!$G:$G,'様式2 経費集計表'!$A$48,'様式3 収支管理簿'!$H:$H,'様式2 経費集計表'!$B58,'様式3 収支管理簿'!$A:$A,リスト!$C$5)+SUMIFS('様式4 現金出納帳'!$C:$C,'様式4 現金出納帳'!$G:$G,'様式2 経費集計表'!$A$48,'様式4 現金出納帳'!$H:$H,'様式2 経費集計表'!$B58,'様式4 現金出納帳'!$A:$A,リスト!$C$5)","v":0},""]
[null,null,null,0,{"$f":"SUMIFS('様式3 収支管理簿'!$C:$C,'様式3 収支管理簿'!$G:$G,'様式2 経費集計表'!$A$48,'様式3 収支管理簿'!$H:$H,'様式2 経費集計表'!$B59,'様式3 収支管理簿'!$A:$A,リスト!$C$2)+SUMIFS('様式4 現金出納帳'!$C:$C,'様式4 現金出納帳'!$G:$G,'様式2 経費集計表'!$A$48,'様式4 現金出納帳'!$H:$H,'様式2 経費集計表'!$B59,'様式4 現金出納帳'!$A:$A,リスト!$C$2)","v":0},{"$f":"SUMIFS('様式3 収支管理簿'!$C:$C,'様式3 収支管理簿'!$G:$G,'様式2 経費集計表'!$A$48,'様式3 収支管理簿'!$H:$H,'様式2 経費集計表'!$B59,'様式3 収支管理簿'!$A:$A,リスト!$C$3)+SUMIFS('様式4 現金出納帳'!$C:$C,'様式4 現金出納帳'!$G:$G,'様式2 経費集計表'!$A$48,'様式4 現金出納帳'!$H:$H,'様式2 経費集計表'!$B59,'様式4 現金出納帳'!$A:$A,リスト!$C$3)","v":0},{"$f":"SUMIFS('様式3 収支管理簿'!$C:$C,'様式3 収支管理簿'!$G:$G,'様式2 経費集計表'!$A$48,'様式3 収支管理簿'!$H:$H,'様式2 経費集計表'!$B59,'様式3 収支管理簿'!$A:$A,リスト!$C$4)+SUMIFS('様式4 現金出納帳'!$C:$C,'様式4 現金出納帳'!$G:$G,'様式2 経費集計表'!$A$48,'様式4 現金出納帳'!$H:$H,'様式2 経費集計表'!$B59,'様式4 現金出納帳'!$A:$A,リスト!$C$4)","v":0},{"$f":"SUMIFS('様式3 収支管理簿'!$C:$C,'様式3 収支管理簿'!$G:$G,'様式2 経費集計表'!$A$48,'様式3 収支管理簿'!$H:$H,'様式2 経費集計表'!$B59,'様式3 収支管理簿'!$A:$A,リスト!$C$5)+SUMIFS('様式4 現金出納帳'!$C:$C,'様式4 現金出納帳'!$G:$G,'様式2 経費集計表'!$A$48,'様式4 現金出納帳'!$H:$H,'様式2 経費集計表'!$B59,'様式4 現金出納帳'!$A:$A,リスト!$C$5)","v":0},""]
[null,null,null,0,{"$f":"SUMIFS('様式3 収支管理簿'!$C:$C,'様式3 収支管理簿'!$G:$G,'様式2 経費集計表'!$A$48,'様式3 収支管理簿'!$H:$H,'様式2 経費集計表'!$B60,'様式3 収支管理簿'!$A:$A,リスト!$C$2)+SUMIFS('様式4 現金出納帳'!$C:$C,'様式4 現金出納帳'!$G:$G,'様式2 経費集計表'!$A$48,'様式4 現金出納帳'!$H:$H,'様式2 経費集計表'!$B60,'様式4 現金出納帳'!$A:$A,リスト!$C$2)","v":0},{"$f":"SUMIFS('様式3 収支管理簿'!$C:$C,'様式3 収支管理簿'!$G:$G,'様式2 経費集計表'!$A$48,'様式3 収支管理簿'!$H:$H,'様式2 経費集計表'!$B60,'様式3 収支管理簿'!$A:$A,リスト!$C$3)+SUMIFS('様式4 現金出納帳'!$C:$C,'様式4 現金出納帳'!$G:$G,'様式2 経費集計表'!$A$48,'様式4 現金出納帳'!$H:$H,'様式2 経費集計表'!$B60,'様式4 現金出納帳'!$A:$A,リスト!$C$3)","v":0},{"$f":"SUMIFS('様式3 収支管理簿'!$C:$C,'様式3 収支管理簿'!$G:$G,'様式2 経費集計表'!$A$48,'様式3 収支管理簿'!$H:$H,'様式2 経費集計表'!$B60,'様式3 収支管理簿'!$A:$A,リスト!$C$4)+SUMIFS('様式4 現金出納帳'!$C:$C,'様式4 現金出納帳'!$G:$G,'様式2 経費集計表'!$A$48,'様式4 現金出納帳'!$H:$H,'様式2 経費集計表'!$B60,'様式4 現金出納帳'!$A:$A,リスト!$C$4)","v":0},{"$f":"SUMIFS('様式3 収支管理簿'!$C:$C,'様式3 収支管理簿'!$G:$G,'様式2 経費集計表'!$A$48,'様式3 収支管理簿'!$H:$H,'様式2 経費集計表'!$B60,'様式3 収支管理簿'!$A:$A,リスト!$C$5)+SUMIFS('様式4 現金出納帳'!$C:$C,'様式4 現金出納帳'!$G:$G,'様式2 経費集計表'!$A$48,'様式4 現金出納帳'!$H:$H,'様式2 経費集計表'!$B60,'様式4 現金出納帳'!$A:$A,リスト!$C$5)","v":0},""]
[null,null,null,0,{"$f":"SUMIFS('様式3 収支管理簿'!$C:$C,'様式3 収支管理簿'!$G:$G,'様式2 経費集計表'!$A$48,'様式3 収支管理簿'!$H:$H,'様式2 経費集計表'!$B61,'様式3 収支管理簿'!$A:$A,リスト!$C$2)+SUMIFS('様式4 現金出納帳'!$C:$C,'様式4 現金出納帳'!$G:$G,'様式2 経費集計表'!$A$48,'様式4 現金出納帳'!$H:$H,'様式2 経費集計表'!$B61,'様式4 現金出納帳'!$A:$A,リスト!$C$2)","v":0},{"$f":"SUMIFS('様式3 収支管理簿'!$C:$C,'様式3 収支管理簿'!$G:$G,'様式2 経費集計表'!$A$48,'様式3 収支管理簿'!$H:$H,'様式2 経費集計表'!$B61,'様式3 収支管理簿'!$A:$A,リスト!$C$3)+SUMIFS('様式4 現金出納帳'!$C:$C,'様式4 現金出納帳'!$G:$G,'様式2 経費集計表'!$A$48,'様式4 現金出納帳'!$H:$H,'様式2 経費集計表'!$B61,'様式4 現金出納帳'!$A:$A,リスト!$C$3)","v":0},{"$f":"SUMIFS('様式3 収支管理簿'!$C:$C,'様式3 収支管理簿'!$G:$G,'様式2 経費集計表'!$A$48,'様式3 収支管理簿'!$H:$H,'様式2 経費集計表'!$B61,'様式3 収支管理簿'!$A:$A,リスト!$C$4)+SUMIFS('様式4 現金出納帳'!$C:$C,'様式4 現金出納帳'!$G:$G,'様式2 経費集計表'!$A$48,'様式4 現金出納帳'!$H:$H,'様式2 経費集計表'!$B61,'様式4 現金出納帳'!$A:$A,リスト!$C$4)","v":0},{"$f":"SUMIFS('様式3 収支管理簿'!$C:$C,'様式3 収支管理簿'!$G:$G,'様式2 経費集計表'!$A$48,'様式3 収支管理簿'!$H:$H,'様式2 経費集計表'!$B61,'様式3 収支管理簿'!$A:$A,リスト!$C$5)+SUMIFS('様式4 現金出納帳'!$C:$C,'様式4 現金出納帳'!$G:$G,'様式2 経費集計表'!$A$48,'様式4 現金出納帳'!$H:$H,'様式2 経費集計表'!$B61,'様式4 現金出納帳'!$A:$A,リスト!$C$5)","v":0},""]
[null,null,null,0,{"$f":"SUMIFS('様式3 収支管理簿'!$C:$C,'様式3 収支管理簿'!$G:$G,'様式2 経費集計表'!$A$48,'様式3 収支管理簿'!$H:$H,'様式2 経費集計表'!$B62,'様式3 収支管理簿'!$A:$A,リスト!$C$2)+SUMIFS('様式4 現金出納帳'!$C:$C,'様式4 現金出納帳'!$G:$G,'様式2 経費集計表'!$A$48,'様式4 現金出納帳'!$H:$H,'様式2 経費集計表'!$B62,'様式4 現金出納帳'!$A:$A,リスト!$C$2)","v":0},{"$f":"SUMIFS('様式3 収支管理簿'!$C:$C,'様式3 収支管理簿'!$G:$G,'様式2 経費集計表'!$A$48,'様式3 収支管理簿'!$H:$H,'様式2 経費集計表'!$B62,'様式3 収支管理簿'!$A:$A,リスト!$C$3)+SUMIFS('様式4 現金出納帳'!$C:$C,'様式4 現金出納帳'!$G:$G,'様式2 経費集計表'!$A$48,'様式4 現金出納帳'!$H:$H,'様式2 経費集計表'!$B62,'様式4 現金出納帳'!$A:$A,リスト!$C$3)","v":0},{"$f":"SUMIFS('様式3 収支管理簿'!$C:$C,'様式3 収支管理簿'!$G:$G,'様式2 経費集計表'!$A$48,'様式3 収支管理簿'!$H:$H,'様式2 経費集計表'!$B62,'様式3 収支管理簿'!$A:$A,リスト!$C$4)+SUMIFS('様式4 現金出納帳'!$C:$C,'様式4 現金出納帳'!$G:$G,'様式2 経費集計表'!$A$48,'様式4 現金出納帳'!$H:$H,'様式2 経費集計表'!$B62,'様式4 現金出納帳'!$A:$A,リスト!$C$4)","v":0},{"$f":"SUMIFS('様式3 収支管理簿'!$C:$C,'様式3 収支管理簿'!$G:$G,'様式2 経費集計表'!$A$48,'様式3 収支管理簿'!$H:$H,'様式2 経費集計表'!$B62,'様式3 収支管理簿'!$A:$A,リスト!$C$5)+SUMIFS('様式4 現金出納帳'!$C:$C,'様式4 現金出納帳'!$G:$G,'様式2 経費集計表'!$A$48,'様式4 現金出納帳'!$H:$H,'様式2 経費集計表'!$B62,'様式4 現金出納帳'!$A:$A,リスト!$C$5)","v":0},""]
[null,null,null,0,{"$f":"SUMIFS('様式3 収支管理簿'!$C:$C,'様式3 収支管理簿'!$G:$G,'様式2 経費集計表'!$A$48,'様式3 収支管理簿'!$H:$H,'様式2 経費集計表'!$B63,'様式3 収支管理簿'!$A:$A,リスト!$C$2)+SUMIFS('様式4 現金出納帳'!$C:$C,'様式4 現金出納帳'!$G:$G,'様式2 経費集計表'!$A$48,'様式4 現金出納帳'!$H:$H,'様式2 経費集計表'!$B63,'様式4 現金出納帳'!$A:$A,リスト!$C$2)","v":0},{"$f":"SUMIFS('様式3 収支管理簿'!$C:$C,'様式3 収支管理簿'!$G:$G,'様式2 経費集計表'!$A$48,'様式3 収支管理簿'!$H:$H,'様式2 経費集計表'!$B63,'様式3 収支管理簿'!$A:$A,リスト!$C$3)+SUMIFS('様式4 現金出納帳'!$C:$C,'様式4 現金出納帳'!$G:$G,'様式2 経費集計表'!$A$48,'様式4 現金出納帳'!$H:$H,'様式2 経費集計表'!$B63,'様式4 現金出納帳'!$A:$A,リスト!$C$3)","v":0},{"$f":"SUMIFS('様式3 収支管理簿'!$C:$C,'様式3 収支管理簿'!$G:$G,'様式2 経費集計表'!$A$48,'様式3 収支管理簿'!$H:$H,'様式2 経費集計表'!$B63,'様式3 収支管理簿'!$A:$A,リスト!$C$4)+SUMIFS('様式4 現金出納帳'!$C:$C,'様式4 現金出納帳'!$G:$G,'様式2 経費集計表'!$A$48,'様式4 現金出納帳'!$H:$H,'様式2 経費集計表'!$B63,'様式4 現金出納帳'!$A:$A,リスト!$C$4)","v":0},{"$f":"SUMIFS('様式3 収支管理簿'!$C:$C,'様式3 収支管理簿'!$G:$G,'様式2 経費集計表'!$A$48,'様式3 収支管理簿'!$H:$H,'様式2 経費集計表'!$B63,'様式3 収支管理簿'!$A:$A,リスト!$C$5)+SUMIFS('様式4 現金出納帳'!$C:$C,'様式4 現金出納帳'!$G:$G,'様式2 経費集計表'!$A$48,'様式4 現金出納帳'!$H:$H,'様式2 経費集計表'!$B63,'様式4 現金出納帳'!$A:$A,リスト!$C$5)","v":0},""]
[null,null,null,0,{"$f":"SUMIFS('様式3 収支管理簿'!$C:$C,'様式3 収支管理簿'!$G:$G,'様式2 経費集計表'!$A$48,'様式3 収支管理簿'!$H:$H,'様式2 経費集計表'!$B64,'様式3 収支管理簿'!$A:$A,リスト!$C$2)+SUMIFS('様式4 現金出納帳'!$C:$C,'様式4 現金出納帳'!$G:$G,'様式2 経費集計表'!$A$48,'様式4 現金出納帳'!$H:$H,'様式2 経費集計表'!$B64,'様式4 現金出納帳'!$A:$A,リスト!$C$2)","v":0},{"$f":"SUMIFS('様式3 収支管理簿'!$C:$C,'様式3 収支管理簿'!$G:$G,'様式2 経費集計表'!$A$48,'様式3 収支管理簿'!$H:$H,'様式2 経費集計表'!$B64,'様式3 収支管理簿'!$A:$A,リスト!$C$3)+SUMIFS('様式4 現金出納帳'!$C:$C,'様式4 現金出納帳'!$G:$G,'様式2 経費集計表'!$A$48,'様式4 現金出納帳'!$H:$H,'様式2 経費集計表'!$B64,'様式4 現金出納帳'!$A:$A,リスト!$C$3)","v":0},{"$f":"SUMIFS('様式3 収支管理簿'!$C:$C,'様式3 収支管理簿'!$G:$G,'様式2 経費集計表'!$A$48,'様式3 収支管理簿'!$H:$H,'様式2 経費集計表'!$B64,'様式3 収支管理簿'!$A:$A,リスト!$C$4)+SUMIFS('様式4 現金出納帳'!$C:$C,'様式4 現金出納帳'!$G:$G,'様式2 経費集計表'!$A$48,'様式4 現金出納帳'!$H:$H,'様式2 経費集計表'!$B64,'様式4 現金出納帳'!$A:$A,リスト!$C$4)","v":0},{"$f":"SUMIFS('様式3 収支管理簿'!$C:$C,'様式3 収支管理簿'!$G:$G,'様式2 経費集計表'!$A$48,'様式3 収支管理簿'!$H:$H,'様式2 経費集計表'!$B64,'様式3 収支管理簿'!$A:$A,リスト!$C$5)+SUMIFS('様式4 現金出納帳'!$C:$C,'様式4 現金出納帳'!$G:$G,'様式2 経費集計表'!$A$48,'様式4 現金出納帳'!$H:$H,'様式2 経費集計表'!$B64,'様式4 現金出納帳'!$A:$A,リスト!$C$5)","v":0},""]
[null,null,null,0,{"$f":"SUMIFS('様式3 収支管理簿'!$C:$C,'様式3 収支管理簿'!$G:$G,'様式2 経費集計表'!$A$48,'様式3 収支管理簿'!$H:$H,'様式2 経費集計表'!$B65,'様式3 収支管理簿'!$A:$A,リスト!$C$2)+SUMIFS('様式4 現金出納帳'!$C:$C,'様式4 現金出納帳'!$G:$G,'様式2 経費集計表'!$A$48,'様式4 現金出納帳'!$H:$H,'様式2 経費集計表'!$B65,'様式4 現金出納帳'!$A:$A,リスト!$C$2)","v":0},{"$f":"SUMIFS('様式3 収支管理簿'!$C:$C,'様式3 収支管理簿'!$G:$G,'様式2 経費集計表'!$A$48,'様式3 収支管理簿'!$H:$H,'様式2 経費集計表'!$B65,'様式3 収支管理簿'!$A:$A,リスト!$C$3)+SUMIFS('様式4 現金出納帳'!$C:$C,'様式4 現金出納帳'!$G:$G,'様式2 経費集計表'!$A$48,'様式4 現金出納帳'!$H:$H,'様式2 経費集計表'!$B65,'様式4 現金出納帳'!$A:$A,リスト!$C$3)","v":0},{"$f":"SUMIFS('様式3 収支管理簿'!$C:$C,'様式3 収支管理簿'!$G:$G,'様式2 経費集計表'!$A$48,'様式3 収支管理簿'!$H:$H,'様式2 経費集計表'!$B65,'様式3 収支管理簿'!$A:$A,リスト!$C$4)+SUMIFS('様式4 現金出納帳'!$C:$C,'様式4 現金出納帳'!$G:$G,'様式2 経費集計表'!$A$48,'様式4 現金出納帳'!$H:$H,'様式2 経費集計表'!$B65,'様式4 現金出納帳'!$A:$A,リスト!$C$4)","v":0},{"$f":"SUMIFS('様式3 収支管理簿'!$C:$C,'様式3 収支管理簿'!$G:$G,'様式2 経費集計表'!$A$48,'様式3 収支管理簿'!$H:$H,'様式2 経費集計表'!$B65,'様式3 収支管理簿'!$A:$A,リスト!$C$5)+SUMIFS('様式4 現金出納帳'!$C:$C,'様式4 現金出納帳'!$G:$G,'様式2 経費集計表'!$A$48,'様式4 現金出納帳'!$H:$H,'様式2 経費集計表'!$B65,'様式4 現金出納帳'!$A:$A,リスト!$C$5)","v":0},""]
[null,null,null,0,{"$f":"SUMIFS('様式3 収支管理簿'!$C:$C,'様式3 収支管理簿'!$G:$G,'様式2 経費集計表'!$A$48,'様式3 収支管理簿'!$H:$H,'様式2 経費集計表'!$B66,'様式3 収支管理簿'!$A:$A,リスト!$C$2)+SUMIFS('様式4 現金出納帳'!$C:$C,'様式4 現金出納帳'!$G:$G,'様式2 経費集計表'!$A$48,'様式4 現金出納帳'!$H:$H,'様式2 経費集計表'!$B66,'様式4 現金出納帳'!$A:$A,リスト!$C$2)","v":0},{"$f":"SUMIFS('様式3 収支管理簿'!$C:$C,'様式3 収支管理簿'!$G:$G,'様式2 経費集計表'!$A$48,'様式3 収支管理簿'!$H:$H,'様式2 経費集計表'!$B66,'様式3 収支管理簿'!$A:$A,リスト!$C$3)+SUMIFS('様式4 現金出納帳'!$C:$C,'様式4 現金出納帳'!$G:$G,'様式2 経費集計表'!$A$48,'様式4 現金出納帳'!$H:$H,'様式2 経費集計表'!$B66,'様式4 現金出納帳'!$A:$A,リスト!$C$3)","v":0},{"$f":"SUMIFS('様式3 収支管理簿'!$C:$C,'様式3 収支管理簿'!$G:$G,'様式2 経費集計表'!$A$48,'様式3 収支管理簿'!$H:$H,'様式2 経費集計表'!$B66,'様式3 収支管理簿'!$A:$A,リスト!$C$4)+SUMIFS('様式4 現金出納帳'!$C:$C,'様式4 現金出納帳'!$G:$G,'様式2 経費集計表'!$A$48,'様式4 現金出納帳'!$H:$H,'様式2 経費集計表'!$B66,'様式4 現金出納帳'!$A:$A,リスト!$C$4)","v":0},{"$f":"SUMIFS('様式3 収支管理簿'!$C:$C,'様式3 収支管理簿'!$G:$G,'様式2 経費集計表'!$A$48,'様式3 収支管理簿'!$H:$H,'様式2 経費集計表'!$B66,'様式3 収支管理簿'!$A:$A,リスト!$C$5)+SUMIFS('様式4 現金出納帳'!$C:$C,'様式4 現金出納帳'!$G:$G,'様式2 経費集計表'!$A$48,'様式4 現金出納帳'!$H:$H,'様式2 経費集計表'!$B66,'様式4 現金出納帳'!$A:$A,リスト!$C$5)","v":0},""]
[null,null,null,0,{"$f":"SUMIFS('様式3 収支管理簿'!$C:$C,'様式3 収支管理簿'!$G:$G,'様式2 経費集計表'!$A$48,'様式3 収支管理簿'!$H:$H,'様式2 経費集計表'!$B67,'様式3 収支管理簿'!$A:$A,リスト!$C$2)+SUMIFS('様式4 現金出納帳'!$C:$C,'様式4 現金出納帳'!$G:$G,'様式2 経費集計表'!$A$48,'様式4 現金出納帳'!$H:$H,'様式2 経費集計表'!$B67,'様式4 現金出納帳'!$A:$A,リスト!$C$2)","v":0},{"$f":"SUMIFS('様式3 収支管理簿'!$C:$C,'様式3 収支管理簿'!$G:$G,'様式2 経費集計表'!$A$48,'様式3 収支管理簿'!$H:$H,'様式2 経費集計表'!$B67,'様式3 収支管理簿'!$A:$A,リスト!$C$3)+SUMIFS('様式4 現金出納帳'!$C:$C,'様式4 現金出納帳'!$G:$G,'様式2 経費集計表'!$A$48,'様式4 現金出納帳'!$H:$H,'様式2 経費集計表'!$B67,'様式4 現金出納帳'!$A:$A,リスト!$C$3)","v":0},{"$f":"SUMIFS('様式3 収支管理簿'!$C:$C,'様式3 収支管理簿'!$G:$G,'様式2 経費集計表'!$A$48,'様式3 収支管理簿'!$H:$H,'様式2 経費集計表'!$B67,'様式3 収支管理簿'!$A:$A,リスト!$C$4)+SUMIFS('様式4 現金出納帳'!$C:$C,'様式4 現金出納帳'!$G:$G,'様式2 経費集計表'!$A$48,'様式4 現金出納帳'!$H:$H,'様式2 経費集計表'!$B67,'様式4 現金出納帳'!$A:$A,リスト!$C$4)","v":0},{"$f":"SUMIFS('様式3 収支管理簿'!$C:$C,'様式3 収支管理簿'!$G:$G,'様式2 経費集計表'!$A$48,'様式3 収支管理簿'!$H:$H,'様式2 経費集計表'!$B67,'様式3 収支管理簿'!$A:$A,リスト!$C$5)+SUMIFS('様式4 現金出納帳'!$C:$C,'様式4 現金出納帳'!$G:$G,'様式2 経費集計表'!$A$48,'様式4 現金出納帳'!$H:$H,'様式2 経費集計表'!$B67,'様式4 現金出納帳'!$A:$A,リスト!$C$5)","v":0},""]
["小計",null,{"$f":"SUM(C48:C67)","v":0},{"$f":"SUM(D48:D67)","v":0},{"$f":"SUM(E48:E67)","v":0},{"$f":"SUM(F48:F67)","v":0},{"$f":"SUM(G48:G67)","v":0},0,""]

{"sheet":"様式3 収支管理簿","index":4,"n_rows":1000,"n_cols":10,"rows_kept":1000,"cut":false,"hidden":false,"merged":[]}
["精算様式3. 収支管理簿"]
["収 支 管 理 簿"]
[]
["年度","年月日","支出金額","収入金額","指定口座残高","支払先/受入元","目的区分","会計科目","使途・目的・理由など","支払証拠書類の番号"]
[{"$f":"IF(B5=\"\",\"\",IF(MONTH(B5)>=4,YEAR(B5),YEAR(B5)-1))","v":""},null,null,null,{"$f":"D5","v":0}]
[{"$f":"IF(B6=\"\",\"\",IF(MONTH(B6)>=4,YEAR(B6),YEAR(B6)-1))","v":""},null,null,null,{"$f":"E5-C6+D6","v":0}]
["",null,null,null,{"$f":"E6-C7+D7","v":0}]
["",null,null,null,{"$f":"E7-C8+D8","v":0}]
["",null,null,null,{"$f":"E8-C9+D9","v":0}]
["",null,null,null,{"$f":"E9-C10+D10","v":0}]
["",null,null,null,{"$f":"E10-C11+D11","v":0}]
["",null,null,null,0]
["",null,null,null,0]
["",null,null,null,0]
["",null,null,null,0]
["",null,null,null,0]
["",null,null,null,0]
["",null,null,null,0]
["",null,null,null,0]
["",null,null,null,0]
["",null,null,null,0]
["",null,null,null,0]
["",null,null,null,0]
["",null,null,null,0]
["",null,null,null,0]
["",null,null,null,0]
["",null,null,null,0]
["",null,null,null,0]
["",null,null,null,0]
["",null,null,null,0]
["",null,null,null,0]
["",null,null,null,0]
["",null,null,null,0]
["",null,null,null,0]
["",null,null,null,0]
["",null,null,null,0]
["",null,null,null,0]
["",null,null,null,0]
["",null,null,null,0]
["",null,null,null,0]
["",null,null,null,0]
["",null,null,null,0]
["",null,null,null,0]
["",null,null,null,0]
["",null,null,null,0]
["",null,null,null,0]
["",null,null,null,0]
["",null,null,null,0]
["",null,null,null,0]
["",null,null,null,0]
["",null,null,null,0]
["",null,null,null,0]
["",null,null,null,0]
["",null,null,null,0]
["",null,null,null,0]
["",null,null,null,0]
["",null,null,null,0]
["",null,null,null,0]
["",null,null,null,0]
["",null,null,null,0]
["",null,null,null,0]
["",null,null,null,0]
["",null,null,null,0]
["",null,null,null,0]
["",null,null,null,0]
["",null,null,null,0]
["",null,null,null,0]
["",null,null,null,0]
["",null,null,null,0]
[{"$f":"IF(B70=\"\",\"\",IF(MONTH(B70)>=4,YEAR(B70),YEAR(B70)-1))","v":""},null,null,null,0]
["",null,null,null,0]
["",null,null,null,0]
["",null,null,null,0]
["",null,null,null,0]
["",null,null,null,{"$f":"E74-C75+D75","v":0}]
["",null,null,null,0]
["",null,null,null,0]
["",null,null,null,0]
["",null,null,null,0]
["",null,null,null,0]
["",null,null,null,0]
["",null,null,null,0]
["",null,null,null,0]
["",null,null,null,0]
["",null,null,null,0]
["",null,null,null,0]
["",null,null,null,0]
["",null,null,null,0]
["",null,null,null,0]
["",null,null,null,0]
["",null,null,null,0]
["",null,null,null,0]
["",null,null,null,0]
["",null,null,null,0]
["",null,null,null,0]
["",null,null,null,0]
["",null,null,null,0]
["",null,null,null,0]
["",null,null,null,0]
["",null,null,null,0]
["",null,null,null,0]
["",null,null,null,0]
["",null,null,null,0]
["",null,null,null,0]
["",null,null,null,0]
["",null,null,null,0]
["",null,null,null,0]
["",null,null,null,0]
["",null,null,null,0]
["",null,null,null,0]
["",null,null,null,0]
["",null,null,null,0]
["",null,null,null,0]
["",null,null,null,0]
["",null,null,null,0]
["",null,null,null,0]
["",null,null,null,0]
["",null,null,null,0]
["",null,null,null,0]
["",null,null,null,0]
["",null,null,null,0]
["",null,null,null,0]
["",null,null,null,0]
["",null,null,null,0]
["",null,null,null,0]
["",null,null,null,0]
["",null,null,null,0]
["",null,null,null,0]
["",null,null,null,0]
["",null,null,null,0]
["",null,null,null,0]
["",null,null,null,0]
["",null,null,null,0]
[{"$f":"IF(B134=\"\",\"\",IF(MONTH(B134)>=4,YEAR(B134),YEAR(B134)-1))","v":""},null,null,null,0]
["",null,null,null,0]
["",null,null,null,0]
["",null,null,null,0]
["",null,null,null,0]
["",null,null,null,{"$f":"E138-C139+D139","v":0}]
["",null,null,null,0]
["",null,null,null,{"$f":"E140-C141+D141","v":0}]
["",null,null,null,0]
["",null,null,null,0]
["",null,null,null,0]
["",null,null,null,0]
["",null,null,null,0]
["",null,null,null,0]
["",null,null,null,0]
["",null,null,null,0]
["",null,null,null,0]
["",null,null,null,0]
["",null,null,null,0]
["",null,null,null,0]
["",null,null,null,0]
["",null,null,null,0]
["",null,null,null,0]
["",null,null,null,0]
["",null,null,null,0]
["",null,null,null,0]
["",null,null,null,0]
["",null,null,null,0]
["",null,null,null,0]
["",null,null,null,0]
["",null,null,null,0]
["",null,null,null,0]
["",null,null,null,0]
["",null,null,null,0]
["",null,null,null,0]
["",null,null,null,0]
["",null,null,null,0]
["",null,null,null,0]
["",null,null,null,0]
["",null,null,null,0]
["",null,null,null,0]
["",null,null,null,0]
["",null,null,null,0]
["",null,null,null,0]
["",null,null,null,0]
["",null,null,null,0]
["",null,null,null,0]
["",null,null,null,0]
["",null,null,null,0]
["",null,null,null,0]
["",null,null,null,0]
["",null,null,null,0]
["",null,null,null,0]
["",null,null,null,0]
["",null,null,null,0]
["",null,null,null,0]
["",null,null,null,0]
["",null,null,null,0]
["",null,null,null,0]
["",null,null,null,0]
["",null,null,null,0]
["",null,null,null,0]
["",null,null,null,0]
["",null,null,null,0]
[{"$f":"IF(B198=\"\",\"\",IF(MONTH(B198)>=4,YEAR(B198),YEAR(B198)-1))","v":""},null,null,null,0]
["",null,null,null,0]
["",null,null,null,0]
["",null,null,null,0]
["",null,null,null,0]
["",null,null,null,0]
["",null,null,null,0]
["",null,null,null,{"$f":"E204-C205+D205","v":0}]
["",null,null,null,0]
["",null,null,null,0]
["",null,null,null,0]
["",null,null,null,0]
["",null,null,null,0]
["",null,null,null,0]
["",null,null,null,0]
["",null,null,null,0]
["",null,null,null,0]
["",null,null,null,0]
["",null,null,null,0]
["",null,null,null,0]
["",null,null,null,0]
["",null,null,null,0]
["",null,null,null,0]
["",null,null,null,0]
["",null,null,null,0]
["",null,null,null,0]
["",null,null,null,0]
["",null,null,null,0]
["",null,null,null,0]
["",null,null,null,0]
["",null,null,null,0]
["",null,null,null,0]
["",null,null,null,0]
["",null,null,null,0]
["",null,null,null,0]
["",null,null,null,0]
["",null,null,null,0]
["",null,null,null,0]
["",null,null,null,0]
["",null,null,null,0]
["",null,null,null,0]
["",null,null,null,0]
["",null,null,null,0]
["",null,null,null,0]
["",null,null,null,0]
["",null,null,null,0]
["",null,null,null,0]
["",null,null,null,0]
["",null,null,null,0]
["",null,null,null,0]
["",null,null,null,0]
["",null,null,null,0]
["",null,null,null,0]
["",null,null,null,0]
["",null,null,null,0]
["",null,null,null,0]
["",null,null,null,0]
["",null,null,null,0]
["",null,null,null,0]
["",null,null,null,0]
["",null,null,null,0]
["",null,null,null,0]
["",null,null,null,0]
["",null,null,null,0]
[{"$f":"IF(B262=\"\",\"\",IF(MONTH(B262)>=4,YEAR(B262),YEAR(B262)-1))","v":""},null,null,null,0]
["",null,null,null,0]
["",null,null,null,0]
["",null,null,null,0]
["",null,null,null,0]
["",null,null,null,0]
["",null,null,null,0]
["",null,null,null,{"$f":"E268-C269+D269","v":0}]
["",null,null,null,0]
["",null,null,null,0]
["",null,null,null,0]
["",null,null,null,0]
["",null,null,null,0]
["",null,null,null,0]
["",null,null,null,0]
["",null,null,null,0]
["",null,null,null,0]
["",null,null,null,0]
["",null,null,null,0]
["",null,null,null,0]
["",null,null,null,0]
["",null,null,null,0]
["",null,null,null,0]
["",null,null,null,0]
["",null,null,null,0]
["",null,null,null,0]
["",null,null,null,0]
["",null,null,null,0]
["",null,null,null,0]
["",null,null,null,0]
["",null,null,null,0]
["",null,null,null,0]
["",null,null,null,0]
["",null,null,null,0]
["",null,null,null,0]
["",null,null,null,0]
["",null,null,null,0]
["",null,null,null,0]
["",null,null,null,0]
["",null,null,null,0]
["",null,null,null,0]
["",null,null,null,0]
["",null,null,null,0]
["",null,null,null,0]
["",null,null,null,0]
["",null,null,null,0]
["",null,null,null,0]
["",null,null,null,0]
["",null,null,null,0]
["",null,null,null,0]
["",null,null,null,0]
["",null,null,null,0]
["",null,null,null,0]
["",null,null,null,0]
["",null,null,null,0]
["",null,null,null,0]
["",null,null,null,0]
["",null,null,null,0]
["",null,null,null,0]
["",null,null,null,0]
["",null,null,null,0]
["",null,null,null,0]
["",null,null,null,0]
["",null,null,null,0]
[{"$f":"IF(B326=\"\",\"\",IF(MONTH(B326)>=4,YEAR(B326),YEAR(B326)-1))","v":""},null,null,null,0]
["",null,null,null,0]
["",null,null,null,0]
["",null,null,null,0]
["",null,null,null,0]
["",null,null,null,0]
["",null,null,null,0]
["",null,null,null,{"$f":"E332-C333+D333","v":0}]
["",null,null,null,0]
["",null,null,null,0]
["",null,null,null,0]
["",null,null,null,0]
["",null,null,null,0]
["",null,null,null,0]
["",null,null,null,0]
["",null,null,null,0]
["",null,null,null,0]
["",null,null,null,0]
["",null,null,null,0]
["",null,null,null,0]
["",null,null,null,0]
["",null,null,null,0]
["",null,null,null,0]
["",null,null,null,0]
["",null,null,null,0]
["",null,null,null,0]
["",null,null,null,0]
["",null,null,null,0]
["",null,null,null,0]
["",null,null,null,0]
["",null,null,null,0]
["",null,null,null,0]
["",null,null,null,0]
["",null,null,null,0]
["",null,null,null,0]
["",null,null,null,0]
["",null,null,null,0]
["",null,null,null,0]
["",null,null,null,0]
["",null,null,null,0]
["",null,null,null,0]
["",null,null,null,0]
["",null,null,null,0]
["",null,null,null,0]
["",null,null,null,0]
["",null,null,null,0]
["",null,null,null,0]
["",null,null,null,0]
["",null,null,null,0]
["",null,null,null,0]
["",null,null,null,0]
["",null,null,null,0]
["",null,null,null,0]
["",null,null,null,0]
["",null,null,null,0]
["",null,null,null,0]
["",null,null,null,0]
["",null,null,null,0]
["",null,null,null,0]
["",null,null,null,0]
["",null,null,null,0]
["",null,null,null,0]
["",null,null,null,0]
["",null,null,null,0]
[{"$f":"IF(B390=\"\",\"\",IF(MONTH(B390)>=4,YEAR(B390),YEAR(B390)-1))","v":""},null,null,null,0]
["",null,null,null,0]
["",null,null,null,0]
["",null,null,null,0]
["",null,null,null,0]
["",null,null,null,0]
["",null,null,null,0]
["",null,null,null,{"$f":"E396-C397+D397","v":0}]
["",null,null,null,0]
["",null,null,null,0]
["",null,null,null,0]
["",null,null,null,0]
["",null,null,null,0]
["",null,null,null,0]
["",null,null,null,0]
["",null,null,null,0]
["",null,null,null,0]
["",null,null,null,0]
["",null,null,null,0]
["",null,null,null,0]
["",null,null,null,0]
["",null,null,null,0]
["",null,null,null,0]
["",null,null,null,0]
["",null,null,null,0]
["",null,null,null,0]
["",null,null,null,0]
["",null,null,null,0]
["",null,null,null,0]
["",null,null,null,0]
["",null,null,null,0]
["",null,null,null,0]
["",null,null,null,0]
["",null,null,null,0]
["",null,null,null,0]
["",null,null,null,0]
["",null,null,null,0]
["",null,null,null,0]
["",null,null,null,0]
["",null,null,null,0]
["",null,null,null,0]
["",null,null,null,0]
["",null,null,null,0]
["",null,null,null,0]
["",null,null,null,0]
["",null,null,null,0]
["",null,null,null,0]
["",null,null,null,0]
["",null,null,null,0]
["",null,null,null,0]
["",null,null,null,0]
["",null,null,null,0]
["",null,null,null,0]
["",null,null,null,0]
["",null,null,null,0]
["",null,null,null,0]
["",null,null,null,0]
["",null,null,null,0]
["",null,null,null,0]
["",null,null,null,0]
["",null,null,null,0]
["",null,null,null,0]
["",null,null,null,0]
["",null,null,null,0]
[{"$f":"IF(B454=\"\",\"\",IF(MONTH(B454)>=4,YEAR(B454),YEAR(B454)-1))","v":""},null,null,null,0]
["",null,null,null,0]
["",null,null,null,0]
["",null,null,null,0]
["",null,null,null,0]
["",null,null,null,0]
["",null,null,null,0]
["",null,null,null,{"$f":"E460-C461+D461","v":0}]
["",null,null,null,0]
["",null,null,null,0]
["",null,null,null,0]
["",null,null,null,0]
["",null,null,null,0]
["",null,null,null,0]
["",null,null,null,0]
["",null,null,null,0]
["",null,null,null,0]
["",null,null,null,0]
["",null,null,null,0]
["",null,null,null,0]
["",null,null,null,0]
["",null,null,null,0]
["",null,null,null,0]
["",null,null,null,0]
["",null,null,null,0]
["",null,null,null,0]
["",null,null,null,0]
["",null,null,null,0]
["",null,null,null,0]
["",null,null,null,0]
["",null,null,null,0]
["",null,null,null,0]
["",null,null,null,0]
["",null,null,null,0]
["",null,null,null,0]
["",null,null,null,0]
["",null,null,null,0]
["",null,null,null,0]
["",null,null,null,0]
["",null,null,null,0]
["",null,null,null,0]
["",null,null,null,0]
["",null,null,null,0]
["",null,null,null,0]
["",null,null,null,0]
["",null,null,null,0]
["",null,null,null,0]
["",null,null,null,0]
["",null,null,null,0]
["",null,null,null,0]
["",null,null,null,0]
["",null,null,null,0]
["",null,null,null,0]
["",null,null,null,0]
["",null,null,null,0]
["",null,null,null,0]
["",null,null,null,0]
["",null,null,null,0]
["",null,null,null,0]
["",null,null,null,0]
["",null,null,null,0]
["",null,null,null,0]
["",null,null,null,0]
["",null,null,null,0]
[{"$f":"IF(B518=\"\",\"\",IF(MONTH(B518)>=4,YEAR(B518),YEAR(B518)-1))","v":""},null,null,null,0]
["",null,null,null,0]
["",null,null,null,0]
["",null,null,null,0]
["",null,null,null,0]
["",null,null,null,0]
["",null,null,null,0]
["",null,null,null,{"$f":"E524-C525+D525","v":0}]
["",null,null,null,0]
["",null,null,null,0]
["",null,null,null,0]
["",null,null,null,0]
["",null,null,null,0]
["",null,null,null,0]
["",null,null,null,0]
["",null,null,null,0]
["",null,null,null,0]
["",null,null,null,0]
["",null,null,null,0]
["",null,null,null,0]
["",null,null,null,0]
["",null,null,null,0]
["",null,null,null,0]
["",null,null,null,0]
["",null,null,null,0]
["",null,null,null,0]
["",null,null,null,0]
["",null,null,null,0]
["",null,null,null,0]
["",null,null,null,0]
["",null,null,null,0]
["",null,null,null,0]
["",null,null,null,0]
["",null,null,null,0]
["",null,null,null,0]
["",null,null,null,0]
["",null,null,null,0]
["",null,null,null,0]
["",null,null,null,0]
["",null,null,null,0]
["",null,null,null,0]
["",null,null,null,0]
["",null,null,null,0]
["",null,null,null,0]
["",null,null,null,0]
["",null,null,null,0]
["",null,null,null,0]
["",null,null,null,0]
["",null,null,null,0]
["",null,null,null,0]
["",null,null,null,0]
["",null,null,null,0]
["",null,null,null,0]
["",null,null,null,0]
["",null,null,null,0]
["",null,null,null,0]
["",null,null,null,0]
["",null,null,null,0]
["",null,null,null,0]
["",null,null,null,0]
["",null,null,null,0]
["",null,null,null,0]
["",null,null,null,0]
["",null,null,null,0]
[{"$f":"IF(B582=\"\",\"\",IF(MONTH(B582)>=4,YEAR(B582),YEAR(B582)-1))","v":""},null,null,null,0]
["",null,null,null,0]
["",null,null,null,0]
["",null,null,null,0]
["",null,null,null,0]
["",null,null,null,0]
["",null,null,null,0]
["",null,null,null,{"$f":"E588-C589+D589","v":0}]
["",null,null,null,0]
["",null,null,null,0]
["",null,null,null,0]
["",null,null,null,0]
["",null,null,null,0]
["",null,null,null,0]
["",null,null,null,0]
["",null,null,null,0]
["",null,null,null,0]
["",null,null,null,0]
["",null,null,null,0]
["",null,null,null,0]
["",null,null,null,0]
["",null,null,null,0]
["",null,null,null,0]
["",null,null,null,0]
["",null,null,null,0]
["",null,null,null,0]
["",null,null,null,0]
["",null,null,null,0]
["",null,null,null,0]
["",null,null,null,0]
["",null,null,null,0]
["",null,null,null,0]
["",null,null,null,0]
["",null,null,null,0]
["",null,null,null,0]
["",null,null,null,0]
["",null,null,null,0]
["",null,null,null,0]
["",null,null,null,0]
["",null,null,null,0]
["",null,null,null,0]
["",null,null,null,0]
["",null,null,null,0]
["",null,null,null,0]
["",null,null,null,0]
["",null,null,null,0]
["",null,null,null,0]
["",null,null,null,0]
["",null,null,null,0]
["",null,null,null,0]
["",null,null,null,0]
["",null,null,null,0]
["",null,null,null,0]
["",null,null,null,0]
["",null,null,null,0]
["",null,null,null,0]
["",null,null,null,0]
["",null,null,null,0]
["",null,null,null,0]
["",null,null,null,0]
["",null,null,null,0]
["",null,null,null,0]
["",null,null,null,0]
["",null,null,null,0]
[{"$f":"IF(B646=\"\",\"\",IF(MONTH(B646)>=4,YEAR(B646),YEAR(B646)-1))","v":""},null,null,null,0]
["",null,null,null,0]
["",null,null,null,0]
["",null,null,null,0]
["",null,null,null,0]
["",null,null,null,0]
["",null,null,null,0]
["",null,null,null,{"$f":"E652-C653+D653","v":0}]
["",null,null,null,0]
["",null,null,null,0]
["",null,null,null,0]
["",null,null,null,0]
["",null,null,null,0]
["",null,null,null,0]
["",null,null,null,0]
["",null,null,null,0]
["",null,null,null,0]
["",null,null,null,0]
["",null,null,null,0]
["",null,null,null,0]
["",null,null,null,0]
["",null,null,null,0]
["",null,null,null,0]
["",null,null,null,0]
["",null,null,null,0]
["",null,null,null,0]
["",null,null,null,0]
["",null,null,null,0]
["",null,null,null,0]
["",null,null,null,0]
["",null,null,null,0]
["",null,null,null,0]
["",null,null,null,0]
["",null,null,null,0]
["",null,null,null,0]
["",null,null,null,0]
["",null,null,null,0]
["",null,null,null,0]
["",null,null,null,0]
["",null,null,null,0]
["",null,null,null,0]
["",null,null,null,0]
["",null,null,null,0]
["",null,null,null,0]
["",null,null,null,0]
["",null,null,null,0]
["",null,null,null,0]
["",null,null,null,0]
["",null,null,null,0]
["",null,null,null,0]
["",null,null,null,0]
["",null,null,null,0]
["",null,null,null,0]
["",null,null,null,0]
["",null,null,null,0]
["",null,null,null,0]
["",null,null,null,0]
["",null,null,null,0]
["",null,null,null,0]
["",null,null,null,0]
["",null,null,null,0]
["",null,null,null,0]
["",null,null,null,0]
["",null,null,null,0]
[{"$f":"IF(B710=\"\",\"\",IF(MONTH(B710)>=4,YEAR(B710),YEAR(B710)-1))","v":""},null,null,null,0]
["",null,null,null,0]
["",null,null,null,0]
["",null,null,null,0]
["",null,null,null,0]
["",null,null,null,0]
["",null,null,null,0]
["",null,null,null,{"$f":"E716-C717+D717","v":0}]
["",null,null,null,0]
["",null,null,null,0]
["",null,null,null,0]
["",null,null,null,0]
["",null,null,null,0]
["",null,null,null,0]
["",null,null,null,0]
["",null,null,null,0]
["",null,null,null,0]
["",null,null,null,0]
["",null,null,null,0]
["",null,null,null,0]
["",null,null,null,0]
["",null,null,null,0]
["",null,null,null,0]
["",null,null,null,0]
["",null,null,null,0]
["",null,null,null,0]
["",null,null,null,0]
["",null,null,null,0]
["",null,null,null,0]
["",null,null,null,0]
["",null,null,null,0]
["",null,null,null,0]
["",null,null,null,0]
["",null,null,null,0]
["",null,null,null,0]
["",null,null,null,0]
["",null,null,null,0]
["",null,null,null,0]
["",null,null,null,0]
["",null,null,null,0]
["",null,null,null,0]
["",null,null,null,0]
["",null,null,null,0]
["",null,null,null,0]
["",null,null,null,0]
["",null,null,null,0]
["",null,null,null,0]
["",null,null,null,0]
["",null,null,null,0]
["",null,null,null,0]
["",null,null,null,0]
["",null,null,null,0]
["",null,null,null,0]
["",null,null,null,0]
["",null,null,null,0]
["",null,null,null,0]
["",null,null,null,0]
["",null,null,null,0]
["",null,null,null,0]
["",null,null,null,0]
["",null,null,null,0]
["",null,null,null,0]
["",null,null,null,0]
["",null,null,null,0]
[{"$f":"IF(B774=\"\",\"\",IF(MONTH(B774)>=4,YEAR(B774),YEAR(B774)-1))","v":""},null,null,null,0]
["",null,null,null,0]
["",null,null,null,0]
["",null,null,null,0]
["",null,null,null,0]
["",null,null,null,0]
["",null,null,null,0]
["",null,null,null,{"$f":"E780-C781+D781","v":0}]
["",null,null,null,0]
["",null,null,null,0]
["",null,null,null,0]
["",null,null,null,0]
["",null,null,null,0]
["",null,null,null,0]
["",null,null,null,0]
["",null,null,null,0]
["",null,null,null,0]
["",null,null,null,0]
["",null,null,null,0]
["",null,null,null,0]
["",null,null,null,0]
["",null,null,null,0]
["",null,null,null,0]
["",null,null,null,0]
["",null,null,null,0]
["",null,null,null,0]
["",null,null,null,0]
["",null,null,null,0]
["",null,null,null,0]
["",null,null,null,0]
["",null,null,null,0]
["",null,null,null,0]
["",null,null,null,0]
["",null,null,null,0]
["",null,null,null,0]
["",null,null,null,0]
["",null,null,null,0]
["",null,null,null,0]
["",null,null,null,0]
["",null,null,null,0]
["",null,null,null,0]
["",null,null,null,0]
["",null,null,null,0]
["",null,null,null,0]
["",null,null,null,0]
["",null,null,null,0]
["",null,null,null,0]
["",null,null,null,0]
["",null,null,null,0]
["",null,null,null,0]
["",null,null,null,0]
["",null,null,null,0]
["",null,null,null,0]
["",null,null,null,0]
["",null,null,null,0]
["",null,null,null,0]
["",null,null,null,0]
["",null,null,null,0]
["",null,null,null,0]
["",null,null,null,0]
["",null,null,null,0]
["",null,null,null,0]
["",null,null,null,0]
["",null,null,null,0]
[{"$f":"IF(B838=\"\",\"\",IF(MONTH(B838)>=4,YEAR(B838),YEAR(B838)-1))","v":""},null,null,null,0]
["",null,null,null,0]
["",null,null,null,0]
["",null,null,null,0]
["",null,null,null,0]
["",null,null,null,0]
["",null,null,null,0]
["",null,null,null,{"$f":"E844-C845+D845","v":0}]
["",null,null,null,0]
["",null,null,null,0]
["",null,null,null,0]
["",null,null,null,0]
["",null,null,null,0]
["",null,null,null,0]
["",null,null,null,0]
["",null,null,null,0]
["",null,null,null,0]
["",null,null,null,0]
["",null,null,null,0]
["",null,null,null,0]
["",null,null,null,0]
["",null,null,null,0]
["",null,null,null,0]
["",null,null,null,0]
["",null,null,null,0]
["",null,null,null,0]
["",null,null,null,0]
["",null,null,null,0]
["",null,null,null,0]
["",null,null,null,0]
["",null,null,null,0]
["",null,null,null,0]
["",null,null,null,0]
["",null,null,null,0]
["",null,null,null,0]
["",null,null,null,0]
["",null,null,null,0]
["",null,null,null,0]
["",null,null,null,0]
["",null,null,null,0]
["",null,null,null,0]
["",null,null,null,0]
["",null,null,null,0]
["",null,null,null,0]
["",null,null,null,0]
["",null,null,null,0]
["",null,null,null,0]
["",null,null,null,0]
["",null,null,null,0]
["",null,null,null,0]
["",null,null,null,0]
["",null,null,null,0]
["",null,null,null,0]
["",null,null,null,0]
["",null,null,null,0]
["",null,null,null,0]
["",null,null,null,0]
["",null,null,null,0]
["",null,null,null,0]
["",null,null,null,0]
["",null,null,null,0]
["",null,null,null,0]
["",null,null,null,0]
["",null,null,null,0]
[{"$f":"IF(B902=\"\",\"\",IF(MONTH(B902)>=4,YEAR(B902),YEAR(B902)-1))","v":""},null,null,null,0]
["",null,null,null,0]
["",null,null,null,0]
["",null,null,null,0]
["",null,null,null,0]
["",null,null,null,0]
["",null,null,null,0]
["",null,null,null,{"$f":"E908-C909+D909","v":0}]
["",null,null,null,0]
["",null,null,null,0]
["",null,null,null,0]
["",null,null,null,0]
["",null,null,null,0]
["",null,null,null,0]
["",null,null,null,0]
["",null,null,null,0]
["",null,null,null,0]
["",null,null,null,0]
["",null,null,null,0]
["",null,null,null,0]
["",null,null,null,0]
["",null,null,null,0]
["",null,null,null,0]
["",null,null,null,0]
["",null,null,null,0]
["",null,null,null,0]
["",null,null,null,0]
["",null,null,null,0]
["",null,null,null,0]
["",null,null,null,0]
["",null,null,null,0]
["",null,null,null,0]
["",null,null,null,0]
["",null,null,null,0]
["",null,null,null,0]
["",null,null,null,0]
["",null,null,null,0]
["",null,null,null,0]
["",null,null,null,0]
["",null,null,null,0]
["",null,null,null,0]
["",null,null,null,0]
["",null,null,null,0]
["",null,null,null,0]
["",null,null,null,0]
["",null,null,null,0]
["",null,null,null,0]
["",null,null,null,0]
["",null,null,null,0]
["",null,null,null,0]
["",null,null,null,0]
["",null,null,null,0]
["",null,null,null,0]
["",null,null,null,0]
["",null,null,null,0]
["",null,null,null,0]
["",null,null,null,0]
["",null,null,null,0]
["",null,null,null,0]
["",null,null,null,0]
["",null,null,null,0]
["",null,null,null,0]
["",null,null,null,0]
["",null,null,null,0]
[{"$f":"IF(B966=\"\",\"\",IF(MONTH(B966)>=4,YEAR(B966),YEAR(B966)-1))","v":""},null,null,null,0]
["",null,null,null,0]
["",null,null,null,0]
["",null,null,null,0]
["",null,null,null,0]
["",null,null,null,0]
["",null,null,null,0]
["",null,null,null,{"$f":"E972-C973+D973","v":0}]
["",null,null,null,0]
["",null,null,null,0]
["",null,null,null,0]
["",null,null,null,0]
["",null,null,null,0]
["",null,null,null,0]
["",null,null,null,0]
["",null,null,null,0]
["",null,null,null,0]
["",null,null,null,0]
["",null,null,null,0]
["",null,null,null,0]
["",null,null,null,0]
["",null,null,null,0]
["",null,null,null,0]
["",null,null,null,0]
["",null,null,null,0]
["",null,null,null,0]
["",null,null,null,0]
["",null,null,null,0]
["",null,null,null,0]
["",null,null,null,0]
["",null,null,null,0]
["",null,null,null,0]
["",null,null,null,0]
["",null,null,null,0]
["",null,null,null,0]

{"sheet":"様式4 現金出納帳","index":5,"n_rows":1000,"n_cols":10,"rows_kept":1000,"cut":false,"hidden":false,"merged":[]}
["精算様式4. 現金出納帳"]
["現 金 出 納 帳"]
[]
["年度","年月日","支出\n（戻入）","収入\n(引出額）","現金残高","支払先","目的区分","会計科目","使途・目的・理由など","支払証拠書類の番号"]
[{"$f":"IF(B5=\"\",\"\",IF(MONTH(B5)>=4,YEAR(B5),YEAR(B5)-1))","v":""},null,null,null,{"$f":"D5","v":0}]
[{"$f":"IF(B6=\"\",\"\",IF(MONTH(B6)>=4,YEAR(B6),YEAR(B6)-1))","v":""},null,null,null,{"$f":"E5-C6+D6","v":0}]
["",null,null,null,{"$f":"E6-C7+D7","v":0}]
["",null,null,null,0]
["",null,null,null,0]
["",null,null,null,0]
["",null,null,null,0]
["",null,null,null,0]
["",null,null,null,0]
["",null,null,null,0]
["",null,null,null,0]
["",null,null,null,0]
["",null,null,null,0]
["",null,null,null,0]
["",null,null,null,0]
["",null,null,null,0]
["",null,null,null,0]
["",null,null,null,0]
["",null,null,null,0]
["",null,null,null,0]
["",null,null,null,0]
["",null,null,null,0]
["",null,null,null,0]
["",null,null,null,0]
["",null,null,null,0]
["",null,null,null,0]
["",null,null,null,0]
["",null,null,null,0]
["",null,null,null,{"$f":"E32-C33+D33","v":0}]
["",null,null,null,0]
["",null,null,null,0]
["",null,null,null,0]
["",null,null,null,0]
["",null,null,null,0]
["",null,null,null,0]
["",null,null,null,0]
["",null,null,null,0]
["",null,null,null,0]
["",null,null,null,0]
["",null,null,null,0]
["",null,null,null,0]
["",null,null,null,0]
["",null,null,null,0]
["",null,null,null,0]
["",null,null,null,0]
["",null,null,null,0]
["",null,null,null,0]
["",null,null,null,0]
["",null,null,null,0]
["",null,null,null,0]
["",null,null,null,0]
["",null,null,null,0]
["",null,null,null,0]
["",null,null,null,0]
["",null,null,null,0]
["",null,null,null,0]
["",null,null,null,0]
["",null,null,null,0]
["",null,null,null,0]
["",null,null,null,0]
["",null,null,null,0]
["",null,null,null,0]
["",null,null,null,0]
["",null,null,null,0]
["",null,null,null,0]
[{"$f":"IF(B70=\"\",\"\",IF(MONTH(B70)>=4,YEAR(B70),YEAR(B70)-1))","v":""},null,null,null,0]
["",null,null,null,0]
["",null,null,null,0]
["",null,null,null,0]
["",null,null,null,0]
["",null,null,null,0]
["",null,null,null,0]
["",null,null,null,0]
["",null,null,null,0]
["",null,null,null,0]
["",null,null,null,0]
["",null,null,null,0]
["",null,null,null,0]
["",null,null,null,0]
["",null,null,null,0]
["",null,null,null,0]
["",null,null,null,0]
["",null,null,null,0]
["",null,null,null,0]
["",null,null,null,0]
["",null,null,null,0]
["",null,null,null,0]
["",null,null,null,0]
["",null,null,null,0]
["",null,null,null,0]
["",null,null,null,0]
["",null,null,null,0]
["",null,null,null,{"$f":"E96-C97+D97","v":0}]
["",null,null,null,0]
["",null,null,null,0]
["",null,null,null,0]
["",null,null,null,0]
["",null,null,null,0]
["",null,null,null,0]
["",null,null,null,0]
["",null,null,null,0]
["",null,null,null,0]
["",null,null,null,0]
["",null,null,null,0]
["",null,null,null,0]
["",null,null,null,0]
["",null,null,null,0]
["",null,null,null,0]
["",null,null,null,0]
["",null,null,null,0]
["",null,null,null,0]
["",null,null,null,0]
["",null,null,null,0]
["",null,null,null,0]
["",null,null,null,0]
["",null,null,null,0]
["",null,null,null,0]
["",null,null,null,0]
["",null,null,null,0]
["",null,null,null,0]
["",null,null,null,0]
["",null,null,null,0]
["",null,null,null,0]
["",null,null,null,0]
["",null,null,null,0]
["",null,null,null,0]
["",null,null,null,0]
["",null,null,null,0]
["",null,null,null,0]
[{"$f":"IF(B134=\"\",\"\",IF(MONTH(B134)>=4,YEAR(B134),YEAR(B134)-1))","v":""},null,null,null,0]
["",null,null,null,0]
["",null,null,null,0]
["",null,null,null,0]
["",null,null,null,0]
["",null,null,null,0]
["",null,null,null,0]
["",null,null,null,0]
["",null,null,null,0]
["",null,null,null,0]
["",null,null,null,0]
["",null,null,null,0]
["",null,null,null,0]
["",null,null,null,0]
["",null,null,null,0]
["",null,null,null,0]
["",null,null,null,0]
["",null,null,null,0]
["",null,null,null,0]
["",null,null,null,0]
["",null,null,null,0]
["",null,null,null,0]
["",null,null,null,0]
["",null,null,null,0]
["",null,null,null,0]
["",null,null,null,0]
["",null,null,null,0]
["",null,null,null,{"$f":"E160-C161+D161","v":0}]
["",null,null,null,0]
["",null,null,null,0]
["",null,null,null,0]
["",null,null,null,0]
["",null,null,null,0]
["",null,null,null,0]
["",null,null,null,0]
["",null,null,null,0]
["",null,null,null,0]
["",null,null,null,0]
["",null,null,null,0]
["",null,null,null,0]
["",null,null,null,0]
["",null,null,null,0]
["",null,null,null,0]
["",null,null,null,0]
["",null,null,null,0]
["",null,null,null,0]
["",null,null,null,0]
["",null,null,null,0]
["",null,null,null,0]
["",null,null,null,0]
["",null,null,null,0]
["",null,null,null,0]
["",null,null,null,0]
["",null,null,null,0]
["",null,null,null,0]
["",null,null,null,0]
["",null,null,null,0]
["",null,null,null,0]
["",null,null,null,0]
["",null,null,null,0]
["",null,null,null,0]
["",null,null,null,0]
["",null,null,null,0]
["",null,null,null,0]
[{"$f":"IF(B198=\"\",\"\",IF(MONTH(B198)>=4,YEAR(B198),YEAR(B198)-1))","v":""},null,null,null,0]
["",null,null,null,0]
["",null,null,null,0]
["",null,null,null,0]
["",null,null,null,0]
["",null,null,null,0]
["",null,null,null,0]
["",null,null,null,0]
["",null,null,null,0]
["",null,null,null,0]
["",null,null,null,0]
["",null,null,null,0]
["",null,null,null,0]
["",null,null,null,0]
["",null,null,null,0]
["",null,null,null,0]
["",null,null,null,0]
["",null,null,null,0]
["",null,null,null,0]
["",null,null,null,0]
["",null,null,null,0]
["",null,null,null,0]
["",null,null,null,0]
["",null,null,null,0]
["",null,null,null,0]
["",null,null,null,0]
["",null,null,null,0]
["",null,null,null,{"$f":"E224-C225+D225","v":0}]
["",null,null,null,0]
["",null,null,null,0]
["",null,null,null,0]
["",null,null,null,0]
["",null,null,null,0]
["",null,null,null,0]
["",null,null,null,0]
["",null,null,null,0]
["",null,null,null,0]
["",null,null,null,0]
["",null,null,null,0]
["",null,null,null,0]
["",null,null,null,0]
["",null,null,null,0]
["",null,null,null,0]
["",null,null,null,0]
["",null,null,null,0]
["",null,null,null,0]
["",null,null,null,0]
["",null,null,null,0]
["",null,null,null,0]
["",null,null,null,0]
["",null,null,null,0]
["",null,null,null,0]
["",null,null,null,0]
["",null,null,null,0]
["",null,null,null,0]
["",null,null,null,0]
["",null,null,null,0]
["",null,null,null,0]
["",null,null,null,0]
["",null,null,null,0]
["",null,null,null,0]
["",null,null,null,0]
["",null,null,null,0]
["",null,null,null,0]
[{"$f":"IF(B262=\"\",\"\",IF(MONTH(B262)>=4,YEAR(B262),YEAR(B262)-1))","v":""},null,null,null,0]
["",null,null,null,0]
["",null,null,null,0]
["",null,null,null,0]
["",null,null,null,0]
["",null,null,null,0]
["",null,null,null,0]
["",null,null,null,0]
["",null,null,null,0]
["",null,null,null,0]
["",null,null,null,0]
["",null,null,null,0]
["",null,null,null,0]
["",null,null,null,0]
["",null,null,null,0]
["",null,null,null,0]
["",null,null,null,0]
["",null,null,null,0]
["",null,null,null,0]
["",null,null,null,0]
["",null,null,null,0]
["",null,null,null,0]
["",null,null,null,0]
["",null,null,null,0]
["",null,null,null,0]
["",null,null,null,0]
["",null,null,null,0]
["",null,null,null,{"$f":"E288-C289+D289","v":0}]
["",null,null,null,0]
["",null,null,null,0]
["",null,null,null,0]
["",null,null,null,0]
["",null,null,null,0]
["",null,null,null,0]
["",null,null,null,0]
["",null,null,null,0]
["",null,null,null,0]
["",null,null,null,0]
["",null,null,null,0]
["",null,null,null,0]
["",null,null,null,0]
["",null,null,null,0]
["",null,null,null,0]
["",null,null,null,0]
["",null,null,null,0]
["",null,null,null,0]
["",null,null,null,0]
["",null,null,null,0]
["",null,null,null,0]
["",null,null,null,0]
["",null,null,null,0]
["",null,null,null,0]
["",null,null,null,0]
["",null,null,null,0]
["",null,null,null,0]
["",null,null,null,0]
["",null,null,null,0]
["",null,null,null,0]
["",null,null,null,0]
["",null,null,null,0]
["",null,null,null,0]
["",null,null,null,0]
["",null,null,null,0]
["",null,null,null,0]
[{"$f":"IF(B326=\"\",\"\",IF(MONTH(B326)>=4,YEAR(B326),YEAR(B326)-1))","v":""},null,null,null,0]
["",null,null,null,0]
["",null,null,null,0]
["",null,null,null,0]
["",null,null,null,0]
["",null,null,null,0]
["",null,null,null,0]
["",null,null,null,0]
["",null,null,null,0]
["",null,null,null,0]
["",null,null,null,0]
["",null,null,null,0]
["",null,null,null,0]
["",null,null,null,0]
["",null,null,null,0]
["",null,null,null,0]
["",null,null,null,0]
["",null,null,null,0]
["",null,null,null,0]
["",null,null,null,0]
["",null,null,null,0]
["",null,null,null,0]
["",null,null,null,0]
["",null,null,null,0]
["",null,null,null,0]
["",null,null,null,0]
["",null,null,null,0]
["",null,null,null,{"$f":"E352-C353+D353","v":0}]
["",null,null,null,0]
["",null,null,null,0]
["",null,null,null,0]
["",null,null,null,0]
["",null,null,null,0]
["",null,null,null,0]
["",null,null,null,0]
["",null,null,null,0]
["",null,null,null,0]
["",null,null,null,0]
["",null,null,null,0]
["",null,null,null,0]
["",null,null,null,0]
["",null,null,null,0]
["",null,null,null,0]
["",null,null,null,0]
["",null,null,null,0]
["",null,null,null,0]
["",null,null,null,0]
["",null,null,null,0]
["",null,null,null,0]
["",null,null,null,0]
["",null,null,null,0]
["",null,null,null,0]
["",null,null,null,0]
["",null,null,null,0]
["",null,null,null,0]
["",null,null,null,0]
["",null,null,null,0]
["",null,null,null,0]
["",null,null,null,0]
["",null,null,null,0]
["",null,null,null,0]
["",null,null,null,0]
["",null,null,null,0]
["",null,null,null,0]
[{"$f":"IF(B390=\"\",\"\",IF(MONTH(B390)>=4,YEAR(B390),YEAR(B390)-1))","v":""},null,null,null,0]
["",null,null,null,0]
["",null,null,null,0]
["",null,null,null,0]
["",null,null,null,0]
["",null,null,null,0]
["",null,null,null,0]
["",null,null,null,0]
["",null,null,null,0]
["",null,null,null,0]
["",null,null,null,0]
["",null,null,null,0]
["",null,null,null,0]
["",null,null,null,0]
["",null,null,null,0]
["",null,null,null,0]
["",null,null,null,0]
["",null,null,null,0]
["",null,null,null,0]
["",null,null,null,0]
["",null,null,null,0]
["",null,null,null,0]
["",null,null,null,0]
["",null,null,null,0]
["",null,null,null,0]
["",null,null,null,0]
["",null,null,null,0]
["",null,null,null,{"$f":"E416-C417+D417","v":0}]
["",null,null,null,0]
["",null,null,null,0]
["",null,null,null,0]
["",null,null,null,0]
["",null,null,null,0]
["",null,null,null,0]
["",null,null,null,0]
["",null,null,null,0]
["",null,null,null,0]
["",null,null,null,0]
["",null,null,null,0]
["",null,null,null,0]
["",null,null,null,0]
["",null,null,null,0]
["",null,null,null,0]
["",null,null,null,0]
["",null,null,null,0]
["",null,null,null,0]
["",null,null,null,0]
["",null,null,null,0]
["",null,null,null,0]
["",null,null,null,0]
["",null,null,null,0]
["",null,null,null,0]
["",null,null,null,0]
["",null,null,null,0]
["",null,null,null,0]
["",null,null,null,0]
["",null,null,null,0]
["",null,null,null,0]
["",null,null,null,0]
["",null,null,null,0]
["",null,null,null,0]
["",null,null,null,0]
["",null,null,null,0]
["",null,null,null,0]
[{"$f":"IF(B454=\"\",\"\",IF(MONTH(B454)>=4,YEAR(B454),YEAR(B454)-1))","v":""},null,null,null,0]
["",null,null,null,0]
["",null,null,null,0]
["",null,null,null,0]
["",null,null,null,0]
["",null,null,null,0]
["",null,null,null,0]
["",null,null,null,0]
["",null,null,null,0]
["",null,null,null,0]
["",null,null,null,0]
["",null,null,null,0]
["",null,null,null,0]
["",null,null,null,0]
["",null,null,null,0]
["",null,null,null,0]
["",null,null,null,0]
["",null,null,null,0]
["",null,null,null,0]
["",null,null,null,0]
["",null,null,null,0]
["",null,null,null,0]
["",null,null,null,0]
["",null,null,null,0]
["",null,null,null,0]
["",null,null,null,0]
["",null,null,null,0]
["",null,null,null,{"$f":"E480-C481+D481","v":0}]
["",null,null,null,0]
["",null,null,null,0]
["",null,null,null,0]
["",null,null,null,0]
["",null,null,null,0]
["",null,null,null,0]
["",null,null,null,0]
["",null,null,null,0]
["",null,null,null,0]
["",null,null,null,0]
["",null,null,null,0]
["",null,null,null,0]
["",null,null,null,0]
["",null,null,null,0]
["",null,null,null,0]
["",null,null,null,0]
["",null,null,null,0]
["",null,null,null,0]
["",null,null,null,0]
["",null,null,null,0]
["",null,null,null,0]
["",null,null,null,0]
["",null,null,null,0]
["",null,null,null,0]
["",null,null,null,0]
["",null,null,null,0]
["",null,null,null,0]
["",null,null,null,0]
["",null,null,null,0]
["",null,null,null,0]
["",null,null,null,0]
["",null,null,null,0]
["",null,null,null,0]
["",null,null,null,0]
["",null,null,null,0]
["",null,null,null,0]
[{"$f":"IF(B518=\"\",\"\",IF(MONTH(B518)>=4,YEAR(B518),YEAR(B518)-1))","v":""},null,null,null,0]
["",null,null,null,0]
["",null,null,null,0]
["",null,null,null,0]
["",null,null,null,0]
["",null,null,null,0]
["",null,null,null,0]
["",null,null,null,0]
["",null,null,null,0]
["",null,null,null,0]
["",null,null,null,0]
["",null,null,null,0]
["",null,null,null,0]
["",null,null,null,0]
["",null,null,null,0]
["",null,null,null,0]
["",null,null,null,0]
["",null,null,null,0]
["",null,null,null,0]
["",null,null,null,0]
["",null,null,null,0]
["",null,null,null,0]
["",null,null,null,0]
["",null,null,null,0]
["",null,null,null,0]
["",null,null,null,0]
["",null,null,null,0]
["",null,null,null,{"$f":"E544-C545+D545","v":0}]
["",null,null,null,0]
["",null,null,null,0]
["",null,null,null,0]
["",null,null,null,0]
["",null,null,null,0]
["",null,null,null,0]
["",null,null,null,0]
["",null,null,null,0]
["",null,null,null,0]
["",null,null,null,0]
["",null,null,null,0]
["",null,null,null,0]
["",null,null,null,0]
["",null,null,null,0]
["",null,null,null,0]
["",null,null,null,0]
["",null,null,null,0]
["",null,null,null,0]
["",null,null,null,0]
["",null,null,null,0]
["",null,null,null,0]
["",null,null,null,0]
["",null,null,null,0]
["",null,null,null,0]
["",null,null,null,0]
["",null,null,null,0]
["",null,null,null,0]
["",null,null,null,0]
["",null,null,null,0]
["",null,null,null,0]
["",null,null,null,0]
["",null,null,null,0]
["",null,null,null,0]
["",null,null,null,0]
["",null,null,null,0]
["",null,null,null,0]
[{"$f":"IF(B582=\"\",\"\",IF(MONTH(B582)>=4,YEAR(B582),YEAR(B582)-1))","v":""},null,null,null,0]
["",null,null,null,0]
["",null,null,null,0]
["",null,null,null,0]
["",null,null,null,0]
["",null,null,null,0]
["",null,null,null,0]
["",null,null,null,0]
["",null,null,null,0]
["",null,null,null,0]
["",null,null,null,0]
["",null,null,null,0]
["",null,null,null,0]
["",null,null,null,0]
["",null,null,null,0]
["",null,null,null,0]
["",null,null,null,0]
["",null,null,null,0]
["",null,null,null,0]
["",null,null,null,0]
["",null,null,null,0]
["",null,null,null,0]
["",null,null,null,0]
["",null,null,null,0]
["",null,null,null,0]
["",null,null,null,0]
["",null,null,null,0]
["",null,null,null,{"$f":"E608-C609+D609","v":0}]
["",null,null,null,0]
["",null,null,null,0]
["",null,null,null,0]
["",null,null,null,0]
["",null,null,null,0]
["",null,null,null,0]
["",null,null,null,0]
["",null,null,null,0]
["",null,null,null,0]
["",null,null,null,0]
["",null,null,null,0]
["",null,null,null,0]
["",null,null,null,0]
["",null,null,null,0]
["",null,null,null,0]
["",null,null,null,0]
["",null,null,null,0]
["",null,null,null,0]
["",null,null,null,0]
["",null,null,null,0]
["",null,null,null,0]
["",null,null,null,0]
["",null,null,null,0]
["",null,null,null,0]
["",null,null,null,0]
["",null,null,null,0]
["",null,null,null,0]
["",null,null,null,0]
["",null,null,null,0]
["",null,null,null,0]
["",null,null,null,0]
["",null,null,null,0]
["",null,null,null,0]
["",null,null,null,0]
["",null,null,null,0]
["",null,null,null,0]
[{"$f":"IF(B646=\"\",\"\",IF(MONTH(B646)>=4,YEAR(B646),YEAR(B646)-1))","v":""},null,null,null,0]
["",null,null,null,0]
["",null,null,null,0]
["",null,null,null,0]
["",null,null,null,0]
["",null,null,null,0]
["",null,null,null,0]
["",null,null,null,0]
["",null,null,null,0]
["",null,null,null,0]
["",null,null,null,0]
["",null,null,null,0]
["",null,null,null,0]
["",null,null,null,0]
["",null,null,null,0]
["",null,null,null,0]
["",null,null,null,0]
["",null,null,null,0]
["",null,null,null,0]
["",null,null,null,0]
["",null,null,null,0]
["",null,null,null,0]
["",null,null,null,0]
["",null,null,null,0]
["",null,null,null,0]
["",null,null,null,0]
["",null,null,null,0]
["",null,null,null,{"$f":"E672-C673+D673","v":0}]
["",null,null,null,0]
["",null,null,null,0]
["",null,null,null,0]
["",null,null,null,0]
["",null,null,null,0]
["",null,null,null,0]
["",null,null,null,0]
["",null,null,null,0]
["",null,null,null,0]
["",null,null,null,0]
["",null,null,null,0]
["",null,null,null,0]
["",null,null,null,0]
["",null,null,null,0]
["",null,null,null,0]
["",null,null,null,0]
["",null,null,null,0]
["",null,null,null,0]
["",null,null,null,0]
["",null,null,null,0]
["",null,null,null,0]
["",null,null,null,0]
["",null,null,null,0]
["",null,null,null,0]
["",null,null,null,0]
["",null,null,null,0]
["",null,null,null,0]
["",null,null,null,0]
["",null,null,null,0]
["",null,null,null,0]
["",null,null,null,0]
["",null,null,null,0]
["",null,null,null,0]
["",null,null,null,0]
["",null,null,null,0]
["",null,null,null,0]
[{"$f":"IF(B710=\"\",\"\",IF(MONTH(B710)>=4,YEAR(B710),YEAR(B710)-1))","v":""},null,null,null,0]
["",null,null,null,0]
["",null,null,null,0]
["",null,null,null,0]
["",null,null,null,0]
["",null,null,null,0]
["",null,null,null,0]
["",null,null,null,0]
["",null,null,null,0]
["",null,null,null,0]
["",null,null,null,0]
["",null,null,null,0]
["",null,null,null,0]
["",null,null,null,0]
["",null,null,null,0]
["",null,null,null,0]
["",null,null,null,0]
["",null,null,null,0]
["",null,null,null,0]
["",null,null,null,0]
["",null,null,null,0]
["",null,null,null,0]
["",null,null,null,0]
["",null,null,null,0]
["",null,null,null,0]
["",null,null,null,0]
["",null,null,null,0]
["",null,null,null,{"$f":"E736-C737+D737","v":0}]
["",null,null,null,0]
["",null,null,null,0]
["",null,null,null,0]
["",null,null,null,0]
["",null,null,null,0]
["",null,null,null,0]
["",null,null,null,0]
["",null,null,null,0]
["",null,null,null,0]
["",null,null,null,0]
["",null,null,null,0]
["",null,null,null,0]
["",null,null,null,0]
["",null,null,null,0]
["",null,null,null,0]
["",null,null,null,0]
["",null,null,null,0]
["",null,null,null,0]
["",null,null,null,0]
["",null,null,null,0]
["",null,null,null,0]
["",null,null,null,0]
["",null,null,null,0]
["",null,null,null,0]
["",null,null,null,0]
["",null,null,null,0]
["",null,null,null,0]
["",null,null,null,0]
["",null,null,null,0]
["",null,null,null,0]
["",null,null,null,0]
["",null,null,null,0]
["",null,null,null,0]
["",null,null,null,0]
["",null,null,null,0]
["",null,null,null,0]
[{"$f":"IF(B774=\"\",\"\",IF(MONTH(B774)>=4,YEAR(B774),YEAR(B774)-1))","v":""},null,null,null,0]
["",null,null,null,0]
["",null,null,null,0]
["",null,null,null,0]
["",null,null,null,0]
["",null,null,null,0]
["",null,null,null,0]
["",null,null,null,0]
["",null,null,null,0]
["",null,null,null,0]
["",null,null,null,0]
["",null,null,null,0]
["",null,null,null,0]
["",null,null,null,0]
["",null,null,null,0]
["",null,null,null,0]
["",null,null,null,0]
["",null,null,null,0]
["",null,null,null,0]
["",null,null,null,0]
["",null,null,null,0]
["",null,null,null,0]
["",null,null,null,0]
["",null,null,null,0]
["",null,null,null,0]
["",null,null,null,0]
["",null,null,null,0]
["",null,null,null,{"$f":"E800-C801+D801","v":0}]
["",null,null,null,0]
["",null,null,null,0]
["",null,null,null,0]
["",null,null,null,0]
["",null,null,null,0]
["",null,null,null,0]
["",null,null,null,0]
["",null,null,null,0]
["",null,null,null,0]
["",null,null,null,0]
["",null,null,null,0]
["",null,null,null,0]
["",null,null,null,0]
["",null,null,null,0]
["",null,null,null,0]
["",null,null,null,0]
["",null,null,null,0]
["",null,null,null,0]
["",null,null,null,0]
["",null,null,null,0]
["",null,null,null,0]
["",null,null,null,0]
["",null,null,null,0]
["",null,null,null,0]
["",null,null,null,0]
["",null,null,null,0]
["",null,null,null,0]
["",null,null,null,0]
["",null,null,null,0]
["",null,null,null,0]
["",null,null,null,0]
["",null,null,null,0]
["",null,null,null,0]
["",null,null,null,0]
["",null,null,null,0]
["",null,null,null,0]
[{"$f":"IF(B838=\"\",\"\",IF(MONTH(B838)>=4,YEAR(B838),YEAR(B838)-1))","v":""},null,null,null,0]
["",null,null,null,0]
["",null,null,null,0]
["",null,null,null,0]
["",null,null,null,0]
["",null,null,null,0]
["",null,null,null,0]
["",null,null,null,0]
["",null,null,null,0]
["",null,null,null,0]
["",null,null,null,0]
["",null,null,null,0]
["",null,null,null,0]
["",null,null,null,0]
["",null,null,null,0]
["",null,null,null,0]
["",null,null,null,0]
["",null,null,null,0]
["",null,null,null,0]
["",null,null,null,0]
["",null,null,null,0]
["",null,null,null,0]
["",null,null,null,0]
["",null,null,null,0]
["",null,null,null,0]
["",null,null,null,0]
["",null,null,null,0]
["",null,null,null,{"$f":"E864-C865+D865","v":0}]
["",null,null,null,0]
["",null,null,null,0]
["",null,null,null,0]
["",null,null,null,0]
["",null,null,null,0]
["",null,null,null,0]
["",null,null,null,0]
["",null,null,null,0]
["",null,null,null,0]
["",null,null,null,0]
["",null,null,null,0]
["",null,null,null,0]
["",null,null,null,0]
["",null,null,null,0]
["",null,null,null,0]
["",null,null,null,0]
["",null,null,null,0]
["",null,null,null,0]
["",null,null,null,0]
["",null,null,null,0]
["",null,null,null,0]
["",null,null,null,0]
["",null,null,null,0]
["",null,null,null,0]
["",null,null,null,0]
["",null,null,null,0]
["",null,null,null,0]
["",null,null,null,0]
["",null,null,null,0]
["",null,null,null,0]
["",null,null,null,0]
["",null,null,null,0]
["",null,null,null,0]
["",null,null,null,0]
["",null,null,null,0]
["",null,null,null,0]
[{"$f":"IF(B902=\"\",\"\",IF(MONTH(B902)>=4,YEAR(B902),YEAR(B902)-1))","v":""},null,null,null,0]
["",null,null,null,0]
["",null,null,null,0]
["",null,null,null,0]
["",null,null,null,0]
["",null,null,null,0]
["",null,null,null,0]
["",null,null,null,0]
["",null,null,null,0]
["",null,null,null,0]
["",null,null,null,0]
["",null,null,null,0]
["",null,null,null,0]
["",null,null,null,0]
["",null,null,null,0]
["",null,null,null,0]
["",null,null,null,0]
["",null,null,null,0]
["",null,null,null,0]
["",null,null,null,0]
["",null,null,null,0]
["",null,null,null,0]
["",null,null,null,0]
["",null,null,null,0]
["",null,null,null,0]
["",null,null,null,0]
["",null,null,null,0]
["",null,null,null,{"$f":"E928-C929+D929","v":0}]
["",null,null,null,0]
["",null,null,null,0]
["",null,null,null,0]
["",null,null,null,0]
["",null,null,null,0]
["",null,null,null,0]
["",null,null,null,0]
["",null,null,null,0]
["",null,null,null,0]
["",null,null,null,0]
["",null,null,null,0]
["",null,null,null,0]
["",null,null,null,0]
["",null,null,null,0]
["",null,null,null,0]
["",null,null,null,0]
["",null,null,null,0]
["",null,null,null,0]
["",null,null,null,0]
["",null,null,null,0]
["",null,null,null,0]
["",null,null,null,0]
["",null,null,null,0]
["",null,null,null,0]
["",null,null,null,0]
["",null,null,null,0]
["",null,null,null,0]
["",null,null,null,0]
["",null,null,null,0]
["",null,null,null,0]
["",null,null,null,0]
["",null,null,null,0]
["",null,null,null,0]
["",null,null,null,0]
["",null,null,null,0]
["",null,null,null,0]
[{"$f":"IF(B966=\"\",\"\",IF(MONTH(B966)>=4,YEAR(B966),YEAR(B966)-1))","v":""},null,null,null,0]
["",null,null,null,0]
["",null,null,null,0]
["",null,null,null,0]
["",null,null,null,0]
["",null,null,null,0]
["",null,null,null,0]
["",null,null,null,0]
["",null,null,null,0]
["",null,null,null,0]
["",null,null,null,0]
["",null,null,null,0]
["",null,null,null,0]
["",null,null,null,0]
["",null,null,null,0]
["",null,null,null,0]
["",null,null,null,0]
["",null,null,null,0]
["",null,null,null,0]
["",null,null,null,0]
["",null,null,null,0]
["",null,null,null,0]
["",null,null,null,0]
["",null,null,null,0]
["",null,null,null,0]
["",null,null,null,0]
["",null,null,null,0]
["",null,null,null,{"$f":"E992-C993+D993","v":0}]
["",null,null,null,0]
["",null,null,null,0]
["",null,null,null,0]
["",null,null,null,0]
["",null,null,null,0]
["",null,null,null,0]
["",null,null,null,0]

{"sheet":"更新履歴","index":6,"n_rows":2,"n_cols":4,"rows_kept":2,"cut":false,"hidden":false,"merged":[]}
["バージョン","年月日","更新シート","更新内容"]
["1.0","2022-03-17","-","初版公開"]

{"sheet":"リスト","index":7,"n_rows":6,"n_cols":3,"rows_kept":6,"cut":false,"hidden":true,"merged":[]}
["目的区分",null,"年度"]
["直接事業費",null,2021]
["管理的経費",null,2022]
["評価関連経費",null,2023]
["―",null,2024]
[null,null,"―"]